Workbook

Sheet Dashboard
I29: =Hours!A12 -> 1 or 2 hours a day | M29: =Hours!B12 -> 174
I30: =Hours!A13 -> 2 to 3 hours per day | M30: =Hours!B13 -> 451
I31: =Hours!A14 -> 4 to 6 hours a day | M31: =Hours!B14 -> 775
I32: =Hours!A15 -> All the 8 hours baby, all the 8! | M32: =Hours!B15 -> 476
I33: =Hours!A16 -> Excel ?!? What Excel? | M33: =Hours!B16 -> 7

Sheet Country to Continent (hidden)
A1: Abyssinia - Gondar | B1: Africa
A2: Algeria - Algiers(Al - Jaza'ir) | B2: Africa
A3: Angola - Luanda | B3: Africa
A4: Benin - Porto Novo, Cotonou | B4: Africa
A5: Botswana - Gaborone | B5: Africa
A6: Burkina Faso - Ouagadougou | B6: Africa
A7: Burundi - Bujumbura | B7: Africa
A8: Cameroon (also spelled Cameroun) - Yaoundé | B8: Africa
A9: Cape Verde - Praia | B9: Africa
A10: Central African Republic (Centrafrique)- Bangui | B10: Africa
A11: Chad (Tchad) - N'Djamena | B11: Africa
A12: Comoros - Moroni | B12: Africa
A13: Côte d'Ivoire (Ivory Coast)- Yamoussoukro | B13: Africa
A14: Democratic Republic of the Congo - Kinshasa | B14: Africa
A15: Djibouti - Djibouti | B15: Africa
A16: Egypt (Misr) - Cairo | B16: Africa
A17: Equatorial Guinea - Malabo | B17: Africa
A18: Eritrea - Asmara | B18: Africa
A19: Ethiopia (Itiopia) - Addis Ababa | B19: Africa
A20: Gabon - Libreville | B20: Africa
A21: Ghana - Accra | B21: Africa
A22: Guinea - Conakry | B22: Africa
A23: Guinea-Bissau - Bissau | B23: Africa
A24: Kenya - Nairobi | B24: Africa
A25: Lesotho - Maseru | B25: Africa
A26: Liberia - Monrovia | B26: Africa
A27: Libya - Tripoli | B27: Africa
A28: Madagascar - Antananarivo | B28: Africa
A29: Malawi - Lilongwe | B29: Africa
A30: Mali - Bamako | B30: Africa
A31: Mauritania - Nouakchott | B31: Africa
A32: Mauritius - Port Louis | B32: Africa
A33: Morocco (Al Maghrib) - Rabat | B33: Africa
A34: Mozambique - Maputo | B34: Africa
A35: Namibia - Windhoek | B35: Africa
A36: Niger - Niamey | B36: Africa
A37: Nigeria - Abuja | B37: Africa
A38: Republic of the Congo - Brazzaville | B38: Africa
A39: Rwanda - Kigali | B39: Africa
A40: São Tomé and Príncipe - São Tomé | B40: Africa
A41: Senegal - Dakar | B41: Africa
A42: Seychelles - Victoria, Seychelles | B42: Africa
A43: Sierra Leone - Freetown | B43: Africa
A44: Somalia - Mogadishu | B44: Africa
A45: South Africa - Cape Town, Pretoria, Bloemfontein | B45: Africa
A46: South Sudan-Jubba | B46: Africa
A47: Sudan - Khartoum | B47: Africa
A48: Swaziland - Mbabane | B48: Africa
A49: Tanzania - Dar es Salaam, Dodoma | B49: Africa
A50: The Gambia - Banjul | B50: Africa
A51: Togo - Lome | B51: Africa
A52: Tunisia - Tunis | B52: Africa
A53: Uganda - Kampala | B53: Africa
A54: Western Sahara *DISPUTED* - La'youn | B54: Africa
A55: Zaire-Kinshasa | B55: Africa
A56: Zambia - Lusaka | B56: Africa
A57: Zimbabwe - Harare | B57: Africa
A58: Afghanistan - Kabul | B58: Asia
A59: Arabian Gulf | B59: Asia
A60: Armenia -Yerevan | B60: Asia
A61: Asia | B61: Asia
A62: Azerbaijan -Baku | B62: Asia
A63: Bahrain - Manama | B63: Asia
A64: Bangladesh - Dhaka | B64: Asia
A65: Bhutan - Thimphu | B65: Asia
A66: Brunei - Bandar Seri Begawan | B66: Asia
A67: Cambodia (Kampuchea) - Phnom Penh | B67: Asia
A68: China, People's Republic of - Beijing | B68: Asia
A69: China, Republic of (a.k.a. Taiwan) - Taipei | B69: Asia
A70: Dubai | B70: Asia
A71: East Timor (Timor Leste) - Dili | B71: Asia
A72: Hong Kong | B72: Asia
A73: India (Hindi: Bharat) - New Delhi | B73: Asia
A74: Indonesia - Jakarta | B74: Asia
A75: Iran - Tehran | B75: Asia
A76: Iraq - Baghdad | B76: Asia
A77: Israel - Jerusalem | B77: Asia
A78: Japan (Nihon) - Tokyo | B78: Asia
A79: Jordan (Al Urdun) - Amman | B79: Asia
A80: Kazakhstan - Astana | B80: Asia
A81: Kuwait - Kuwait | B81: Asia
A82: Kyrgyzstan - Bishkek | B82: Asia
A83: Laos - Vientiane | B83: Asia
A84: Lebanon (Lubnan) - Beirut | B84: Asia
A85: Malaysia - Kuala Lumpur | B85: Asia
A86: Maldives - Malé | B86: Asia
A87: Mongolia - Ulaanbaatar | B87: Asia
A88: Myanmar (Burma) - Yangon | B88: Asia
A89: MYS | B89: Asia
A90: Nepal - Kathmandu | B90: Asia
A91: North Korea - Pyongyang | B91: Asia
A92: Oman - Muscat | B92: Asia
A93: Pakistan - Islamabad | B93: Asia
A94: Palestine* (falestine) - Jerusalem (disputed) | B94: Asia
A95: Philippines - Manila | B95: Asia
A96: Qatar - Doha | B96: Asia
A97: Russia (Россия) - Moscow | B97: Asia
A98: Saudi Arabia - Riyadh | B98: Asia
A99: Singapore - Singapore | B99: Asia
A100: South Korea - Seoul | B100: Asia
A101: Sri Lanka - Sri Jayawardenapura Kotte, not Colombo now | B101: Asia
A102: Syria - Damascus | B102: Asia
A103: Tajikistan - Dushanbe | B103: Asia
A104: Thailand (Muang Thai) - Bangkok | B104: Asia
A105: Tibet | B105: Asia
A106: Turkey - Ankara | B106: Asia
A107: Turkmenistan - Aşgabat | B107: Asia
A108: UAE | B108: Asia
A109: United Arab Emirates - Abu Dhabi | B109: Asia
A110: Uzbekistan - Tashkent | B110: Asia
A111: Vietnam - Hanoi | B111: Asia
A112: Yemen - Sana'a | B112: Asia
A113: Australia - Canberra | B113: Australia
A114: Christmas Island - The Settlement | B114: Australia
A115: Cocos (Keeling) Islands - West Island | B115: Australia
A116: New Zealand (Aotearoa) - Wellington | B116: Australia
A117: Albania (Shqipria) - Tirana | B117: Europe
A118: Andorra - Andorra la Vella | B118: Europe
A119: Austria (Österreich) - Vienna | B119: Europe
A120: Baltic | B120: Europe
A121: Belarus - Minsk | B121: Europe
A122: Belgium - Brussels | B122: Europe
A123: Bosnia and Herzegovina - Sarajevo | B123: Europe
A124: Bulgaria (България) - Sofia | B124: Europe
A125: CEE | B125: Europe
A126: Croatia (Hrvatska) - Zagreb | B126: Europe
A127: Cyprus (Kupros) - Nicosia | B127: Europe
A128: Czech Republic (Česko) - Prague | B128: Europe
A129: Denmark (Danmark) - Copenhagen | B129: Europe
A130: Estonia (Eesti) - Tallinn | B130: Europe
A131: Europe | B131: Europe
A132: Finland (Suomi) - Helsinki | B132: Europe
A133: France - Paris | B133: Europe
A134: Georgia (საქართველ) - Tbilisi | B134: Europe
A135: Germany (Deutschland) - Berlin | B135: Europe
A136: Greece (Hellas) - Athens | B136: Europe
A137: Hungary (Magyar) - Budapest | B137: Europe
A138: Iceland (Island) - Reykjavik | B138: Europe
A139: Ireland | B139: Europe
A140: Italy (Italia) - Rome | B140: Europe
A141: Latvia (Latvijas) - Riga | B141: Europe
A142: Liechtenstein - Vaduz | B142: Europe
A143: Lithuania (Lietuvos) - Vilnius | B143: Europe
A144: Luxembourg - Luxembourg City | B144: Europe
A145: Malta - Valletta | B145: Europe
A146: Moldova - Chisinau | B146: Europe
A147: Monaco - Monaco | B147: Europe
A148: Montenegro (Црна Гора) - Podgorica | B148: Europe
A149: Netherlands (Nederland) - Amsterdam (Capital), The Hague (Location of Government) | B149: Europe
A150: Norway (Norge) - Oslo | B150: Europe
A151: Poland (Polska) - Warsaw | B151: Europe
A152: Portugal - Lisbon | B152: Europe
A153: Republic of Georgia | B153: Europe
A154: Republic of Ireland (Éire) - Dublin | B154: Europe
A155: Republic of Macedonia (Македонија) - Skopje | B155: Europe
A156: Romania (România) - Bucharest | B156: Europe
A157: Russia (Россия) - Moscow | B157: Europe
A158: San Marino - San Marino | B158: Europe
A159: Serbia (Србија) - Belgrade | B159: Europe
A160: Slovakia (Slovenská) - Bratislava | B160: Europe
A161: Slovenia (Slovenija) - Ljubljana | B161: Europe
A162: Spain (España) - Madrid | B162: Europe
A163: Sweden (Sverige) - Stockholm | B163: Europe
A164: Switzerland - Bern | B164: Europe
A165: Turkey - Ankara | B165: Europe
A166: Ukraine (Україна) - Kyiv | B166: Europe
A167: United Kingdom - London | B167: Europe
A168: Vatican City - Vatican City | B168: Europe
A169: Fiji - Suva | B169: Melanesia
A170: New Caledonia - Nouméa | B170: Melanesia
A171: Papua New Guinea - Port Moresby | B171: Melanesia
A172: Solomon Islands - Honiara | B172: Melanesia
A173: Vanuatu - Port Vila | B173: Melanesia
A174: Federated States of Micronesia - Palikir | B174: Micronesia
A175: Guam - Hagåtña | B175: Micronesia
A176: Kiribati - Tarawa atol | B176: Micronesia
A177: Marshall Islands - Majuro | B177: Micronesia
A178: Nauru - Yaren | B178: Micronesia
A179: Northern Mariana Islands - Saipan | B179: Micronesia
A180: Palau - Koror | B180: Micronesia
A181: Antigua and Barbuda - St. Johns | B181: North America
A182: Aruba | B182: North America
A183: Bahamas - Nassau | B183: North America
A184: Barbados - Bridgetown | B184: North America
A185: Belize - Belmopan | B185: North America
A186: Bermuda | B186: North America
A187: Canada - Ottawa | B187: North America
A188: Cayman Islands - George Town | B188: North America
A189: Central America | B189: North America
A190: Costa Rica - San José | B190: North America
A191: Cuba - Havana | B191: North America
A192: Dominica - Roseau | B192: North America
A193: Dominican Republic (Republica Dominicana) - Santo Domingo | B193: North America
A194: El Salvador - San Salvador | B194: North America
A195: Greenland - Nuuk | B195: North America
A196: Grenada - St Georges | B196: North America
A197: Guatemala - Guatemala | B197: North America
A198: Haiti - Port-au-Prince | B198: North America
A199: Honduras - Tegucigalpa | B199: North America
A200: Jamaica - Kingston, Jamaica | B200: North America
... 36 more rows

Sheet mapping (hidden)
B1: Mapping Sheet | G1: Source: Xrates on 6/21/2012 | H1: and xe.com
B2: Currency Mapping | L2: Country Mapping
B3: Currency | C3: in USD | G3: Value of 1 American Dollar | L3: Actual | M3: Mapping
B4: USD | C4: 1 | G4: Argentine Peso | H4: 4.49273 | I4: ARS | L4: USA | M4: USA
B5: EUR | C5: =1/INDEX($H$4:$H$64,MATCH(tblXrate[[#This Row],[Currency]],$I$4:$I$64,0)) -> 1.270399439 | G5: Australian Dollar | H5: 0.980479 | I5: AUD | L5: India | M5: India
B6: PKR | C6: =1/INDEX($H$4:$H$64,MATCH(tblXrate[[#This Row],[Currency]],$I$4:$I$64,0)) -> 0.01061408872 | G6: Botswana Pula | H6: 7.65697 | I6: BWP | L6: UK | M6: UK
B7: INR | C7: =1/INDEX($H$4:$H$64,MATCH(tblXrate[[#This Row],[Currency]],$I$4:$I$64,0)) -> 0.01780791669 | G7: Brazilian Real | H7: 2.02314 | I7: BRL | L7: Australia | M7: Australia
B8: GBP | C8: =1/INDEX($H$4:$H$64,MATCH(tblXrate[[#This Row],[Currency]],$I$4:$I$64,0)) -> 1.576178272 | G8: British Pound | H8: 0.634446 | I8: GBP | L8: Canada | M8: Canada
B9: AUD | C9: =1/INDEX($H$4:$H$64,MATCH(tblXrate[[#This Row],[Currency]],$I$4:$I$64,0)) -> 1.019909656 | G9: Brunei dollar | H9: 1.2687 | I9: BND | L9: Pakistan | M9: Pakistan
B10: CAD | C10: =1/INDEX($H$4:$H$64,MATCH(tblXrate[[#This Row],[Currency]],$I$4:$I$64,0)) -> 0.983361523 | G10: Bulgarian Lev | H10: 1.53952 | I10: BGN | L10: South Africa | M10: South Africa
B11: PHP | C11: =1/INDEX($H$4:$H$64,MATCH(tblXrate[[#This Row],[Currency]],$I$4:$I$64,0)) -> 0.02370505226 | G11: Canadian Dollar | H11: 1.01692 | I11: CAD | L11: Germany | M11: Germany
B12: AED | C12: =1/INDEX($H$4:$H$64,MATCH(tblXrate[[#This Row],[Currency]],$I$4:$I$64,0)) -> 0.2722192127 | G12: Chilean Peso | H12: 497.268 | I12: CLP | L12: UAE | M12: UAE
B13: MXN | C13: =1/INDEX($H$4:$H$64,MATCH(tblXrate[[#This Row],[Currency]],$I$4:$I$64,0)) -> 0.07304655257 | G13: Chinese Yuan | H13: 6.36091 | I13: CNY | L13: Brazil | M13: Brazil
B14: SEK | C14: =1/INDEX($H$4:$H$64,MATCH(tblXrate[[#This Row],[Currency]],$I$4:$I$64,0)) -> 0.1436552504 | G14: Colombian Peso | H14: 1769.79 | I14: COP | L14: Netherlands | M14: Netherlands
B15: BDT | C15: =1/INDEX($H$4:$H$64,MATCH(tblXrate[[#This Row],[Currency]],$I$4:$I$64,0)) -> 0.01222084534 | G15: Croatian Kuna | H15: 5.93671 | I15: HRK | L15: Singapore | M15: Singapore
B16: COSTARICAN | C16: =1/INDEX($H$4:$H$64,MATCH(tblXrate[[#This Row],[Currency]],$I$4:$I$64,0)) -> 0.002007830539 | G16: Danish Krone | H16: 5.85123 | I16: DKK | L16: Philippines | M16: Philippines
B17: ZAR | C17: =1/INDEX($H$4:$H$64,MATCH(tblXrate[[#This Row],[Currency]],$I$4:$I$64,0)) -> 0.1219217799 | G17: Euro | H17: 0.787154 | I17: EUR | L17: Portugal | M17: Portugal
B18: NZD | C18: =1/INDEX($H$4:$H$64,MATCH(tblXrate[[#This Row],[Currency]],$I$4:$I$64,0)) -> 0.7975880936 | G18: Hong Kong Dollar | H18: 7.75889 | I18: HKD | L18: Spain | M18: Spain
B19: CNY | C19: =1/INDEX($H$4:$H$64,MATCH(tblXrate[[#This Row],[Currency]],$I$4:$I$64,0)) -> 0.1572102105 | G19: Hungarian Forint | H19: 225.874 | I19: HUF | L19: New Zealand | M19: New Zealand
B20: EGYPT | C20: =1/INDEX($H$4:$H$64,MATCH(tblXrate[[#This Row],[Currency]],$I$4:$I$64,0)) -> 0.1652619402 | G20: Iceland Krona | H20: 124.697 | I20: ISK | L20: Russia | M20: Russia
B21: NAIRA | C21: =1/INDEX($H$4:$H$64,MATCH(tblXrate[[#This Row],[Currency]],$I$4:$I$64,0)) -> 0.006163328197 | G21: Indian Rupee | H21: 56.1548 | I21: INR | L21: Saudi Arabia | M21: Saudi Arabia
B22: AED | C22: =1/INDEX($H$4:$H$64,MATCH(tblXrate[[#This Row],[Currency]],$I$4:$I$64,0)) -> 0.2722192127 | G22: Indonesian Rupiah | H22: 9443.81 | I22: IDR | L22: Mexico | M22: Mexico
B23: BRL | C23: =1/INDEX($H$4:$H$64,MATCH(tblXrate[[#This Row],[Currency]],$I$4:$I$64,0)) -> 0.4942811669 | G23: Israeli New Shekel | H23: 3.86721 | I23: ILS | L23: Indonesia | M23: Indonesia
B24: RON | C24: =1/INDEX($H$4:$H$64,MATCH(tblXrate[[#This Row],[Currency]],$I$4:$I$64,0)) -> 0.2846132391 | G24: Japanese Yen | H24: 78.9043 | I24: JPY | L24: Norway | M24: Norway
B25: USD | C25: 1 | G25: Kazakhstani Tenge | H25: 148.88 | I25: KZT | L25: malaysia | M25: malaysia
B26: MYR | C26: =1/INDEX($H$4:$H$64,MATCH(tblXrate[[#This Row],[Currency]],$I$4:$I$64,0)) -> 0.3168005677 | G26: Kuwaiti Dinar | H26: 0.2794 | I26: KWD | L26: The Netherlands | M26: Netherlands
B27: LKR | C27: =1/INDEX($H$4:$H$64,MATCH(tblXrate[[#This Row],[Currency]],$I$4:$I$64,0)) -> 0.007524058176 | G27: Latvian Lat | H27: 0.548489 | I27: LVL | L27: Romania | M27: Romania
B28: SGD | C28: =1/INDEX($H$4:$H$64,MATCH(tblXrate[[#This Row],[Currency]],$I$4:$I$64,0)) -> 0.7888239424 | G28: Libyan Dinar | H28: 1.9324 | I28: LYD | L28: Poland | M28: Poland
B29: GBP | C29: =1/INDEX($H$4:$H$64,MATCH(tblXrate[[#This Row],[Currency]],$I$4:$I$64,0)) -> 1.576178272 | G29: Lithuanian Litas | H29: 2.71788 | I29: LTL | L29: italy | M29: italy
B30: DOP | C30: =1/INDEX($H$4:$H$64,MATCH(tblXrate[[#This Row],[Currency]],$I$4:$I$64,0)) -> 0.02567394095 | G30: Malaysian Ringgit | H30: 3.15656 | I30: MYR | L30: Hungary | M30: Hungary
B31: PLN | C31: =1/INDEX($H$4:$H$64,MATCH(tblXrate[[#This Row],[Currency]],$I$4:$I$64,0)) -> 0.3003147298 | G31: Mauritius Rupee | H31: 30.7159 | I31: MUR | L31: Denmark | M31: Denmark
B32: KENYA | C32: =1/INDEX($H$4:$H$64,MATCH(tblXrate[[#This Row],[Currency]],$I$4:$I$64,0)) -> 0.0119760479 | G32: Mexican Peso | H32: 13.6899 | I32: MXN | L32: Ireland | M32: Ireland
B33: DKK | C33: =1/INDEX($H$4:$H$64,MATCH(tblXrate[[#This Row],[Currency]],$I$4:$I$64,0)) -> 0.1709042372 | G33: Nepalese Rupee | H33: 89.65 | I33: NPR | L33: Israel | M33: Israel
B34: IDR | C34: =1/INDEX($H$4:$H$64,MATCH(tblXrate[[#This Row],[Currency]],$I$4:$I$64,0)) -> 0.0001058894662 | G34: New Zealand Dollar | H34: 1.25378 | I34: NZD | L34: France | M34: France
B35: MONGOLIAN | C35: =1/INDEX($H$4:$H$64,MATCH(tblXrate[[#This Row],[Currency]],$I$4:$I$64,0)) -> 0.000756429652 | G35: Norwegian Kroner | H35: 5.90838 | I35: NOK | L35: Colombia | M35: Colombia
B36: JPY | C36: =1/INDEX($H$4:$H$64,MATCH(tblXrate[[#This Row],[Currency]],$I$4:$I$64,0)) -> 0.01267358053 | G36: Omani Rial | H36: 0.3845 | I36: OMR | L36: Switzerland | M36: Switzerland
B37: SAR | C37: =1/INDEX($H$4:$H$64,MATCH(tblXrate[[#This Row],[Currency]],$I$4:$I$64,0)) -> 0.2666666667 | G37: Pakistan Rupee | H37: 94.2144 | I37: PKR | L37: Sri Lanka | M37: Sri Lanka
B38: MAD | C38: =1/INDEX($H$4:$H$64,MATCH(tblXrate[[#This Row],[Currency]],$I$4:$I$64,0)) -> 0.1145475372 | G38: Philippine Peso | H38: 42.1851 | I38: PHP | L38: Belgium | M38: Belgium
B39: MUR | C39: =1/INDEX($H$4:$H$64,MATCH(tblXrate[[#This Row],[Currency]],$I$4:$I$64,0)) -> 0.03255642843 | G39: Qatari Rial | H39: 3.64 | I39: QAR | L39: Dubai | M39: Dubai
B40: NOK | C40: =1/INDEX($H$4:$H$64,MATCH(tblXrate[[#This Row],[Currency]],$I$4:$I$64,0)) -> 0.1692511314 | G40: Romanian Leu | H40: 3.51354 | I40: RON | L40: Ukraine | M40: Ukraine
B41: CHF | C41: =1/INDEX($H$4:$H$64,MATCH(tblXrate[[#This Row],[Currency]],$I$4:$I$64,0)) -> 1.057873062 | G41: Russian Ruble | H41: 32.5458 | I41: RUB | L41: Kuwait | M41: Kuwait
B42: ETB | C42: =1/INDEX($H$4:$H$64,MATCH(tblXrate[[#This Row],[Currency]],$I$4:$I$64,0)) -> 0.05656108597 | G42: Saudi Riyal | H42: 3.75 | I42: SAR | L42: iran | M42: iran
G43: Singapore Dollar | H43: 1.26771 | I43: SGD | L43: Qatar | M43: Qatar
G44: South African Rand | H44: 8.20198 | I44: ZAR | L44: Nigeria | M44: Nigeria
G45: South Korean Won | H45: 1151.09 | I45: KRW | L45: Finland | M45: Finland
G46: Sri Lanka Rupee | H46: 132.907 | I46: LKR | L46: Europe | M46: Europe
G47: Swedish Krona | H47: 6.96111 | I47: SEK | L47: Japan | M47: Japan
G48: Swiss Franc | H48: 0.945293 | I48: CHF | L48: Brasil | M48: Brasil
G49: Taiwan Dollar | H49: 29.8594 | I49: TWD | L49: nz | M49: New Zealand
G50: Thai Baht | H50: 31.5003 | I50: THB | L50: Greece | M50: Greece
G51: Trinidad/Tobago Dollar | H51: 6.39122 | I51: TTD | L51: ksa | M51: USA
G52: Turkish Lira | H52: 1.79447 | I52: TRY | L52: Panama | M52: Panama
G53: Venezuelan Bolivar | H53: 4.29402 | I53: VEF | L53: Turkey | M53: Turkey
G54: UAE Dirham | H54: 3.67351 | I54: AED | L54: Sweden | M54: Sweden
G55: Bangladesh Takha | H55: 81.8274 | I55: BDT | L55: china | M55: china
G56: Costarican CRC | H56: 498.05 | I56: Costarican | L56: Bangladesh | M56: Bangladesh
G57: Egyptian Pound | H57: 6.051 | I57: Egypt | L57: Croatia | M57: Croatia
G58: Nigerian Naira | H58: 162.25 | I58: NAIRA | L58: United Arab Emirates | M58: UAE
G59: Dominican Peso | H59: 38.95 | I59: DOP | L59: MÃ©xico | M59: Mexico
G60: Polish Zloty | H60: 3.32984 | I60: PLN | L60: Zambia | M60: Zambia
G61: Kenyan Shilling | H61: 83.5 | I61: Kenya | L61: Tunisia | M61: Tunisia
G62: Mongolian Tughrik | H62: 1322 | I62: Mongolian | L62: Saudi Arabai | M62: Saudi Arabia
G63: Moroccan Dirham | H63: 8.73 | I63: MAD | L63: Ethiopia | M63: Ethiopia
G64: Ethiopian Birr | H64: 17.68 | I64: ETB | L64: CEE | M64: CEE
L65: SouthAfrica | M65: South Africa
L66: Central America | M66: Central America
L67: Uruguay | M67: Uruguay
L68: Kenya | M68: Kenya
L69: Republica Dominicana | M69: Republica Dominicana
L70: Kingdom of Saudi Arabia | M70: Saudi Arabia
L71: Slovakia | M71: Slovakia
L72: Austria | M72: Austria
L73: Guyana | M73: Guyana
L74: Azerbaijan | M74: Azerbaijan
L75: Bulgaria | M75: Bulgaria
L76: Kuwait | M76: Kuwait
L77: Peru | M77: Peru
L78: Vietnam | M78: Vietnam
L79: Armenia | M79: Armenia
L80: Zimbabwe | M80: Zimbabwe
L81: RSA | M81: South Africa
L82: Libya | M82: Libya
L83: self-employed | M83: self-employed
L84: Lithuania | M84: Lithuania
L85: Somalia | M85: Somalia
L86: Colombia - South America | M86: Colombia
L87: BRA | M87: Brazil
L88: mainland Europe (Euro zone) | M88: Europe
L89: Thailand | M89: Thailand
L90: Continental Europe | M90: CEE
L91: Asia | M91: Asia
L92: Mauritius | M92: Mauritius
L93: Cambodia | M93: Cambodia
L94: Costa Rica | M94: Costa Rica
L95: Viet Nam | M95: Viet Nam
L96: Mongolia | M96: Mongolia
L97: Estonia | M97: Estonia
L98: Montenegro | M98: Montenegro
L99: EU | M99: Europe
L100: Morocco | M100: Morocco
L101: Republic of Georgia | M101: Republic of Georgia
L102: mozambique | M102: mozambique
L103: europe/Croatia | M103: Croatia
L104: Myanmar | M104: Myanmar
L105: Bermuda | M105: Bermuda
L106: Myanmar [Burma] | M106: Myanmar
L107: FR | M107: France
L108: MYS | M108: MYS
L109: Bhutan | M109: Bhutan
L110: Baltic | M110: Baltic
L111: Slovenia | M111: Slovenia
L112: New Zealand | M112: New Zealand
L113: Bolivia | M113: Bolivia
L114: Czech Republic | M114: Czech Republic
L115: Ghana | M115: Ghana
L116: bangkok | M116: Thailand
L117: srilanka | M117: Sri Lanka
L118: NL | M118: Netherlands
L119: Hong Kong | M119: Hong Kong
L120: nld | M120: New Zealand
L121: Aruba | M121: Aruba
L122: DK | M122: Denmark
L123: Iceland | M123: Iceland
L124: Dominican Republic | M124: Dominican Republic
L125: Uganda | M125: Uganda
L126: Oman | M126: Oman
L127: Inonesia | M127: Indonesia
L128: Argentina | M128: Argentina
L129: United Arab Emriate | M129: UAE
L130: Pakistan, Angola | M130: Pakistan
L131: Canad | M131: Canada
L132: Egypt | M132: Egypt
L133: arabian Gulf | M133: arabian Gulf
L134: Paraguay | M134: Paraguay
L135: Latin America | M135: Latin America
L136: Albania | M136: Albania
L137: Lesotho | M137: Lesotho

Sheet Freq Piv (hidden)
A1: Job Type | B1: (All)
A2: Continent | B2: (All)
A4: Row Labels | B4: Sum of Salary in USD
A5: ID1154 | B5: 1783.166904
A6: ID1014 | B6: 1805.773962 | I6: Freqency Data | L6: Chart Data
A7: ID0783 | B7: 1910.535969 | I7: 10000 | J7: =FREQUENCY(B5:B1048576,I7:I17) -> 376 | L7: ="0-"&TEXT(LEFT(I7,2),"#,#") -> 0-10 | M7: =J7 -> 376 | N7: =IF(M7=MAX($M$7:$M$17),M7,NA()) -> 376
A8: ID0659 | B8: 2122.817743 | I8: =I7+10000 -> 20000 | J8: 253 | L8: =LEFT(I7,2)&"-"&TEXT(LEFT(I8,2),"#,#") -> 10-20 | M8: =J8 -> 253 | N8: =IF(M8=MAX($M$7:$M$17),M8,NA()) -> 
A9: ID0685 | B9: 2136.950002 | I9: =I8+10000 -> 30000 | J9: 117 | L9: =LEFT(I8,2)&"-"&TEXT(LEFT(I9,2),"#,#") -> 20-30 | M9: 117
A10: ID0708 | B10: 2136.950002 | I10: 40000 | J10: 138 | L10: 30-40 | M10: 138
A11: ID0766 | B11: 2136.950002 | I11: 50000 | J11: 197 | L11: 40-50 | M11: 197
A12: ID0897 | B12: 2136.950002 | I12: 60000 | J12: 183 | L12: 50-60 | M12: 183
A13: ID1029 | B13: 2136.950002 | I13: =I12+10000 -> 70000 | J13: 141 | L13: 60-70 | M13: 141
A14: ID0723 | B14: 2165.274098 | I14: 80000 | J14: 134 | L14: 70-80 | M14: 134
A15: ID0469 | B15: 2225.989586 | I15: 90000 | J15: 84 | L15: 80-90 | M15: 84
A16: ID1649 | B16: 2225.989586 | I16: =I15+10000 -> 100000 | J16: 79 | L16: 90-10 | M16: 79
A17: ID1791 | B17: 2400 | J17: 181 | L17: =">"&LEFT(I16,3) -> >100 | M17: 181
A18: ID1050 | B18: 2400
A19: ID1082 | B19: 2493.108336
A20: ID1773 | B20: 2493.108336
A21: ID0687 | B21: 2564.340003
A22: ID0093 | B22: 2564.340003
A23: ID0923 | B23: 2564.340003
A24: ID0879 | B24: 2564.340003
A25: ID0818 | B25: 2564.340003
A26: ID0697 | B26: 2671.187503
A27: ID0649 | B27: 2671.187503
A28: ID0794 | B28: 2671.187503
A29: ID1721 | B29: 2671.187503
A30: ID1785 | B30: 2671.187503
A31: ID1132 | B31: 2675.675098
A32: ID0621 | B32: 2849.26667
A33: ID0661 | B33: 2938.306253
A34: ID1904 | B34: 2953.846154
A35: ID0695 | B35: 3000
A36: ID0859 | B36: 3000
A37: ID1317 | B37: 3000
A38: ID1792 | B38: 3000
A39: ID0809 | B39: 3027.345837
A40: ID1026 | B40: 3184.226615
A41: ID1481 | B41: 3200
A42: ID0733 | B42: 3205.425004
A43: ID0904 | B43: 3205.425004
A44: ID0699 | B44: 3205.425004
A45: ID0719 | B45: 3205.425004
A46: ID0924 | B46: 3205.425004
A47: ID0172 | B47: 3205.425004
A48: ID0178 | B48: 3205.425004
A49: ID0297 | B49: 3205.425004
A50: ID1924 | B50: 3205.425004
A51: ID1547 | B51: 3205.425004
A52: ID1112 | B52: 3205.425004
A53: ID1047 | B53: 3205.425004
A54: ID1005 | B54: 3205.425004
A55: ID1753 | B55: 3205.425004
A56: ID1652 | B56: 3360
A57: ID0202 | B57: 3419.120004
A58: ID1683 | B58: 3419.120004
A59: ID0939 | B59: 3480
A60: ID1105 | B60: 3500
A61: ID0230 | B61: 3561.583337
A62: ID0665 | B62: 3561.583337
A63: ID0846 | B63: 3561.583337
A64: ID0848 | B64: 3561.583337
A65: ID0636 | B65: 3561.583337
A66: ID0420 | B66: 3561.583337
A67: ID0497 | B67: 3561.583337
A68: ID1178 | B68: 3561.583337
A69: ID1536 | B69: 3561.583337
A70: ID1065 | B70: 3561.583337
A71: ID1313 | B71: 3561.583337
A72: ID1687 | B72: 3561.583337
A73: ID1046 | B73: 3561.583337
A74: ID1469 | B74: 3561.583337
A75: ID1142 | B75: 3561.583337
A76: ID1066 | B76: 3561.583337
A77: ID1795 | B77: 3600
A78: ID0998 | B78: 3632.815004
A79: ID1330 | B79: 3632.815004
A80: ID0771 | B80: 3650.622921
A81: ID1311 | B81: 3739.662504
A82: ID1125 | B82: 3739.662504
A83: ID1036 | B83: 3739.662504
A84: ID0347 | B84: 3800
A85: ID0682 | B85: 3917.741671
A86: ID0775 | B86: 3917.741671
A87: ID0901 | B87: 3982.448779
A88: ID0653 | B88: 4000
A89: ID0625 | B89: 4000
A90: ID0647 | B90: 4000
A91: ID1902 | B91: 4000
A92: ID1479 | B92: 4000
A93: ID0758 | B93: 4006.781255
A94: ID1645 | B94: 4019
A95: ID0668 | B95: 4095.820838
A96: ID1474 | B96: 4095.820838
A97: ID0197 | B97: 4149.244588
A98: ID0629 | B98: 4200
A99: ID0754 | B99: 4273.900005
A100: ID0813 | B100: 4273.900005
A101: ID0760 | B101: 4273.900005
A102: ID0787 | B102: 4273.900005
A103: ID0603 | B103: 4273.900005
A104: ID0427 | B104: 4273.900005
A105: ID1660 | B105: 4273.900005
A106: ID1099 | B106: 4273.900005
A107: ID1089 | B107: 4273.900005
A108: ID0576 | B108: 4285
A109: ID1124 | B109: 4314.929445
A110: ID0054 | B110: 4320
A111: ID1447 | B111: 4356
A112: ID1221 | B112: 4400
A113: ID0678 | B113: 4451.979172
A114: ID0696 | B114: 4451.979172
A115: ID0726 | B115: 4451.979172
A116: ID1390 | B116: 4451.979172
A117: ID1916 | B117: 4451.979172
A118: ID1207 | B118: 4451.979172
A119: ID1903 | B119: 4451.979172
A120: ID1360 | B120: 4451.979172
A121: ID1090 | B121: 4451.979172
A122: ID1464 | B122: 4451.979172
A123: ID1078 | B123: 4451.979172
A124: ID1590 | B124: 4451.979172
A125: ID0886 | B125: 4457.917261
A126: ID1048 | B126: 4487.595005
A127: ID1123 | B127: 4487.595005
A128: ID0872 | B128: 4500
A129: ID1591 | B129: 4500
A130: ID0324 | B130: 4545
A131: ID1745 | B131: 4594.442505
A132: ID0684 | B132: 4630.058339
A133: ID0742 | B133: 4800
A134: ID1212 | B134: 4800
A135: ID1819 | B135: 4800
A136: ID1860 | B136: 4808.137506
A137: ID1034 | B137: 4840.024455
A138: ID0201 | B138: 4897.177089
A139: ID1334 | B139: 4897.177089
A140: ID0669 | B140: 4914.985006
A141: ID0267 | B141: 4914.985006
A142: ID1914 | B142: 4914.985006
A143: ID1503 | B143: 4950.600839
A144: ID0698 | B144: 4957.724006
A145: ID1818 | B145: 4986.216672
A146: ID0448 | B146: 5000
A147: ID0864 | B147: 5000
A148: ID0847 | B148: 5000
A149: ID1912 | B149: 5000
A150: ID1497 | B150: 5000
A151: ID1892 | B151: 5000
A152: ID1887 | B152: 5000
A153: ID0738 | B153: 5022
A154: ID1245 | B154: 5082.694379
A155: ID1067 | B155: 5100
A156: ID1136 | B156: 5120.291288
A157: ID0467 | B157: 5250
A158: ID1350 | B158: 5300
A159: ID1771 | B159: 5320
A160: ID0442 | B160: 5342.375006
A161: ID0664 | B161: 5342.375006
A162: ID0773 | B162: 5342.375006
A163: ID0881 | B163: 5342.375006
A164: ID0644 | B164: 5342.375006
A165: ID0919 | B165: 5342.375006
A166: ID0701 | B166: 5342.375006
A167: ID0406 | B167: 5342.375006
A168: ID0639 | B168: 5342.375006
A169: ID0691 | B169: 5342.375006
A170: ID1448 | B170: 5342.375006
A171: ID1658 | B171: 5342.375006
A172: ID1069 | B172: 5342.375006
A173: ID1032 | B173: 5342.375006
A174: ID1338 | B174: 5342.375006
A175: ID1289 | B175: 5342.375006
A176: ID1230 | B176: 5342.375006
A177: ID1114 | B177: 5342.375006
A178: ID0654 | B178: 5400
A179: ID1324 | B179: 5591.68584
A180: ID1578 | B180: 5689.212542
A181: ID1663 | B181: 5698.53334
A182: ID1462 | B182: 5698.53334
A183: ID1632 | B183: 5698.53334
A184: ID0676 | B184: 5787.572923
A185: ID0667 | B185: 5800
A186: ID0001 | B186: 5846
A187: ID0141 | B187: 5983.460007
A188: ID0577 | B188: 6000
A189: ID0750 | B189: 6000
A190: ID0492 | B190: 6000
A191: ID0841 | B191: 6000
A192: ID1151 | B192: 6000
A193: ID1160 | B193: 6000
A194: ID1732 | B194: 6000
A195: ID1039 | B195: 6000
A196: ID1601 | B196: 6000
A197: ID1651 | B197: 6054.691674
A198: ID0222 | B198: 6232.770841
A199: ID1301 | B199: 6232.770841
A200: ID1879 | B200: 6232.770841
A201: ID1894 | B201: 6232.770841
... 1686 more rows

Sheet Data (hidden)
B1: Excel Salary Survey Data | H1: 12
B3: Note: Experience data is not available for first few hundred rows.
B5: Unique ID | C5: Timestamp | D5: Date Only | E5: Your Salary | F5: clean Salary (in local currency) | G5: Currency | H5: Salary in USD | I5: Your Job Title | J5: Job Type | K5: Where do you work | L5: clean Country | M5: Continent | N5: How many hours of a day you work on Excel | O5: Years of Experience
B6: ID0001 | C6: 2012-05-25T03:11:32 | D6: =LEFT(tblSalaries[[#This Row],[Timestamp]],FIND(".",tblSalaries[[#This Row],[Timestamp]],1)) -> 41054. | E6: 5846 | F6: 5846 | G6: USD | H6: =tblSalaries[[#This Row],[clean Salary (in local currency)]]*VLOOKUP(tblSalaries[[#This Row],[Currency]],tblXrate[],2,FALSE) -> 5846 | I6: MIS Analyst | J6: Analyst | K6: India | L6: =VLOOKUP(tblSalaries[[#This Row],[Where do you work]],tblCountries[[Actual]:[Mapping]],2,FALSE) -> India | M6: =VLOOKUP(tblSalaries[[#This Row],[clean Country]]&"*",Cont_Table,2,0) -> Asia | N6: 4 to 6 hours a day
B7: ID0002 | C7: 2012-05-25T03:13:13 | D7: =LEFT(tblSalaries[[#This Row],[Timestamp]],FIND(".",tblSalaries[[#This Row],[Timestamp]],1)) -> 41054. | E7: 15000 usd | F7: 15000 | G7: USD | H7: =tblSalaries[[#This Row],[clean Salary (in local currency)]]*VLOOKUP(tblSalaries[[#This Row],[Currency]],tblXrate[],2,FALSE) -> 15000 | I7: cost control | J7: Controller | K7: europe/Croatia | L7: =VLOOKUP(tblSalaries[[#This Row],[Where do you work]],tblCountries[[Actual]:[Mapping]],2,FALSE) -> Croatia | M7: =VLOOKUP(tblSalaries[[#This Row],[clean Country]]&"*",Cont_Table,2,0) -> Europe | N7: All the 8 hours baby, all the 8!
B8: ID0003 | C8: 2012-05-25T03:16:26 | D8: =LEFT(tblSalaries[[#This Row],[Timestamp]],FIND(".",tblSalaries[[#This Row],[Timestamp]],1)) -> 41054. | E8: 58000 | F8: 58000 | G8: USD | H8: =tblSalaries[[#This Row],[clean Salary (in local currency)]]*VLOOKUP(tblSalaries[[#This Row],[Currency]],tblXrate[],2,FALSE) -> 58000 | I8: Financial Analyst | J8: Analyst | K8: USA | L8: =VLOOKUP(tblSalaries[[#This Row],[Where do you work]],tblCountries[[Actual]:[Mapping]],2,FALSE) -> USA | M8: =VLOOKUP(tblSalaries[[#This Row],[clean Country]]&"*",Cont_Table,2,0) -> North America | N8: All the 8 hours baby, all the 8!
B9: ID0004 | C9: 2012-05-25T03:23:42 | D9: =LEFT(tblSalaries[[#This Row],[Timestamp]],FIND(".",tblSalaries[[#This Row],[Timestamp]],1)) -> 41054. | E9: 48000 | F9: 48000 | G9: USD | H9: =tblSalaries[[#This Row],[clean Salary (in local currency)]]*VLOOKUP(tblSalaries[[#This Row],[Currency]],tblXrate[],2,FALSE) -> 48000 | I9: Quality Control | J9: Controller | K9: Pakistan | L9: =VLOOKUP(tblSalaries[[#This Row],[Where do you work]],tblCountries[[Actual]:[Mapping]],2,FALSE) -> Pakistan | M9: =VLOOKUP(tblSalaries[[#This Row],[clean Country]]&"*",Cont_Table,2,0) -> Asia | N9: 2 to 3 hours per day
B10: ID0005 | C10: 2012-05-25T03:27:04 | D10: =LEFT(tblSalaries[[#This Row],[Timestamp]],FIND(".",tblSalaries[[#This Row],[Timestamp]],1)) -> 41054. | E10: 54000 | F10: 54000 | G10: USD | H10: =tblSalaries[[#This Row],[clean Salary (in local currency)]]*VLOOKUP(tblSalaries[[#This Row],[Currency]],tblXrate[],2,FALSE) -> 54000 | I10: Quality Engineer | J10: Engineer | K10: USA | L10: =VLOOKUP(tblSalaries[[#This Row],[Where do you work]],tblCountries[[Actual]:[Mapping]],2,FALSE) -> USA | M10: =VLOOKUP(tblSalaries[[#This Row],[clean Country]]&"*",Cont_Table,2,0) -> North America | N10: All the 8 hours baby, all the 8!
B11: ID0006 | C11: 2012-05-25T03:28:28 | D11: =LEFT(tblSalaries[[#This Row],[Timestamp]],FIND(".",tblSalaries[[#This Row],[Timestamp]],1)) -> 41054. | E11: 41731 | F11: 41731 | G11: USD | H11: =tblSalaries[[#This Row],[clean Salary (in local currency)]]*VLOOKUP(tblSalaries[[#This Row],[Currency]],tblXrate[],2,FALSE) -> 41731 | I11: Analyst | J11: Analyst | K11: Iceland | L11: =VLOOKUP(tblSalaries[[#This Row],[Where do you work]],tblCountries[[Actual]:[Mapping]],2,FALSE) -> Iceland | M11: =VLOOKUP(tblSalaries[[#This Row],[clean Country]]&"*",Cont_Table,2,0) -> Europe | N11: All the 8 hours baby, all the 8!
B12: ID0007 | C12: 2012-05-25T03:33:51 | D12: =LEFT(tblSalaries[[#This Row],[Timestamp]],FIND(".",tblSalaries[[#This Row],[Timestamp]],1)) -> 41054. | E12: 145000 | F12: 145000 | G12: EUR | H12: =tblSalaries[[#This Row],[clean Salary (in local currency)]]*VLOOKUP(tblSalaries[[#This Row],[Currency]],tblXrate[],2,FALSE) -> 184207.9187 | I12: senior project manager | J12: Manager | K12: Germany | L12: =VLOOKUP(tblSalaries[[#This Row],[Where do you work]],tblCountries[[Actual]:[Mapping]],2,FALSE) -> Germany | M12: =VLOOKUP(tblSalaries[[#This Row],[clean Country]]&"*",Cont_Table,2,0) -> Europe | N12: 1 or 2 hours a day
B13: ID0008 | C13: 2012-05-25T03:36:37 | D13: =LEFT(tblSalaries[[#This Row],[Timestamp]],FIND(".",tblSalaries[[#This Row],[Timestamp]],1)) -> 41054. | E13: 12000 | F13: 12000 | G13: USD | H13: =tblSalaries[[#This Row],[clean Salary (in local currency)]]*VLOOKUP(tblSalaries[[#This Row],[Currency]],tblXrate[],2,FALSE) -> 12000 | I13: Assistant SP&A | J13: Analyst | K13: Ukraine | L13: =VLOOKUP(tblSalaries[[#This Row],[Where do you work]],tblCountries[[Actual]:[Mapping]],2,FALSE) -> Ukraine | M13: =VLOOKUP(tblSalaries[[#This Row],[clean Country]]&"*",Cont_Table,2,0) -> Europe | N13: All the 8 hours baby, all the 8!
B14: ID0009 | C14: 2012-05-25T03:37:17 | D14: =LEFT(tblSalaries[[#This Row],[Timestamp]],FIND(".",tblSalaries[[#This Row],[Timestamp]],1)) -> 41054. | E14: 44000 $ | F14: 44000 | G14: USD | H14: =tblSalaries[[#This Row],[clean Salary (in local currency)]]*VLOOKUP(tblSalaries[[#This Row],[Currency]],tblXrate[],2,FALSE) -> 44000 | I14: CFO | J14: CXO or Top Mgmt. | K14: Portugal | L14: =VLOOKUP(tblSalaries[[#This Row],[Where do you work]],tblCountries[[Actual]:[Mapping]],2,FALSE) -> Portugal | M14: =VLOOKUP(tblSalaries[[#This Row],[clean Country]]&"*",Cont_Table,2,0) -> Europe | N14: 1 or 2 hours a day
B15: ID0010 | C15: 2012-05-25T03:38:57 | D15: =LEFT(tblSalaries[[#This Row],[Timestamp]],FIND(".",tblSalaries[[#This Row],[Timestamp]],1)) -> 41054. | E15: PKR 8,000 | F15: 1152000 | G15: PKR | H15: =tblSalaries[[#This Row],[clean Salary (in local currency)]]*VLOOKUP(tblSalaries[[#This Row],[Currency]],tblXrate[],2,FALSE) -> 12227.4302 | I15: Audit Trainee | J15: Accountant | K15: Pakistan | L15: =VLOOKUP(tblSalaries[[#This Row],[Where do you work]],tblCountries[[Actual]:[Mapping]],2,FALSE) -> Pakistan | M15: =VLOOKUP(tblSalaries[[#This Row],[clean Country]]&"*",Cont_Table,2,0) -> Asia | N15: All the 8 hours baby, all the 8!
B16: ID0011 | C16: 2012-05-25T03:43:45 | D16: =LEFT(tblSalaries[[#This Row],[Timestamp]],FIND(".",tblSalaries[[#This Row],[Timestamp]],1)) -> 41054. | E16: â‚¬ 51650 | F16: 51650 | G16: EUR | H16: =tblSalaries[[#This Row],[clean Salary (in local currency)]]*VLOOKUP(tblSalaries[[#This Row],[Currency]],tblXrate[],2,FALSE) -> 65616.13102 | I16: Training Specialist | J16: Specialist | K16: Ireland | L16: =VLOOKUP(tblSalaries[[#This Row],[Where do you work]],tblCountries[[Actual]:[Mapping]],2,FALSE) -> Ireland | M16: =VLOOKUP(tblSalaries[[#This Row],[clean Country]]&"*",Cont_Table,2,0) -> Europe | N16: 2 to 3 hours per day
B17: ID0012 | C17: 2012-05-25T03:43:56 | D17: =LEFT(tblSalaries[[#This Row],[Timestamp]],FIND(".",tblSalaries[[#This Row],[Timestamp]],1)) -> 41054. | E17: 14000 | F17: 14000 | G17: USD | H17: =tblSalaries[[#This Row],[clean Salary (in local currency)]]*VLOOKUP(tblSalaries[[#This Row],[Currency]],tblXrate[],2,FALSE) -> 14000 | I17: quality engineer | J17: Engineer | K17: Hungary | L17: =VLOOKUP(tblSalaries[[#This Row],[Where do you work]],tblCountries[[Actual]:[Mapping]],2,FALSE) -> Hungary | M17: =VLOOKUP(tblSalaries[[#This Row],[clean Country]]&"*",Cont_Table,2,0) -> Europe | N17: 4 to 6 hours a day
B18: ID0013 | C18: 2012-05-25T03:48:53 | D18: =LEFT(tblSalaries[[#This Row],[Timestamp]],FIND(".",tblSalaries[[#This Row],[Timestamp]],1)) -> 41054. | E18: 749000 INR | F18: 749000 | G18: INR | H18: =tblSalaries[[#This Row],[clean Salary (in local currency)]]*VLOOKUP(tblSalaries[[#This Row],[Currency]],tblXrate[],2,FALSE) -> 13338.1296 | I18: Senion Analyst | J18: Analyst | K18: India | L18: =VLOOKUP(tblSalaries[[#This Row],[Where do you work]],tblCountries[[Actual]:[Mapping]],2,FALSE) -> India | M18: =VLOOKUP(tblSalaries[[#This Row],[clean Country]]&"*",Cont_Table,2,0) -> Asia | N18: All the 8 hours baby, all the 8!
B19: ID0014 | C19: 2012-05-25T03:50:58 | D19: =LEFT(tblSalaries[[#This Row],[Timestamp]],FIND(".",tblSalaries[[#This Row],[Timestamp]],1)) -> 41054. | E19: 49000 | F19: 49000 | G19: USD | H19: =tblSalaries[[#This Row],[clean Salary (in local currency)]]*VLOOKUP(tblSalaries[[#This Row],[Currency]],tblXrate[],2,FALSE) -> 49000 | I19: business analyst | J19: Analyst | K19: USA | L19: =VLOOKUP(tblSalaries[[#This Row],[Where do you work]],tblCountries[[Actual]:[Mapping]],2,FALSE) -> USA | M19: =VLOOKUP(tblSalaries[[#This Row],[clean Country]]&"*",Cont_Table,2,0) -> North America | N19: All the 8 hours baby, all the 8!
B20: ID0015 | C20: 2012-05-25T03:53:22 | D20: =LEFT(tblSalaries[[#This Row],[Timestamp]],FIND(".",tblSalaries[[#This Row],[Timestamp]],1)) -> 41054. | E20: 85000 | F20: 85000 | G20: USD | H20: =tblSalaries[[#This Row],[clean Salary (in local currency)]]*VLOOKUP(tblSalaries[[#This Row],[Currency]],tblXrate[],2,FALSE) -> 85000 | I20: Project Engineer | J20: Engineer | K20: USA | L20: =VLOOKUP(tblSalaries[[#This Row],[Where do you work]],tblCountries[[Actual]:[Mapping]],2,FALSE) -> USA | M20: =VLOOKUP(tblSalaries[[#This Row],[clean Country]]&"*",Cont_Table,2,0) -> North America | N20: 1 or 2 hours a day
B21: ID0016 | C21: 2012-05-25T03:56:40 | D21: =LEFT(tblSalaries[[#This Row],[Timestamp]],FIND(".",tblSalaries[[#This Row],[Timestamp]],1)) -> 41054. | E21: 75000 | F21: 75000 | G21: USD | H21: =tblSalaries[[#This Row],[clean Salary (in local currency)]]*VLOOKUP(tblSalaries[[#This Row],[Currency]],tblXrate[],2,FALSE) -> 75000 | I21: Sr Project Engineer | J21: Engineer | K21: USA | L21: =VLOOKUP(tblSalaries[[#This Row],[Where do you work]],tblCountries[[Actual]:[Mapping]],2,FALSE) -> USA | M21: =VLOOKUP(tblSalaries[[#This Row],[clean Country]]&"*",Cont_Table,2,0) -> North America | N21: All the 8 hours baby, all the 8!
B22: ID0017 | C22: 2012-05-25T04:10:11 | D22: =LEFT(tblSalaries[[#This Row],[Timestamp]],FIND(".",tblSalaries[[#This Row],[Timestamp]],1)) -> 41054. | E22: 107000 | F22: 107000 | G22: USD | H22: =tblSalaries[[#This Row],[clean Salary (in local currency)]]*VLOOKUP(tblSalaries[[#This Row],[Currency]],tblXrate[],2,FALSE) -> 107000 | I22: Business Development | J22: Manager | K22: Switzerland | L22: =VLOOKUP(tblSalaries[[#This Row],[Where do you work]],tblCountries[[Actual]:[Mapping]],2,FALSE) -> Switzerland | M22: =VLOOKUP(tblSalaries[[#This Row],[clean Country]]&"*",Cont_Table,2,0) -> Europe | N22: 4 to 6 hours a day
B23: ID0018 | C23: 2012-05-25T04:10:44 | D23: =LEFT(tblSalaries[[#This Row],[Timestamp]],FIND(".",tblSalaries[[#This Row],[Timestamp]],1)) -> 41054. | E23: 45000 | F23: 45000 | G23: USD | H23: =tblSalaries[[#This Row],[clean Salary (in local currency)]]*VLOOKUP(tblSalaries[[#This Row],[Currency]],tblXrate[],2,FALSE) -> 45000 | I23: Excel Report Writer | J23: Reporting | K23: South Africa | L23: =VLOOKUP(tblSalaries[[#This Row],[Where do you work]],tblCountries[[Actual]:[Mapping]],2,FALSE) -> South Africa | M23: =VLOOKUP(tblSalaries[[#This Row],[clean Country]]&"*",Cont_Table,2,0) -> Africa | N23: All the 8 hours baby, all the 8!
B24: ID0019 | C24: 2012-05-25T04:16:32 | D24: =LEFT(tblSalaries[[#This Row],[Timestamp]],FIND(".",tblSalaries[[#This Row],[Timestamp]],1)) -> 41054. | E24: 550000 | F24: 550000 | G24: INR | H24: =tblSalaries[[#This Row],[clean Salary (in local currency)]]*VLOOKUP(tblSalaries[[#This Row],[Currency]],tblXrate[],2,FALSE) -> 9794.354178 | I24: AGM | J24: Manager | K24: India | L24: =VLOOKUP(tblSalaries[[#This Row],[Where do you work]],tblCountries[[Actual]:[Mapping]],2,FALSE) -> India | M24: =VLOOKUP(tblSalaries[[#This Row],[clean Country]]&"*",Cont_Table,2,0) -> Asia | N24: 2 to 3 hours per day
B25: ID0020 | C25: 2012-05-25T04:19:22 | D25: =LEFT(tblSalaries[[#This Row],[Timestamp]],FIND(".",tblSalaries[[#This Row],[Timestamp]],1)) -> 41054. | E25: 50000 | F25: 50000 | G25: USD | H25: =tblSalaries[[#This Row],[clean Salary (in local currency)]]*VLOOKUP(tblSalaries[[#This Row],[Currency]],tblXrate[],2,FALSE) -> 50000 | I25: GM | J25: Manager | K25: India | L25: =VLOOKUP(tblSalaries[[#This Row],[Where do you work]],tblCountries[[Actual]:[Mapping]],2,FALSE) -> India | M25: =VLOOKUP(tblSalaries[[#This Row],[clean Country]]&"*",Cont_Table,2,0) -> Asia | N25: 1 or 2 hours a day
B26: ID0021 | C26: 2012-05-25T04:24:01 | D26: =LEFT(tblSalaries[[#This Row],[Timestamp]],FIND(".",tblSalaries[[#This Row],[Timestamp]],1)) -> 41054. | E26: 13500 | F26: 13500 | G26: USD | H26: =tblSalaries[[#This Row],[clean Salary (in local currency)]]*VLOOKUP(tblSalaries[[#This Row],[Currency]],tblXrate[],2,FALSE) -> 13500 | I26: DSE Co-ordinator | J26: Manager | K26: India | L26: =VLOOKUP(tblSalaries[[#This Row],[Where do you work]],tblCountries[[Actual]:[Mapping]],2,FALSE) -> India | M26: =VLOOKUP(tblSalaries[[#This Row],[clean Country]]&"*",Cont_Table,2,0) -> Asia | N26: 4 to 6 hours a day
B27: ID0022 | C27: 2012-05-25T04:24:12 | D27: =LEFT(tblSalaries[[#This Row],[Timestamp]],FIND(".",tblSalaries[[#This Row],[Timestamp]],1)) -> 41054. | E27: 96000 | F27: 96000 | G27: USD | H27: =tblSalaries[[#This Row],[clean Salary (in local currency)]]*VLOOKUP(tblSalaries[[#This Row],[Currency]],tblXrate[],2,FALSE) -> 96000 | I27: Analyst | J27: Analyst | K27: USA | L27: =VLOOKUP(tblSalaries[[#This Row],[Where do you work]],tblCountries[[Actual]:[Mapping]],2,FALSE) -> USA | M27: =VLOOKUP(tblSalaries[[#This Row],[clean Country]]&"*",Cont_Table,2,0) -> North America | N27: 2 to 3 hours per day
B28: ID0023 | C28: 2012-05-25T04:31:41 | D28: =LEFT(tblSalaries[[#This Row],[Timestamp]],FIND(".",tblSalaries[[#This Row],[Timestamp]],1)) -> 41054. | E28: 1000000 | F28: 1000000 | G28: INR | H28: =tblSalaries[[#This Row],[clean Salary (in local currency)]]*VLOOKUP(tblSalaries[[#This Row],[Currency]],tblXrate[],2,FALSE) -> 17807.91669 | I28: Manager | J28: Manager | K28: India | L28: =VLOOKUP(tblSalaries[[#This Row],[Where do you work]],tblCountries[[Actual]:[Mapping]],2,FALSE) -> India | M28: =VLOOKUP(tblSalaries[[#This Row],[clean Country]]&"*",Cont_Table,2,0) -> Asia | N28: 4 to 6 hours a day
B29: ID0024 | C29: 2012-05-25T04:32:49 | D29: =LEFT(tblSalaries[[#This Row],[Timestamp]],FIND(".",tblSalaries[[#This Row],[Timestamp]],1)) -> 41054. | E29: 75000 | F29: 75000 | G29: USD | H29: =tblSalaries[[#This Row],[clean Salary (in local currency)]]*VLOOKUP(tblSalaries[[#This Row],[Currency]],tblXrate[],2,FALSE) -> 75000 | I29: Marketing Director | J29: CXO or Top Mgmt. | K29: USA | L29: =VLOOKUP(tblSalaries[[#This Row],[Where do you work]],tblCountries[[Actual]:[Mapping]],2,FALSE) -> USA | M29: =VLOOKUP(tblSalaries[[#This Row],[clean Country]]&"*",Cont_Table,2,0) -> North America | N29: 4 to 6 hours a day
B30: ID0025 | C30: 2012-05-25T04:43:51 | D30: =LEFT(tblSalaries[[#This Row],[Timestamp]],FIND(".",tblSalaries[[#This Row],[Timestamp]],1)) -> 41054. | E30: 40000 us | F30: 40000 | G30: USD | H30: =tblSalaries[[#This Row],[clean Salary (in local currency)]]*VLOOKUP(tblSalaries[[#This Row],[Currency]],tblXrate[],2,FALSE) -> 40000 | I30: sales and marketing | J30: Manager | K30: USA | L30: =VLOOKUP(tblSalaries[[#This Row],[Where do you work]],tblCountries[[Actual]:[Mapping]],2,FALSE) -> USA | M30: =VLOOKUP(tblSalaries[[#This Row],[clean Country]]&"*",Cont_Table,2,0) -> North America | N30: 2 to 3 hours per day
B31: ID0026 | C31: 2012-05-25T04:45:01 | D31: =LEFT(tblSalaries[[#This Row],[Timestamp]],FIND(".",tblSalaries[[#This Row],[Timestamp]],1)) -> 41054. | E31: 60000 | F31: 60000 | G31: USD | H31: =tblSalaries[[#This Row],[clean Salary (in local currency)]]*VLOOKUP(tblSalaries[[#This Row],[Currency]],tblXrate[],2,FALSE) -> 60000 | I31: Analyst II | J31: Analyst | K31: USA | L31: =VLOOKUP(tblSalaries[[#This Row],[Where do you work]],tblCountries[[Actual]:[Mapping]],2,FALSE) -> USA | M31: =VLOOKUP(tblSalaries[[#This Row],[clean Country]]&"*",Cont_Table,2,0) -> North America | N31: All the 8 hours baby, all the 8!
B32: ID0028 | C32: 2012-05-25T04:48:33 | D32: =LEFT(tblSalaries[[#This Row],[Timestamp]],FIND(".",tblSalaries[[#This Row],[Timestamp]],1)) -> 41054. | E32: 2700 | F32: 32400 | G32: EUR | H32: =tblSalaries[[#This Row],[clean Salary (in local currency)]]*VLOOKUP(tblSalaries[[#This Row],[Currency]],tblXrate[],2,FALSE) -> 41160.94182 | I32: Project Leader | J32: Manager | K32: Belgium | L32: =VLOOKUP(tblSalaries[[#This Row],[Where do you work]],tblCountries[[Actual]:[Mapping]],2,FALSE) -> Belgium | M32: =VLOOKUP(tblSalaries[[#This Row],[clean Country]]&"*",Cont_Table,2,0) -> Europe | N32: 4 to 6 hours a day
B33: ID0029 | C33: 2012-05-25T04:52:23 | D33: =LEFT(tblSalaries[[#This Row],[Timestamp]],FIND(".",tblSalaries[[#This Row],[Timestamp]],1)) -> 41054. | E33: 900000 INR | F33: 900000 | G33: INR | H33: =tblSalaries[[#This Row],[clean Salary (in local currency)]]*VLOOKUP(tblSalaries[[#This Row],[Currency]],tblXrate[],2,FALSE) -> 16027.12502 | I33: Applications Engineer | J33: Engineer | K33: India | L33: =VLOOKUP(tblSalaries[[#This Row],[Where do you work]],tblCountries[[Actual]:[Mapping]],2,FALSE) -> India | M33: =VLOOKUP(tblSalaries[[#This Row],[clean Country]]&"*",Cont_Table,2,0) -> Asia | N33: 1 or 2 hours a day
B34: ID0030 | C34: 2012-05-25T04:55:35 | D34: =LEFT(tblSalaries[[#This Row],[Timestamp]],FIND(".",tblSalaries[[#This Row],[Timestamp]],1)) -> 41054. | E34: Rs 600000 | F34: 600000 | G34: INR | H34: =tblSalaries[[#This Row],[clean Salary (in local currency)]]*VLOOKUP(tblSalaries[[#This Row],[Currency]],tblXrate[],2,FALSE) -> 10684.75001 | I34: strategy manager | J34: Manager | K34: India | L34: =VLOOKUP(tblSalaries[[#This Row],[Where do you work]],tblCountries[[Actual]:[Mapping]],2,FALSE) -> India | M34: =VLOOKUP(tblSalaries[[#This Row],[clean Country]]&"*",Cont_Table,2,0) -> Asia | N34: 4 to 6 hours a day
B35: ID0031 | C35: 2012-05-25T04:55:48 | D35: =LEFT(tblSalaries[[#This Row],[Timestamp]],FIND(".",tblSalaries[[#This Row],[Timestamp]],1)) -> 41054. | E35: 41000 | F35: 41000 | G35: USD | H35: =tblSalaries[[#This Row],[clean Salary (in local currency)]]*VLOOKUP(tblSalaries[[#This Row],[Currency]],tblXrate[],2,FALSE) -> 41000 | I35: Chief of the department of public budget analisis and forecasting | J35: Manager | K35: Russia | L35: =VLOOKUP(tblSalaries[[#This Row],[Where do you work]],tblCountries[[Actual]:[Mapping]],2,FALSE) -> Russia | M35: =VLOOKUP(tblSalaries[[#This Row],[clean Country]]&"*",Cont_Table,2,0) -> Asia | N35: All the 8 hours baby, all the 8!
B36: ID0032 | C36: 2012-05-25T04:57:06 | D36: =LEFT(tblSalaries[[#This Row],[Timestamp]],FIND(".",tblSalaries[[#This Row],[Timestamp]],1)) -> 41054. | E36: 360000 INR | F36: 360000 | G36: INR | H36: =tblSalaries[[#This Row],[clean Salary (in local currency)]]*VLOOKUP(tblSalaries[[#This Row],[Currency]],tblXrate[],2,FALSE) -> 6410.850007 | I36: Specialist | J36: Specialist | K36: India | L36: =VLOOKUP(tblSalaries[[#This Row],[Where do you work]],tblCountries[[Actual]:[Mapping]],2,FALSE) -> India | M36: =VLOOKUP(tblSalaries[[#This Row],[clean Country]]&"*",Cont_Table,2,0) -> Asia | N36: 4 to 6 hours a day
B37: ID0033 | C37: 2012-05-25T04:58:45 | D37: =LEFT(tblSalaries[[#This Row],[Timestamp]],FIND(".",tblSalaries[[#This Row],[Timestamp]],1)) -> 41054. | E37: Â£35000 | F37: 35000 | G37: GBP | H37: =tblSalaries[[#This Row],[clean Salary (in local currency)]]*VLOOKUP(tblSalaries[[#This Row],[Currency]],tblXrate[],2,FALSE) -> 55166.23952 | I37: Management Information Analyst | J37: Analyst | K37: UK | L37: =VLOOKUP(tblSalaries[[#This Row],[Where do you work]],tblCountries[[Actual]:[Mapping]],2,FALSE) -> UK | M37: =VLOOKUP(tblSalaries[[#This Row],[clean Country]]&"*",Cont_Table,2,0) -> Europe | N37: All the 8 hours baby, all the 8!
B38: ID0035 | C38: 2012-05-25T05:01:09 | D38: =LEFT(tblSalaries[[#This Row],[Timestamp]],FIND(".",tblSalaries[[#This Row],[Timestamp]],1)) -> 41054. | E38: 1600 $ | F38: 19200 | G38: USD | H38: =tblSalaries[[#This Row],[clean Salary (in local currency)]]*VLOOKUP(tblSalaries[[#This Row],[Currency]],tblXrate[],2,FALSE) -> 19200 | I38: Analyst | J38: Analyst | K38: Poland | L38: =VLOOKUP(tblSalaries[[#This Row],[Where do you work]],tblCountries[[Actual]:[Mapping]],2,FALSE) -> Poland | M38: =VLOOKUP(tblSalaries[[#This Row],[clean Country]]&"*",Cont_Table,2,0) -> Europe | N38: 2 to 3 hours per day
B39: ID0036 | C39: 2012-05-25T05:04:12 | D39: =LEFT(tblSalaries[[#This Row],[Timestamp]],FIND(".",tblSalaries[[#This Row],[Timestamp]],1)) -> 41054. | E39: 500000 | F39: 500000 | G39: INR | H39: =tblSalaries[[#This Row],[clean Salary (in local currency)]]*VLOOKUP(tblSalaries[[#This Row],[Currency]],tblXrate[],2,FALSE) -> 8903.958344 | I39: Senior Consultant | J39: Consultant | K39: India | L39: =VLOOKUP(tblSalaries[[#This Row],[Where do you work]],tblCountries[[Actual]:[Mapping]],2,FALSE) -> India | M39: =VLOOKUP(tblSalaries[[#This Row],[clean Country]]&"*",Cont_Table,2,0) -> Asia | N39: All the 8 hours baby, all the 8!
B40: ID0037 | C40: 2012-05-25T05:07:31 | D40: =LEFT(tblSalaries[[#This Row],[Timestamp]],FIND(".",tblSalaries[[#This Row],[Timestamp]],1)) -> 41054. | E40: 150000 | F40: 150000 | G40: USD | H40: =tblSalaries[[#This Row],[clean Salary (in local currency)]]*VLOOKUP(tblSalaries[[#This Row],[Currency]],tblXrate[],2,FALSE) -> 150000 | I40: Portfolio Manager | J40: Manager | K40: USA | L40: =VLOOKUP(tblSalaries[[#This Row],[Where do you work]],tblCountries[[Actual]:[Mapping]],2,FALSE) -> USA | M40: =VLOOKUP(tblSalaries[[#This Row],[clean Country]]&"*",Cont_Table,2,0) -> North America | N40: 2 to 3 hours per day
B41: ID0038 | C41: 2012-05-25T05:10:29 | D41: =LEFT(tblSalaries[[#This Row],[Timestamp]],FIND(".",tblSalaries[[#This Row],[Timestamp]],1)) -> 41054. | E41: 69000 | F41: 69000 | G41: USD | H41: =tblSalaries[[#This Row],[clean Salary (in local currency)]]*VLOOKUP(tblSalaries[[#This Row],[Currency]],tblXrate[],2,FALSE) -> 69000 | I41: Design Engineer | J41: Engineer | K41: USA | L41: =VLOOKUP(tblSalaries[[#This Row],[Where do you work]],tblCountries[[Actual]:[Mapping]],2,FALSE) -> USA | M41: =VLOOKUP(tblSalaries[[#This Row],[clean Country]]&"*",Cont_Table,2,0) -> North America | N41: 4 to 6 hours a day
B42: ID0039 | C42: 2012-05-25T05:11:37 | D42: =LEFT(tblSalaries[[#This Row],[Timestamp]],FIND(".",tblSalaries[[#This Row],[Timestamp]],1)) -> 41054. | E42: 30000 | F42: 30000 | G42: USD | H42: =tblSalaries[[#This Row],[clean Salary (in local currency)]]*VLOOKUP(tblSalaries[[#This Row],[Currency]],tblXrate[],2,FALSE) -> 30000 | I42: Academic Advisor | J42: Consultant | K42: USA | L42: =VLOOKUP(tblSalaries[[#This Row],[Where do you work]],tblCountries[[Actual]:[Mapping]],2,FALSE) -> USA | M42: =VLOOKUP(tblSalaries[[#This Row],[clean Country]]&"*",Cont_Table,2,0) -> North America | N42: 2 to 3 hours per day
B43: ID0040 | C43: 2012-05-25T05:13:50 | D43: =LEFT(tblSalaries[[#This Row],[Timestamp]],FIND(".",tblSalaries[[#This Row],[Timestamp]],1)) -> 41054. | E43: Rs. 400000 | F43: 400000 | G43: INR | H43: =tblSalaries[[#This Row],[clean Salary (in local currency)]]*VLOOKUP(tblSalaries[[#This Row],[Currency]],tblXrate[],2,FALSE) -> 7123.166675 | I43: Coordination | J43: Manager | K43: India | L43: =VLOOKUP(tblSalaries[[#This Row],[Where do you work]],tblCountries[[Actual]:[Mapping]],2,FALSE) -> India | M43: =VLOOKUP(tblSalaries[[#This Row],[clean Country]]&"*",Cont_Table,2,0) -> Asia | N43: 4 to 6 hours a day
B44: ID0041 | C44: 2012-05-25T05:18:48 | D44: =LEFT(tblSalaries[[#This Row],[Timestamp]],FIND(".",tblSalaries[[#This Row],[Timestamp]],1)) -> 41054. | E44: 70000 | F44: 70000 | G44: AUD | H44: =tblSalaries[[#This Row],[clean Salary (in local currency)]]*VLOOKUP(tblSalaries[[#This Row],[Currency]],tblXrate[],2,FALSE) -> 71393.67595 | I44: consultant | J44: Consultant | K44: Australia | L44: =VLOOKUP(tblSalaries[[#This Row],[Where do you work]],tblCountries[[Actual]:[Mapping]],2,FALSE) -> Australia | M44: =VLOOKUP(tblSalaries[[#This Row],[clean Country]]&"*",Cont_Table,2,0) -> Australia | N44: 2 to 3 hours per day
B45: ID0042 | C45: 2012-05-25T05:20:10 | D45: =LEFT(tblSalaries[[#This Row],[Timestamp]],FIND(".",tblSalaries[[#This Row],[Timestamp]],1)) -> 41054. | E45: 14500 | F45: 14500 | G45: USD | H45: =tblSalaries[[#This Row],[clean Salary (in local currency)]]*VLOOKUP(tblSalaries[[#This Row],[Currency]],tblXrate[],2,FALSE) -> 14500 | I45: Business Analsyt | J45: Analyst | K45: India | L45: =VLOOKUP(tblSalaries[[#This Row],[Where do you work]],tblCountries[[Actual]:[Mapping]],2,FALSE) -> India | M45: =VLOOKUP(tblSalaries[[#This Row],[clean Country]]&"*",Cont_Table,2,0) -> Asia | N45: 4 to 6 hours a day
B46: ID0043 | C46: 2012-05-25T05:30:39 | D46: =LEFT(tblSalaries[[#This Row],[Timestamp]],FIND(".",tblSalaries[[#This Row],[Timestamp]],1)) -> 41054. | E46: 70000 | F46: 70000 | G46: CAD | H46: =tblSalaries[[#This Row],[clean Salary (in local currency)]]*VLOOKUP(tblSalaries[[#This Row],[Currency]],tblXrate[],2,FALSE) -> 68835.30661 | I46: Product Engineer | J46: Engineer | K46: Canada | L46: =VLOOKUP(tblSalaries[[#This Row],[Where do you work]],tblCountries[[Actual]:[Mapping]],2,FALSE) -> Canada | M46: =VLOOKUP(tblSalaries[[#This Row],[clean Country]]&"*",Cont_Table,2,0) -> North America | N46: 2 to 3 hours per day
B47: ID0044 | C47: 2012-05-25T05:35:28 | D47: =LEFT(tblSalaries[[#This Row],[Timestamp]],FIND(".",tblSalaries[[#This Row],[Timestamp]],1)) -> 41054. | E47: 58000 | F47: 58000 | G47: USD | H47: =tblSalaries[[#This Row],[clean Salary (in local currency)]]*VLOOKUP(tblSalaries[[#This Row],[Currency]],tblXrate[],2,FALSE) -> 58000 | I47: Senior Accountant | J47: Accountant | K47: USA | L47: =VLOOKUP(tblSalaries[[#This Row],[Where do you work]],tblCountries[[Actual]:[Mapping]],2,FALSE) -> USA | M47: =VLOOKUP(tblSalaries[[#This Row],[clean Country]]&"*",Cont_Table,2,0) -> North America | N47: 4 to 6 hours a day
B48: ID0045 | C48: 2012-05-25T05:45:01 | D48: =LEFT(tblSalaries[[#This Row],[Timestamp]],FIND(".",tblSalaries[[#This Row],[Timestamp]],1)) -> 41054. | E48: 90000 | F48: 90000 | G48: USD | H48: =tblSalaries[[#This Row],[clean Salary (in local currency)]]*VLOOKUP(tblSalaries[[#This Row],[Currency]],tblXrate[],2,FALSE) -> 90000 | I48: Scientist | J48: Misc. | K48: USA | L48: =VLOOKUP(tblSalaries[[#This Row],[Where do you work]],tblCountries[[Actual]:[Mapping]],2,FALSE) -> USA | M48: =VLOOKUP(tblSalaries[[#This Row],[clean Country]]&"*",Cont_Table,2,0) -> North America | N48: 1 or 2 hours a day
B49: ID0046 | C49: 2012-05-25T05:46:47 | D49: =LEFT(tblSalaries[[#This Row],[Timestamp]],FIND(".",tblSalaries[[#This Row],[Timestamp]],1)) -> 41054. | E49: 800000 | F49: 800000 | G49: INR | H49: =tblSalaries[[#This Row],[clean Salary (in local currency)]]*VLOOKUP(tblSalaries[[#This Row],[Currency]],tblXrate[],2,FALSE) -> 14246.33335 | I49: Team Lead | J49: Manager | K49: India | L49: =VLOOKUP(tblSalaries[[#This Row],[Where do you work]],tblCountries[[Actual]:[Mapping]],2,FALSE) -> India | M49: =VLOOKUP(tblSalaries[[#This Row],[clean Country]]&"*",Cont_Table,2,0) -> Asia | N49: 2 to 3 hours per day
B50: ID0047 | C50: 2012-05-25T05:47:10 | D50: =LEFT(tblSalaries[[#This Row],[Timestamp]],FIND(".",tblSalaries[[#This Row],[Timestamp]],1)) -> 41054. | E50: 32000 | F50: 32000 | G50: GBP | H50: =tblSalaries[[#This Row],[clean Salary (in local currency)]]*VLOOKUP(tblSalaries[[#This Row],[Currency]],tblXrate[],2,FALSE) -> 50437.70471 | I50: Senior intelligence analyst | J50: Analyst | K50: UK | L50: =VLOOKUP(tblSalaries[[#This Row],[Where do you work]],tblCountries[[Actual]:[Mapping]],2,FALSE) -> UK | M50: =VLOOKUP(tblSalaries[[#This Row],[clean Country]]&"*",Cont_Table,2,0) -> Europe | N50: 4 to 6 hours a day
B51: ID0048 | C51: 2012-05-25T05:47:52 | D51: =LEFT(tblSalaries[[#This Row],[Timestamp]],FIND(".",tblSalaries[[#This Row],[Timestamp]],1)) -> 41054. | E51: 1000 | F51: 12000 | G51: USD | H51: =tblSalaries[[#This Row],[clean Salary (in local currency)]]*VLOOKUP(tblSalaries[[#This Row],[Currency]],tblXrate[],2,FALSE) -> 12000 | I51: Freelance consultant | J51: Consultant | K51: USA | L51: =VLOOKUP(tblSalaries[[#This Row],[Where do you work]],tblCountries[[Actual]:[Mapping]],2,FALSE) -> USA | M51: =VLOOKUP(tblSalaries[[#This Row],[clean Country]]&"*",Cont_Table,2,0) -> North America | N51: 1 or 2 hours a day
B52: ID0049 | C52: 2012-05-25T06:04:42 | D52: =LEFT(tblSalaries[[#This Row],[Timestamp]],FIND(".",tblSalaries[[#This Row],[Timestamp]],1)) -> 41054. | E52: â‚¬ 45 | F52: 45000 | G52: EUR | H52: =tblSalaries[[#This Row],[clean Salary (in local currency)]]*VLOOKUP(tblSalaries[[#This Row],[Currency]],tblXrate[],2,FALSE) -> 57167.97475 | I52: Online Traffic Manager / Web Analist | J52: Manager | K52: The Netherlands | L52: =VLOOKUP(tblSalaries[[#This Row],[Where do you work]],tblCountries[[Actual]:[Mapping]],2,FALSE) -> Netherlands | M52: =VLOOKUP(tblSalaries[[#This Row],[clean Country]]&"*",Cont_Table,2,0) -> Europe | N52: 4 to 6 hours a day
B53: ID0050 | C53: 2012-05-25T06:04:57 | D53: =LEFT(tblSalaries[[#This Row],[Timestamp]],FIND(".",tblSalaries[[#This Row],[Timestamp]],1)) -> 41054. | E53: 100000 USD | F53: 100000 | G53: USD | H53: =tblSalaries[[#This Row],[clean Salary (in local currency)]]*VLOOKUP(tblSalaries[[#This Row],[Currency]],tblXrate[],2,FALSE) -> 100000 | I53: Seinor Financial Analyst | J53: Analyst | K53: Germany | L53: =VLOOKUP(tblSalaries[[#This Row],[Where do you work]],tblCountries[[Actual]:[Mapping]],2,FALSE) -> Germany | M53: =VLOOKUP(tblSalaries[[#This Row],[clean Country]]&"*",Cont_Table,2,0) -> Europe | N53: All the 8 hours baby, all the 8!
B54: ID0051 | C54: 2012-05-25T06:05:17 | D54: =LEFT(tblSalaries[[#This Row],[Timestamp]],FIND(".",tblSalaries[[#This Row],[Timestamp]],1)) -> 41054. | E54: 57000 | F54: 57000 | G54: USD | H54: =tblSalaries[[#This Row],[clean Salary (in local currency)]]*VLOOKUP(tblSalaries[[#This Row],[Currency]],tblXrate[],2,FALSE) -> 57000 | I54: Senior Accounting Supervisor | J54: Accountant | K54: USA | L54: =VLOOKUP(tblSalaries[[#This Row],[Where do you work]],tblCountries[[Actual]:[Mapping]],2,FALSE) -> USA | M54: =VLOOKUP(tblSalaries[[#This Row],[clean Country]]&"*",Cont_Table,2,0) -> North America | N54: 2 to 3 hours per day
B55: ID0052 | C55: 2012-05-25T06:07:15 | D55: =LEFT(tblSalaries[[#This Row],[Timestamp]],FIND(".",tblSalaries[[#This Row],[Timestamp]],1)) -> 41054. | E55: 40000 | F55: 40000 | G55: GBP | H55: =tblSalaries[[#This Row],[clean Salary (in local currency)]]*VLOOKUP(tblSalaries[[#This Row],[Currency]],tblXrate[],2,FALSE) -> 63047.13088 | I55: Senior Accountant | J55: Accountant | K55: UK | L55: =VLOOKUP(tblSalaries[[#This Row],[Where do you work]],tblCountries[[Actual]:[Mapping]],2,FALSE) -> UK | M55: =VLOOKUP(tblSalaries[[#This Row],[clean Country]]&"*",Cont_Table,2,0) -> Europe | N55: 4 to 6 hours a day
B56: ID0053 | C56: 2012-05-25T06:09:44 | D56: =LEFT(tblSalaries[[#This Row],[Timestamp]],FIND(".",tblSalaries[[#This Row],[Timestamp]],1)) -> 41054. | E56: 2000 Euros | F56: 24000 | G56: EUR | H56: =tblSalaries[[#This Row],[clean Salary (in local currency)]]*VLOOKUP(tblSalaries[[#This Row],[Currency]],tblXrate[],2,FALSE) -> 30489.58654 | I56: PPC Manager | J56: Manager | K56: Germany | L56: =VLOOKUP(tblSalaries[[#This Row],[Where do you work]],tblCountries[[Actual]:[Mapping]],2,FALSE) -> Germany | M56: =VLOOKUP(tblSalaries[[#This Row],[clean Country]]&"*",Cont_Table,2,0) -> Europe | N56: All the 8 hours baby, all the 8!
B57: ID0054 | C57: 2012-05-25T06:10:18 | D57: =LEFT(tblSalaries[[#This Row],[Timestamp]],FIND(".",tblSalaries[[#This Row],[Timestamp]],1)) -> 41054. | E57: 4320 | F57: 4320 | G57: USD | H57: =tblSalaries[[#This Row],[clean Salary (in local currency)]]*VLOOKUP(tblSalaries[[#This Row],[Currency]],tblXrate[],2,FALSE) -> 4320 | I57: Financial Planner | J57: Accountant | K57: India | L57: =VLOOKUP(tblSalaries[[#This Row],[Where do you work]],tblCountries[[Actual]:[Mapping]],2,FALSE) -> India | M57: =VLOOKUP(tblSalaries[[#This Row],[clean Country]]&"*",Cont_Table,2,0) -> Asia | N57: 2 to 3 hours per day
B58: ID0055 | C58: 2012-05-25T06:15:42 | D58: =LEFT(tblSalaries[[#This Row],[Timestamp]],FIND(".",tblSalaries[[#This Row],[Timestamp]],1)) -> 41054. | E58: 62000 | F58: 62000 | G58: USD | H58: =tblSalaries[[#This Row],[clean Salary (in local currency)]]*VLOOKUP(tblSalaries[[#This Row],[Currency]],tblXrate[],2,FALSE) -> 62000 | I58: Analyst | J58: Analyst | K58: USA | L58: =VLOOKUP(tblSalaries[[#This Row],[Where do you work]],tblCountries[[Actual]:[Mapping]],2,FALSE) -> USA | M58: =VLOOKUP(tblSalaries[[#This Row],[clean Country]]&"*",Cont_Table,2,0) -> North America | N58: 4 to 6 hours a day
B59: ID0056 | C59: 2012-05-25T06:26:44 | D59: =LEFT(tblSalaries[[#This Row],[Timestamp]],FIND(".",tblSalaries[[#This Row],[Timestamp]],1)) -> 41054. | E59: 7500 | F59: 7500 | G59: USD | H59: =tblSalaries[[#This Row],[clean Salary (in local currency)]]*VLOOKUP(tblSalaries[[#This Row],[Currency]],tblXrate[],2,FALSE) -> 7500 | I59: Analyst | J59: Analyst | K59: India | L59: =VLOOKUP(tblSalaries[[#This Row],[Where do you work]],tblCountries[[Actual]:[Mapping]],2,FALSE) -> India | M59: =VLOOKUP(tblSalaries[[#This Row],[clean Country]]&"*",Cont_Table,2,0) -> Asia | N59: 4 to 6 hours a day
B60: ID0057 | C60: 2012-05-25T06:27:29 | D60: =LEFT(tblSalaries[[#This Row],[Timestamp]],FIND(".",tblSalaries[[#This Row],[Timestamp]],1)) -> 41054. | E60: Â£18000 | F60: 18000 | G60: GBP | H60: =tblSalaries[[#This Row],[clean Salary (in local currency)]]*VLOOKUP(tblSalaries[[#This Row],[Currency]],tblXrate[],2,FALSE) -> 28371.2089 | I60: Building Design and Performance Researcher | J60: Manager | K60: UK | L60: =VLOOKUP(tblSalaries[[#This Row],[Where do you work]],tblCountries[[Actual]:[Mapping]],2,FALSE) -> UK | M60: =VLOOKUP(tblSalaries[[#This Row],[clean Country]]&"*",Cont_Table,2,0) -> Europe | N60: 1 or 2 hours a day
B61: ID0058 | C61: 2012-05-25T06:49:25 | D61: =LEFT(tblSalaries[[#This Row],[Timestamp]],FIND(".",tblSalaries[[#This Row],[Timestamp]],1)) -> 41054. | E61: 49000 | F61: 49000 | G61: EUR | H61: =tblSalaries[[#This Row],[clean Salary (in local currency)]]*VLOOKUP(tblSalaries[[#This Row],[Currency]],tblXrate[],2,FALSE) -> 62249.57251 | I61: Project leader | J61: Manager | K61: France | L61: =VLOOKUP(tblSalaries[[#This Row],[Where do you work]],tblCountries[[Actual]:[Mapping]],2,FALSE) -> France | M61: =VLOOKUP(tblSalaries[[#This Row],[clean Country]]&"*",Cont_Table,2,0) -> Europe | N61: 2 to 3 hours per day
B62: ID0059 | C62: 2012-05-25T06:57:52 | D62: =LEFT(tblSalaries[[#This Row],[Timestamp]],FIND(".",tblSalaries[[#This Row],[Timestamp]],1)) -> 41054. | E62: 38000 | F62: 38000 | G62: USD | H62: =tblSalaries[[#This Row],[clean Salary (in local currency)]]*VLOOKUP(tblSalaries[[#This Row],[Currency]],tblXrate[],2,FALSE) -> 38000 | I62: Senior Analyst | J62: Analyst | K62: USA | L62: =VLOOKUP(tblSalaries[[#This Row],[Where do you work]],tblCountries[[Actual]:[Mapping]],2,FALSE) -> USA | M62: =VLOOKUP(tblSalaries[[#This Row],[clean Country]]&"*",Cont_Table,2,0) -> North America | N62: 4 to 6 hours a day
B63: ID0060 | C63: 2012-05-25T07:00:52 | D63: =LEFT(tblSalaries[[#This Row],[Timestamp]],FIND(".",tblSalaries[[#This Row],[Timestamp]],1)) -> 41054. | E63: 41000 | F63: 41000 | G63: USD | H63: =tblSalaries[[#This Row],[clean Salary (in local currency)]]*VLOOKUP(tblSalaries[[#This Row],[Currency]],tblXrate[],2,FALSE) -> 41000 | I63: Specialist | J63: Specialist | K63: USA | L63: =VLOOKUP(tblSalaries[[#This Row],[Where do you work]],tblCountries[[Actual]:[Mapping]],2,FALSE) -> USA | M63: =VLOOKUP(tblSalaries[[#This Row],[clean Country]]&"*",Cont_Table,2,0) -> North America | N63: 4 to 6 hours a day
B64: ID0061 | C64: 2012-05-25T07:11:09 | D64: =LEFT(tblSalaries[[#This Row],[Timestamp]],FIND(".",tblSalaries[[#This Row],[Timestamp]],1)) -> 41054. | E64: 68000 | F64: 68000 | G64: USD | H64: =tblSalaries[[#This Row],[clean Salary (in local currency)]]*VLOOKUP(tblSalaries[[#This Row],[Currency]],tblXrate[],2,FALSE) -> 68000 | I64: Engineering Data Analyst | J64: Analyst | K64: USA | L64: =VLOOKUP(tblSalaries[[#This Row],[Where do you work]],tblCountries[[Actual]:[Mapping]],2,FALSE) -> USA | M64: =VLOOKUP(tblSalaries[[#This Row],[clean Country]]&"*",Cont_Table,2,0) -> North America | N64: All the 8 hours baby, all the 8!
B65: ID0062 | C65: 2012-05-25T07:13:31 | D65: =LEFT(tblSalaries[[#This Row],[Timestamp]],FIND(".",tblSalaries[[#This Row],[Timestamp]],1)) -> 41054. | E65: 56000 | F65: 56000 | G65: CAD | H65: =tblSalaries[[#This Row],[clean Salary (in local currency)]]*VLOOKUP(tblSalaries[[#This Row],[Currency]],tblXrate[],2,FALSE) -> 55068.24529 | I65: Sales Analyst | J65: Analyst | K65: CANADA | L65: =VLOOKUP(tblSalaries[[#This Row],[Where do you work]],tblCountries[[Actual]:[Mapping]],2,FALSE) -> Canada | M65: =VLOOKUP(tblSalaries[[#This Row],[clean Country]]&"*",Cont_Table,2,0) -> North America | N65: All the 8 hours baby, all the 8!
B66: ID0063 | C66: 2012-05-25T07:15:12 | D66: =LEFT(tblSalaries[[#This Row],[Timestamp]],FIND(".",tblSalaries[[#This Row],[Timestamp]],1)) -> 41054. | E66: 61000 | F66: 61000 | G66: USD | H66: =tblSalaries[[#This Row],[clean Salary (in local currency)]]*VLOOKUP(tblSalaries[[#This Row],[Currency]],tblXrate[],2,FALSE) -> 61000 | I66: Coordinator Of Costa and Buget | J66: Manager | K66: Brasil | L66: =VLOOKUP(tblSalaries[[#This Row],[Where do you work]],tblCountries[[Actual]:[Mapping]],2,FALSE) -> Brasil | M66: =VLOOKUP(tblSalaries[[#This Row],[clean Country]]&"*",Cont_Table,2,0) -> South America | N66: All the 8 hours baby, all the 8!
B67: ID0064 | C67: 2012-05-25T07:18:53 | D67: =LEFT(tblSalaries[[#This Row],[Timestamp]],FIND(".",tblSalaries[[#This Row],[Timestamp]],1)) -> 41054. | E67: 43000 | F67: 43000 | G67: EUR | H67: =tblSalaries[[#This Row],[clean Salary (in local currency)]]*VLOOKUP(tblSalaries[[#This Row],[Currency]],tblXrate[],2,FALSE) -> 54627.17588 | I67: SAP consultant | J67: Consultant | K67: FR | L67: =VLOOKUP(tblSalaries[[#This Row],[Where do you work]],tblCountries[[Actual]:[Mapping]],2,FALSE) -> France | M67: =VLOOKUP(tblSalaries[[#This Row],[clean Country]]&"*",Cont_Table,2,0) -> Europe | N67: 4 to 6 hours a day
B68: ID0065 | C68: 2012-05-25T07:20:08 | D68: =LEFT(tblSalaries[[#This Row],[Timestamp]],FIND(".",tblSalaries[[#This Row],[Timestamp]],1)) -> 41054. | E68: 85000 | F68: 85000 | G68: USD | H68: =tblSalaries[[#This Row],[clean Salary (in local currency)]]*VLOOKUP(tblSalaries[[#This Row],[Currency]],tblXrate[],2,FALSE) -> 85000 | I68: Manager | J68: Manager | K68: USA | L68: =VLOOKUP(tblSalaries[[#This Row],[Where do you work]],tblCountries[[Actual]:[Mapping]],2,FALSE) -> USA | M68: =VLOOKUP(tblSalaries[[#This Row],[clean Country]]&"*",Cont_Table,2,0) -> North America | N68: 4 to 6 hours a day
B69: ID0066 | C69: 2012-05-25T07:21:18 | D69: =LEFT(tblSalaries[[#This Row],[Timestamp]],FIND(".",tblSalaries[[#This Row],[Timestamp]],1)) -> 41054. | E69: â‚¬ 38000 | F69: 38000 | G69: EUR | H69: =tblSalaries[[#This Row],[clean Salary (in local currency)]]*VLOOKUP(tblSalaries[[#This Row],[Currency]],tblXrate[],2,FALSE) -> 48275.17868 | I69: busines analist | J69: Analyst | K69: The Netherlands | L69: =VLOOKUP(tblSalaries[[#This Row],[Where do you work]],tblCountries[[Actual]:[Mapping]],2,FALSE) -> Netherlands | M69: =VLOOKUP(tblSalaries[[#This Row],[clean Country]]&"*",Cont_Table,2,0) -> Europe | N69: 1 or 2 hours a day
B70: ID0067 | C70: 2012-05-25T07:25:12 | D70: =LEFT(tblSalaries[[#This Row],[Timestamp]],FIND(".",tblSalaries[[#This Row],[Timestamp]],1)) -> 41054. | E70: 85000 | F70: 85000 | G70: AUD | H70: =tblSalaries[[#This Row],[clean Salary (in local currency)]]*VLOOKUP(tblSalaries[[#This Row],[Currency]],tblXrate[],2,FALSE) -> 86692.32079 | I70: head of data | J70: CXO or Top Mgmt. | K70: Australia | L70: =VLOOKUP(tblSalaries[[#This Row],[Where do you work]],tblCountries[[Actual]:[Mapping]],2,FALSE) -> Australia | M70: =VLOOKUP(tblSalaries[[#This Row],[clean Country]]&"*",Cont_Table,2,0) -> Australia | N70: 4 to 6 hours a day
B71: ID0068 | C71: 2012-05-25T07:29:12 | D71: =LEFT(tblSalaries[[#This Row],[Timestamp]],FIND(".",tblSalaries[[#This Row],[Timestamp]],1)) -> 41054. | E71: 85087 | F71: 85087 | G71: USD | H71: =tblSalaries[[#This Row],[clean Salary (in local currency)]]*VLOOKUP(tblSalaries[[#This Row],[Currency]],tblXrate[],2,FALSE) -> 85087 | I71: Business Systems Analyst | J71: Analyst | K71: USA | L71: =VLOOKUP(tblSalaries[[#This Row],[Where do you work]],tblCountries[[Actual]:[Mapping]],2,FALSE) -> USA | M71: =VLOOKUP(tblSalaries[[#This Row],[clean Country]]&"*",Cont_Table,2,0) -> North America | N71: 2 to 3 hours per day
B72: ID0069 | C72: 2012-05-25T07:38:22 | D72: =LEFT(tblSalaries[[#This Row],[Timestamp]],FIND(".",tblSalaries[[#This Row],[Timestamp]],1)) -> 41054. | E72: 50000 | F72: 50000 | G72: USD | H72: =tblSalaries[[#This Row],[clean Salary (in local currency)]]*VLOOKUP(tblSalaries[[#This Row],[Currency]],tblXrate[],2,FALSE) -> 50000 | I72: Financial Analyst II | J72: Analyst | K72: USA | L72: =VLOOKUP(tblSalaries[[#This Row],[Where do you work]],tblCountries[[Actual]:[Mapping]],2,FALSE) -> USA | M72: =VLOOKUP(tblSalaries[[#This Row],[clean Country]]&"*",Cont_Table,2,0) -> North America | N72: All the 8 hours baby, all the 8!
B73: ID0070 | C73: 2012-05-25T07:47:00 | D73: =LEFT(tblSalaries[[#This Row],[Timestamp]],FIND(".",tblSalaries[[#This Row],[Timestamp]],1)) -> 41054. | E73: 100000 | F73: 100000 | G73: USD | H73: =tblSalaries[[#This Row],[clean Salary (in local currency)]]*VLOOKUP(tblSalaries[[#This Row],[Currency]],tblXrate[],2,FALSE) -> 100000 | I73: Mngr MI | J73: Manager | K73: RSA | L73: =VLOOKUP(tblSalaries[[#This Row],[Where do you work]],tblCountries[[Actual]:[Mapping]],2,FALSE) -> South Africa | M73: =VLOOKUP(tblSalaries[[#This Row],[clean Country]]&"*",Cont_Table,2,0) -> Africa | N73: 4 to 6 hours a day
B74: ID0071 | C74: 2012-05-25T22:49:00 | D74: =LEFT(tblSalaries[[#This Row],[Timestamp]],FIND(".",tblSalaries[[#This Row],[Timestamp]],1)) -> 41054. | E74: 57000 | F74: 57000 | G74: USD | H74: =tblSalaries[[#This Row],[clean Salary (in local currency)]]*VLOOKUP(tblSalaries[[#This Row],[Currency]],tblXrate[],2,FALSE) -> 57000 | I74: sales analyst | J74: Analyst | K74: USA | L74: =VLOOKUP(tblSalaries[[#This Row],[Where do you work]],tblCountries[[Actual]:[Mapping]],2,FALSE) -> USA | M74: =VLOOKUP(tblSalaries[[#This Row],[clean Country]]&"*",Cont_Table,2,0) -> North America | N74: 4 to 6 hours a day
B75: ID0072 | C75: 2012-05-25T22:52:28 | D75: =LEFT(tblSalaries[[#This Row],[Timestamp]],FIND(".",tblSalaries[[#This Row],[Timestamp]],1)) -> 41054. | E75: 75000 | F75: 75000 | G75: USD | H75: =tblSalaries[[#This Row],[clean Salary (in local currency)]]*VLOOKUP(tblSalaries[[#This Row],[Currency]],tblXrate[],2,FALSE) -> 75000 | I75: Consumer Research Program Manager | J75: Manager | K75: USA | L75: =VLOOKUP(tblSalaries[[#This Row],[Where do you work]],tblCountries[[Actual]:[Mapping]],2,FALSE) -> USA | M75: =VLOOKUP(tblSalaries[[#This Row],[clean Country]]&"*",Cont_Table,2,0) -> North America | N75: All the 8 hours baby, all the 8!
B76: ID0073 | C76: 2012-05-25T22:59:05 | D76: =LEFT(tblSalaries[[#This Row],[Timestamp]],FIND(".",tblSalaries[[#This Row],[Timestamp]],1)) -> 41054. | E76: $AUD100000 | F76: 100000 | G76: AUD | H76: =tblSalaries[[#This Row],[clean Salary (in local currency)]]*VLOOKUP(tblSalaries[[#This Row],[Currency]],tblXrate[],2,FALSE) -> 101990.9656 | I76: technical trainer | J76: Manager | K76: Australia | L76: =VLOOKUP(tblSalaries[[#This Row],[Where do you work]],tblCountries[[Actual]:[Mapping]],2,FALSE) -> Australia | M76: =VLOOKUP(tblSalaries[[#This Row],[clean Country]]&"*",Cont_Table,2,0) -> Australia | N76: 4 to 6 hours a day
B77: ID0074 | C77: 2012-05-25T23:01:20 | D77: =LEFT(tblSalaries[[#This Row],[Timestamp]],FIND(".",tblSalaries[[#This Row],[Timestamp]],1)) -> 41054. | E77: 2785 | F77: 33420 | G77: USD | H77: =tblSalaries[[#This Row],[clean Salary (in local currency)]]*VLOOKUP(tblSalaries[[#This Row],[Currency]],tblXrate[],2,FALSE) -> 33420 | I77: Process Flow Coordinator | J77: Manager | K77: United Arab Emirates | L77: =VLOOKUP(tblSalaries[[#This Row],[Where do you work]],tblCountries[[Actual]:[Mapping]],2,FALSE) -> UAE | M77: =VLOOKUP(tblSalaries[[#This Row],[clean Country]]&"*",Cont_Table,2,0) -> Asia | N77: All the 8 hours baby, all the 8!
B78: ID0075 | C78: 2012-05-25T23:03:00 | D78: =LEFT(tblSalaries[[#This Row],[Timestamp]],FIND(".",tblSalaries[[#This Row],[Timestamp]],1)) -> 41054. | E78: 59450 | F78: 59450 | G78: CAD | H78: =tblSalaries[[#This Row],[clean Salary (in local currency)]]*VLOOKUP(tblSalaries[[#This Row],[Currency]],tblXrate[],2,FALSE) -> 58460.84254 | I78: Process Improvement Specialist | J78: Specialist | K78: Canada | L78: =VLOOKUP(tblSalaries[[#This Row],[Where do you work]],tblCountries[[Actual]:[Mapping]],2,FALSE) -> Canada | M78: =VLOOKUP(tblSalaries[[#This Row],[clean Country]]&"*",Cont_Table,2,0) -> North America | N78: All the 8 hours baby, all the 8!
B79: ID0076 | C79: 2012-05-25T23:12:29 | D79: =LEFT(tblSalaries[[#This Row],[Timestamp]],FIND(".",tblSalaries[[#This Row],[Timestamp]],1)) -> 41054. | E79: 15000 | F79: 15000 | G79: USD | H79: =tblSalaries[[#This Row],[clean Salary (in local currency)]]*VLOOKUP(tblSalaries[[#This Row],[Currency]],tblXrate[],2,FALSE) -> 15000 | I79: Excel Programmer Consultant | J79: Consultant | K79: USA | L79: =VLOOKUP(tblSalaries[[#This Row],[Where do you work]],tblCountries[[Actual]:[Mapping]],2,FALSE) -> USA | M79: =VLOOKUP(tblSalaries[[#This Row],[clean Country]]&"*",Cont_Table,2,0) -> North America | N79: All the 8 hours baby, all the 8!
B80: ID0077 | C80: 2012-05-25T23:15:34 | D80: =LEFT(tblSalaries[[#This Row],[Timestamp]],FIND(".",tblSalaries[[#This Row],[Timestamp]],1)) -> 41054. | E80: US $60,000 | F80: 60000 | G80: USD | H80: =tblSalaries[[#This Row],[clean Salary (in local currency)]]*VLOOKUP(tblSalaries[[#This Row],[Currency]],tblXrate[],2,FALSE) -> 60000 | I80: Statistical Analyst | J80: Analyst | K80: Canada | L80: =VLOOKUP(tblSalaries[[#This Row],[Where do you work]],tblCountries[[Actual]:[Mapping]],2,FALSE) -> Canada | M80: =VLOOKUP(tblSalaries[[#This Row],[clean Country]]&"*",Cont_Table,2,0) -> North America | N80: 1 or 2 hours a day
B81: ID0078 | C81: 2012-05-25T23:18:45 | D81: =LEFT(tblSalaries[[#This Row],[Timestamp]],FIND(".",tblSalaries[[#This Row],[Timestamp]],1)) -> 41054. | E81: 100000 | F81: 100000 | G81: GBP | H81: =tblSalaries[[#This Row],[clean Salary (in local currency)]]*VLOOKUP(tblSalaries[[#This Row],[Currency]],tblXrate[],2,FALSE) -> 157617.8272 | I81: Analyst | J81: Analyst | K81: UK | L81: =VLOOKUP(tblSalaries[[#This Row],[Where do you work]],tblCountries[[Actual]:[Mapping]],2,FALSE) -> UK | M81: =VLOOKUP(tblSalaries[[#This Row],[clean Country]]&"*",Cont_Table,2,0) -> Europe | N81: 2 to 3 hours per day
B82: ID0079 | C82: 2012-05-25T23:20:46 | D82: =LEFT(tblSalaries[[#This Row],[Timestamp]],FIND(".",tblSalaries[[#This Row],[Timestamp]],1)) -> 41054. | E82: Us$ 18000 | F82: 18000 | G82: USD | H82: =tblSalaries[[#This Row],[clean Salary (in local currency)]]*VLOOKUP(tblSalaries[[#This Row],[Currency]],tblXrate[],2,FALSE) -> 18000 | I82: Operational Analyst | J82: Analyst | K82: Saudi Arabia | L82: =VLOOKUP(tblSalaries[[#This Row],[Where do you work]],tblCountries[[Actual]:[Mapping]],2,FALSE) -> Saudi Arabia | M82: =VLOOKUP(tblSalaries[[#This Row],[clean Country]]&"*",Cont_Table,2,0) -> Asia | N82: All the 8 hours baby, all the 8!
B83: ID0080 | C83: 2012-05-25T23:31:16 | D83: =LEFT(tblSalaries[[#This Row],[Timestamp]],FIND(".",tblSalaries[[#This Row],[Timestamp]],1)) -> 41054. | E83: 50000 | F83: 50000 | G83: USD | H83: =tblSalaries[[#This Row],[clean Salary (in local currency)]]*VLOOKUP(tblSalaries[[#This Row],[Currency]],tblXrate[],2,FALSE) -> 50000 | I83: Exceler | J83: Manager | K83: USA | L83: =VLOOKUP(tblSalaries[[#This Row],[Where do you work]],tblCountries[[Actual]:[Mapping]],2,FALSE) -> USA | M83: =VLOOKUP(tblSalaries[[#This Row],[clean Country]]&"*",Cont_Table,2,0) -> North America | N83: 2 to 3 hours per day
B84: ID0081 | C84: 2012-05-25T23:33:15 | D84: =LEFT(tblSalaries[[#This Row],[Timestamp]],FIND(".",tblSalaries[[#This Row],[Timestamp]],1)) -> 41054. | E84: 26000 | F84: 26000 | G84: USD | H84: =tblSalaries[[#This Row],[clean Salary (in local currency)]]*VLOOKUP(tblSalaries[[#This Row],[Currency]],tblXrate[],2,FALSE) -> 26000 | I84: Marketing Analyst | J84: Analyst | K84: Panama | L84: =VLOOKUP(tblSalaries[[#This Row],[Where do you work]],tblCountries[[Actual]:[Mapping]],2,FALSE) -> Panama | M84: =VLOOKUP(tblSalaries[[#This Row],[clean Country]]&"*",Cont_Table,2,0) -> North America | N84: All the 8 hours baby, all the 8!
B85: ID0082 | C85: 2012-05-25T23:49:27 | D85: =LEFT(tblSalaries[[#This Row],[Timestamp]],FIND(".",tblSalaries[[#This Row],[Timestamp]],1)) -> 41054. | E85: Â£30000 | F85: 30000 | G85: GBP | H85: =tblSalaries[[#This Row],[clean Salary (in local currency)]]*VLOOKUP(tblSalaries[[#This Row],[Currency]],tblXrate[],2,FALSE) -> 47285.34816 | I85: Database Manager | J85: Manager | K85: UK | L85: =VLOOKUP(tblSalaries[[#This Row],[Where do you work]],tblCountries[[Actual]:[Mapping]],2,FALSE) -> UK | M85: =VLOOKUP(tblSalaries[[#This Row],[clean Country]]&"*",Cont_Table,2,0) -> Europe | N85: 4 to 6 hours a day
B86: ID0083 | C86: 2012-05-26T00:00:52 | D86: =LEFT(tblSalaries[[#This Row],[Timestamp]],FIND(".",tblSalaries[[#This Row],[Timestamp]],1)) -> 41055. | E86: 150000 | F86: 150000 | G86: USD | H86: =tblSalaries[[#This Row],[clean Salary (in local currency)]]*VLOOKUP(tblSalaries[[#This Row],[Currency]],tblXrate[],2,FALSE) -> 150000 | I86: Director | J86: CXO or Top Mgmt. | K86: USA | L86: =VLOOKUP(tblSalaries[[#This Row],[Where do you work]],tblCountries[[Actual]:[Mapping]],2,FALSE) -> USA | M86: =VLOOKUP(tblSalaries[[#This Row],[clean Country]]&"*",Cont_Table,2,0) -> North America | N86: All the 8 hours baby, all the 8!
B87: ID0084 | C87: 2012-05-26T00:05:45 | D87: =LEFT(tblSalaries[[#This Row],[Timestamp]],FIND(".",tblSalaries[[#This Row],[Timestamp]],1)) -> 41055. | E87: 120000 | F87: 120000 | G87: USD | H87: =tblSalaries[[#This Row],[clean Salary (in local currency)]]*VLOOKUP(tblSalaries[[#This Row],[Currency]],tblXrate[],2,FALSE) -> 120000 | I87: Manager, Forecasts & Budgets | J87: Manager | K87: USA | L87: =VLOOKUP(tblSalaries[[#This Row],[Where do you work]],tblCountries[[Actual]:[Mapping]],2,FALSE) -> USA | M87: =VLOOKUP(tblSalaries[[#This Row],[clean Country]]&"*",Cont_Table,2,0) -> North America | N87: 4 to 6 hours a day
B88: ID0085 | C88: 2012-05-26T00:10:17 | D88: =LEFT(tblSalaries[[#This Row],[Timestamp]],FIND(".",tblSalaries[[#This Row],[Timestamp]],1)) -> 41055. | E88: 500000 | F88: 500000 | G88: INR | H88: =tblSalaries[[#This Row],[clean Salary (in local currency)]]*VLOOKUP(tblSalaries[[#This Row],[Currency]],tblXrate[],2,FALSE) -> 8903.958344 | I88: Senior Consultant | J88: Consultant | K88: India | L88: =VLOOKUP(tblSalaries[[#This Row],[Where do you work]],tblCountries[[Actual]:[Mapping]],2,FALSE) -> India | M88: =VLOOKUP(tblSalaries[[#This Row],[clean Country]]&"*",Cont_Table,2,0) -> Asia | N88: All the 8 hours baby, all the 8!
B89: ID0086 | C89: 2012-05-26T00:11:21 | D89: =LEFT(tblSalaries[[#This Row],[Timestamp]],FIND(".",tblSalaries[[#This Row],[Timestamp]],1)) -> 41055. | E89: US $ 31330.00 | F89: 31330 | G89: USD | H89: =tblSalaries[[#This Row],[clean Salary (in local currency)]]*VLOOKUP(tblSalaries[[#This Row],[Currency]],tblXrate[],2,FALSE) -> 31330 | I89: VBA Analyst | J89: Analyst | K89: Brazil | L89: =VLOOKUP(tblSalaries[[#This Row],[Where do you work]],tblCountries[[Actual]:[Mapping]],2,FALSE) -> Brazil | M89: =VLOOKUP(tblSalaries[[#This Row],[clean Country]]&"*",Cont_Table,2,0) -> South America | N89: All the 8 hours baby, all the 8!
B90: ID0087 | C90: 2012-05-26T00:15:17 | D90: =LEFT(tblSalaries[[#This Row],[Timestamp]],FIND(".",tblSalaries[[#This Row],[Timestamp]],1)) -> 41055. | E90: 110000 | F90: 110000 | G90: USD | H90: =tblSalaries[[#This Row],[clean Salary (in local currency)]]*VLOOKUP(tblSalaries[[#This Row],[Currency]],tblXrate[],2,FALSE) -> 110000 | I90: Senior Scheduling Engineer | J90: Engineer | K90: USA | L90: =VLOOKUP(tblSalaries[[#This Row],[Where do you work]],tblCountries[[Actual]:[Mapping]],2,FALSE) -> USA | M90: =VLOOKUP(tblSalaries[[#This Row],[clean Country]]&"*",Cont_Table,2,0) -> North America | N90: 2 to 3 hours per day
B91: ID0088 | C91: 2012-05-26T00:22:49 | D91: =LEFT(tblSalaries[[#This Row],[Timestamp]],FIND(".",tblSalaries[[#This Row],[Timestamp]],1)) -> 41055. | E91: 81,000USD | F91: 81000 | G91: USD | H91: =tblSalaries[[#This Row],[clean Salary (in local currency)]]*VLOOKUP(tblSalaries[[#This Row],[Currency]],tblXrate[],2,FALSE) -> 81000 | I91: Strategy Consultant | J91: Consultant | K91: UK | L91: =VLOOKUP(tblSalaries[[#This Row],[Where do you work]],tblCountries[[Actual]:[Mapping]],2,FALSE) -> UK | M91: =VLOOKUP(tblSalaries[[#This Row],[clean Country]]&"*",Cont_Table,2,0) -> Europe | N91: 4 to 6 hours a day
B92: ID0089 | C92: 2012-05-26T00:39:04 | D92: =LEFT(tblSalaries[[#This Row],[Timestamp]],FIND(".",tblSalaries[[#This Row],[Timestamp]],1)) -> 41055. | E92: 40000 | F92: 40000 | G92: USD | H92: =tblSalaries[[#This Row],[clean Salary (in local currency)]]*VLOOKUP(tblSalaries[[#This Row],[Currency]],tblXrate[],2,FALSE) -> 40000 | I92: Admin | J92: Analyst | K92: USA | L92: =VLOOKUP(tblSalaries[[#This Row],[Where do you work]],tblCountries[[Actual]:[Mapping]],2,FALSE) -> USA | M92: =VLOOKUP(tblSalaries[[#This Row],[clean Country]]&"*",Cont_Table,2,0) -> North America | N92: 4 to 6 hours a day
B93: ID0090 | C93: 2012-05-26T00:39:28 | D93: =LEFT(tblSalaries[[#This Row],[Timestamp]],FIND(".",tblSalaries[[#This Row],[Timestamp]],1)) -> 41055. | E93: 42000 | F93: 42000 | G93: CAD | H93: =tblSalaries[[#This Row],[clean Salary (in local currency)]]*VLOOKUP(tblSalaries[[#This Row],[Currency]],tblXrate[],2,FALSE) -> 41301.18397 | I93: IT Asset Administrator | J93: Analyst | K93: Canada | L93: =VLOOKUP(tblSalaries[[#This Row],[Where do you work]],tblCountries[[Actual]:[Mapping]],2,FALSE) -> Canada | M93: =VLOOKUP(tblSalaries[[#This Row],[clean Country]]&"*",Cont_Table,2,0) -> North America | N93: 4 to 6 hours a day
B94: ID0091 | C94: 2012-05-26T00:39:36 | D94: =LEFT(tblSalaries[[#This Row],[Timestamp]],FIND(".",tblSalaries[[#This Row],[Timestamp]],1)) -> 41055. | E94: 125000 | F94: 125000 | G94: USD | H94: =tblSalaries[[#This Row],[clean Salary (in local currency)]]*VLOOKUP(tblSalaries[[#This Row],[Currency]],tblXrate[],2,FALSE) -> 125000 | I94: Director of Marketing | J94: CXO or Top Mgmt. | K94: USA | L94: =VLOOKUP(tblSalaries[[#This Row],[Where do you work]],tblCountries[[Actual]:[Mapping]],2,FALSE) -> USA | M94: =VLOOKUP(tblSalaries[[#This Row],[clean Country]]&"*",Cont_Table,2,0) -> North America | N94: 4 to 6 hours a day
B95: ID0092 | C95: 2012-05-26T00:39:38 | D95: =LEFT(tblSalaries[[#This Row],[Timestamp]],FIND(".",tblSalaries[[#This Row],[Timestamp]],1)) -> 41055. | E95: 36000 | F95: 36000 | G95: USD | H95: =tblSalaries[[#This Row],[clean Salary (in local currency)]]*VLOOKUP(tblSalaries[[#This Row],[Currency]],tblXrate[],2,FALSE) -> 36000 | I95: Graphic Design Manager | J95: Manager | K95: USA | L95: =VLOOKUP(tblSalaries[[#This Row],[Where do you work]],tblCountries[[Actual]:[Mapping]],2,FALSE) -> USA | M95: =VLOOKUP(tblSalaries[[#This Row],[clean Country]]&"*",Cont_Table,2,0) -> North America | N95: 2 to 3 hours per day
B96: ID0093 | C96: 2012-05-26T00:39:54 | D96: =LEFT(tblSalaries[[#This Row],[Timestamp]],FIND(".",tblSalaries[[#This Row],[Timestamp]],1)) -> 41055. | E96: Rs. 12,000/- | F96: 144000 | G96: INR | H96: =tblSalaries[[#This Row],[clean Salary (in local currency)]]*VLOOKUP(tblSalaries[[#This Row],[Currency]],tblXrate[],2,FALSE) -> 2564.340003 | I96: Financial Consultant | J96: Consultant | K96: India | L96: =VLOOKUP(tblSalaries[[#This Row],[Where do you work]],tblCountries[[Actual]:[Mapping]],2,FALSE) -> India | M96: =VLOOKUP(tblSalaries[[#This Row],[clean Country]]&"*",Cont_Table,2,0) -> Asia | N96: 1 or 2 hours a day
B97: ID0094 | C97: 2012-05-26T00:40:00 | D97: =LEFT(tblSalaries[[#This Row],[Timestamp]],FIND(".",tblSalaries[[#This Row],[Timestamp]],1)) -> 41055. | E97: 75000 | F97: 75000 | G97: USD | H97: =tblSalaries[[#This Row],[clean Salary (in local currency)]]*VLOOKUP(tblSalaries[[#This Row],[Currency]],tblXrate[],2,FALSE) -> 75000 | I97: Data Analyst | J97: Analyst | K97: USA | L97: =VLOOKUP(tblSalaries[[#This Row],[Where do you work]],tblCountries[[Actual]:[Mapping]],2,FALSE) -> USA | M97: =VLOOKUP(tblSalaries[[#This Row],[clean Country]]&"*",Cont_Table,2,0) -> North America | N97: 1 or 2 hours a day
B98: ID0095 | C98: 2012-05-26T00:40:20 | D98: =LEFT(tblSalaries[[#This Row],[Timestamp]],FIND(".",tblSalaries[[#This Row],[Timestamp]],1)) -> 41055. | E98: 95000 | F98: 95000 | G98: USD | H98: =tblSalaries[[#This Row],[clean Salary (in local currency)]]*VLOOKUP(tblSalaries[[#This Row],[Currency]],tblXrate[],2,FALSE) -> 95000 | I98: CFO | J98: CXO or Top Mgmt. | K98: USA | L98: =VLOOKUP(tblSalaries[[#This Row],[Where do you work]],tblCountries[[Actual]:[Mapping]],2,FALSE) -> USA | M98: =VLOOKUP(tblSalaries[[#This Row],[clean Country]]&"*",Cont_Table,2,0) -> North America | N98: 4 to 6 hours a day
B99: ID0096 | C99: 2012-05-26T00:40:27 | D99: =LEFT(tblSalaries[[#This Row],[Timestamp]],FIND(".",tblSalaries[[#This Row],[Timestamp]],1)) -> 41055. | E99: 24000 | F99: 24000 | G99: USD | H99: =tblSalaries[[#This Row],[clean Salary (in local currency)]]*VLOOKUP(tblSalaries[[#This Row],[Currency]],tblXrate[],2,FALSE) -> 24000 | I99: Paraeducator | J99: Manager | K99: USA | L99: =VLOOKUP(tblSalaries[[#This Row],[Where do you work]],tblCountries[[Actual]:[Mapping]],2,FALSE) -> USA | M99: =VLOOKUP(tblSalaries[[#This Row],[clean Country]]&"*",Cont_Table,2,0) -> North America | N99: 2 to 3 hours per day
B100: ID0097 | C100: 2012-05-26T00:40:31 | D100: =LEFT(tblSalaries[[#This Row],[Timestamp]],FIND(".",tblSalaries[[#This Row],[Timestamp]],1)) -> 41055. | E100: 91,000 USD | F100: 91000 | G100: USD | H100: =tblSalaries[[#This Row],[clean Salary (in local currency)]]*VLOOKUP(tblSalaries[[#This Row],[Currency]],tblXrate[],2,FALSE) -> 91000 | I100: Channel Marketing Manager | J100: Manager | K100: USA | L100: =VLOOKUP(tblSalaries[[#This Row],[Where do you work]],tblCountries[[Actual]:[Mapping]],2,FALSE) -> USA | M100: =VLOOKUP(tblSalaries[[#This Row],[clean Country]]&"*",Cont_Table,2,0) -> North America | N100: 1 or 2 hours a day
B101: ID0098 | C101: 2012-05-26T00:40:39 | D101: =LEFT(tblSalaries[[#This Row],[Timestamp]],FIND(".",tblSalaries[[#This Row],[Timestamp]],1)) -> 41055. | E101: 40000 | F101: 40000 | G101: USD | H101: =tblSalaries[[#This Row],[clean Salary (in local currency)]]*VLOOKUP(tblSalaries[[#This Row],[Currency]],tblXrate[],2,FALSE) -> 40000 | I101: Sales and Marketing Analyst | J101: Analyst | K101: USA | L101: =VLOOKUP(tblSalaries[[#This Row],[Where do you work]],tblCountries[[Actual]:[Mapping]],2,FALSE) -> USA | M101: =VLOOKUP(tblSalaries[[#This Row],[clean Country]]&"*",Cont_Table,2,0) -> North America | N101: 4 to 6 hours a day
B102: ID0099 | C102: 2012-05-26T00:40:40 | D102: =LEFT(tblSalaries[[#This Row],[Timestamp]],FIND(".",tblSalaries[[#This Row],[Timestamp]],1)) -> 41055. | E102: 57000 | F102: 57000 | G102: USD | H102: =tblSalaries[[#This Row],[clean Salary (in local currency)]]*VLOOKUP(tblSalaries[[#This Row],[Currency]],tblXrate[],2,FALSE) -> 57000 | I102: Production Scheduler | J102: Manager | K102: USA | L102: =VLOOKUP(tblSalaries[[#This Row],[Where do you work]],tblCountries[[Actual]:[Mapping]],2,FALSE) -> USA | M102: =VLOOKUP(tblSalaries[[#This Row],[clean Country]]&"*",Cont_Table,2,0) -> North America | N102: 4 to 6 hours a day
B103: ID0100 | C103: 2012-05-26T00:40:41 | D103: =LEFT(tblSalaries[[#This Row],[Timestamp]],FIND(".",tblSalaries[[#This Row],[Timestamp]],1)) -> 41055. | E103: 74000 | F103: 74000 | G103: USD | H103: =tblSalaries[[#This Row],[clean Salary (in local currency)]]*VLOOKUP(tblSalaries[[#This Row],[Currency]],tblXrate[],2,FALSE) -> 74000 | I103: Senior Consultant | J103: Consultant | K103: USA | L103: =VLOOKUP(tblSalaries[[#This Row],[Where do you work]],tblCountries[[Actual]:[Mapping]],2,FALSE) -> USA | M103: =VLOOKUP(tblSalaries[[#This Row],[clean Country]]&"*",Cont_Table,2,0) -> North America | N103: 4 to 6 hours a day
B104: ID0101 | C104: 2012-05-26T00:40:42 | D104: =LEFT(tblSalaries[[#This Row],[Timestamp]],FIND(".",tblSalaries[[#This Row],[Timestamp]],1)) -> 41055. | E104: 80k | F104: 80000 | G104: USD | H104: =tblSalaries[[#This Row],[clean Salary (in local currency)]]*VLOOKUP(tblSalaries[[#This Row],[Currency]],tblXrate[],2,FALSE) -> 80000 | I104: financial analyst | J104: Analyst | K104: USA | L104: =VLOOKUP(tblSalaries[[#This Row],[Where do you work]],tblCountries[[Actual]:[Mapping]],2,FALSE) -> USA | M104: =VLOOKUP(tblSalaries[[#This Row],[clean Country]]&"*",Cont_Table,2,0) -> North America | N104: 4 to 6 hours a day
B105: ID0102 | C105: 2012-05-26T00:40:46 | D105: =LEFT(tblSalaries[[#This Row],[Timestamp]],FIND(".",tblSalaries[[#This Row],[Timestamp]],1)) -> 41055. | E105: 90000 | F105: 90000 | G105: USD | H105: =tblSalaries[[#This Row],[clean Salary (in local currency)]]*VLOOKUP(tblSalaries[[#This Row],[Currency]],tblXrate[],2,FALSE) -> 90000 | I105: Product Specialist | J105: Specialist | K105: USA | L105: =VLOOKUP(tblSalaries[[#This Row],[Where do you work]],tblCountries[[Actual]:[Mapping]],2,FALSE) -> USA | M105: =VLOOKUP(tblSalaries[[#This Row],[clean Country]]&"*",Cont_Table,2,0) -> North America | N105: 4 to 6 hours a day
B106: ID0103 | C106: 2012-05-26T00:40:48 | D106: =LEFT(tblSalaries[[#This Row],[Timestamp]],FIND(".",tblSalaries[[#This Row],[Timestamp]],1)) -> 41055. | E106: 21000 | F106: 21000 | G106: USD | H106: =tblSalaries[[#This Row],[clean Salary (in local currency)]]*VLOOKUP(tblSalaries[[#This Row],[Currency]],tblXrate[],2,FALSE) -> 21000 | I106: IT support | J106: Analyst | K106: arabian Gulf | L106: =VLOOKUP(tblSalaries[[#This Row],[Where do you work]],tblCountries[[Actual]:[Mapping]],2,FALSE) -> arabian Gulf | M106: =VLOOKUP(tblSalaries[[#This Row],[clean Country]]&"*",Cont_Table,2,0) -> Asia | N106: 1 or 2 hours a day
B107: ID0104 | C107: 2012-05-26T00:40:50 | D107: =LEFT(tblSalaries[[#This Row],[Timestamp]],FIND(".",tblSalaries[[#This Row],[Timestamp]],1)) -> 41055. | E107: 52000 | F107: 52000 | G107: USD | H107: =tblSalaries[[#This Row],[clean Salary (in local currency)]]*VLOOKUP(tblSalaries[[#This Row],[Currency]],tblXrate[],2,FALSE) -> 52000 | I107: sr. project coordinator | J107: Manager | K107: USA | L107: =VLOOKUP(tblSalaries[[#This Row],[Where do you work]],tblCountries[[Actual]:[Mapping]],2,FALSE) -> USA | M107: =VLOOKUP(tblSalaries[[#This Row],[clean Country]]&"*",Cont_Table,2,0) -> North America | N107: 4 to 6 hours a day
B108: ID0105 | C108: 2012-05-26T00:40:52 | D108: =LEFT(tblSalaries[[#This Row],[Timestamp]],FIND(".",tblSalaries[[#This Row],[Timestamp]],1)) -> 41055. | E108: 19200 | F108: 19200 | G108: USD | H108: =tblSalaries[[#This Row],[clean Salary (in local currency)]]*VLOOKUP(tblSalaries[[#This Row],[Currency]],tblXrate[],2,FALSE) -> 19200 | I108: Sr Administrative Assistant | J108: Analyst | K108: Mexico | L108: =VLOOKUP(tblSalaries[[#This Row],[Where do you work]],tblCountries[[Actual]:[Mapping]],2,FALSE) -> Mexico | M108: =VLOOKUP(tblSalaries[[#This Row],[clean Country]]&"*",Cont_Table,2,0) -> North America | N108: 4 to 6 hours a day
B109: ID0106 | C109: 2012-05-26T00:40:57 | D109: =LEFT(tblSalaries[[#This Row],[Timestamp]],FIND(".",tblSalaries[[#This Row],[Timestamp]],1)) -> 41055. | E109: 36000 | F109: 36000 | G109: USD | H109: =tblSalaries[[#This Row],[clean Salary (in local currency)]]*VLOOKUP(tblSalaries[[#This Row],[Currency]],tblXrate[],2,FALSE) -> 36000 | I109: Analyst | J109: Analyst | K109: USA | L109: =VLOOKUP(tblSalaries[[#This Row],[Where do you work]],tblCountries[[Actual]:[Mapping]],2,FALSE) -> USA | M109: =VLOOKUP(tblSalaries[[#This Row],[clean Country]]&"*",Cont_Table,2,0) -> North America | N109: 4 to 6 hours a day
B110: ID0107 | C110: 2012-05-26T00:41:02 | D110: =LEFT(tblSalaries[[#This Row],[Timestamp]],FIND(".",tblSalaries[[#This Row],[Timestamp]],1)) -> 41055. | E110: 57400 | F110: 57400 | G110: USD | H110: =tblSalaries[[#This Row],[clean Salary (in local currency)]]*VLOOKUP(tblSalaries[[#This Row],[Currency]],tblXrate[],2,FALSE) -> 57400 | I110: IT Analyst | J110: Analyst | K110: USA | L110: =VLOOKUP(tblSalaries[[#This Row],[Where do you work]],tblCountries[[Actual]:[Mapping]],2,FALSE) -> USA | M110: =VLOOKUP(tblSalaries[[#This Row],[clean Country]]&"*",Cont_Table,2,0) -> North America | N110: 4 to 6 hours a day
B111: ID0108 | C111: 2012-05-26T00:41:03 | D111: =LEFT(tblSalaries[[#This Row],[Timestamp]],FIND(".",tblSalaries[[#This Row],[Timestamp]],1)) -> 41055. | E111: 66000 | F111: 66000 | G111: USD | H111: =tblSalaries[[#This Row],[clean Salary (in local currency)]]*VLOOKUP(tblSalaries[[#This Row],[Currency]],tblXrate[],2,FALSE) -> 66000 | I111: Analyst | J111: Analyst | K111: USA | L111: =VLOOKUP(tblSalaries[[#This Row],[Where do you work]],tblCountries[[Actual]:[Mapping]],2,FALSE) -> USA | M111: =VLOOKUP(tblSalaries[[#This Row],[clean Country]]&"*",Cont_Table,2,0) -> North America | N111: 2 to 3 hours per day
B112: ID0109 | C112: 2012-05-26T00:41:06 | D112: =LEFT(tblSalaries[[#This Row],[Timestamp]],FIND(".",tblSalaries[[#This Row],[Timestamp]],1)) -> 41055. | E112: 35000 | F112: 35000 | G112: EUR | H112: =tblSalaries[[#This Row],[clean Salary (in local currency)]]*VLOOKUP(tblSalaries[[#This Row],[Currency]],tblXrate[],2,FALSE) -> 44463.98036 | I112: Project manager | J112: Manager | K112: Greece | L112: =VLOOKUP(tblSalaries[[#This Row],[Where do you work]],tblCountries[[Actual]:[Mapping]],2,FALSE) -> Greece | M112: =VLOOKUP(tblSalaries[[#This Row],[clean Country]]&"*",Cont_Table,2,0) -> Europe | N112: 4 to 6 hours a day
B113: ID0111 | C113: 2012-05-26T00:41:16 | D113: =LEFT(tblSalaries[[#This Row],[Timestamp]],FIND(".",tblSalaries[[#This Row],[Timestamp]],1)) -> 41055. | E113: $85,000+ | F113: 85000 | G113: USD | H113: =tblSalaries[[#This Row],[clean Salary (in local currency)]]*VLOOKUP(tblSalaries[[#This Row],[Currency]],tblXrate[],2,FALSE) -> 85000 | I113: Strategic Analyst | J113: Analyst | K113: USA | L113: =VLOOKUP(tblSalaries[[#This Row],[Where do you work]],tblCountries[[Actual]:[Mapping]],2,FALSE) -> USA | M113: =VLOOKUP(tblSalaries[[#This Row],[clean Country]]&"*",Cont_Table,2,0) -> North America | N113: 4 to 6 hours a day
B114: ID0112 | C114: 2012-05-26T00:41:22 | D114: =LEFT(tblSalaries[[#This Row],[Timestamp]],FIND(".",tblSalaries[[#This Row],[Timestamp]],1)) -> 41055. | E114: 50000 | F114: 50000 | G114: USD | H114: =tblSalaries[[#This Row],[clean Salary (in local currency)]]*VLOOKUP(tblSalaries[[#This Row],[Currency]],tblXrate[],2,FALSE) -> 50000 | I114: Transportation Specialist | J114: Specialist | K114: USA | L114: =VLOOKUP(tblSalaries[[#This Row],[Where do you work]],tblCountries[[Actual]:[Mapping]],2,FALSE) -> USA | M114: =VLOOKUP(tblSalaries[[#This Row],[clean Country]]&"*",Cont_Table,2,0) -> North America | N114: 4 to 6 hours a day
B115: ID0113 | C115: 2012-05-26T00:41:27 | D115: =LEFT(tblSalaries[[#This Row],[Timestamp]],FIND(".",tblSalaries[[#This Row],[Timestamp]],1)) -> 41055. | E115: $58,000 USD | F115: 58000 | G115: USD | H115: =tblSalaries[[#This Row],[clean Salary (in local currency)]]*VLOOKUP(tblSalaries[[#This Row],[Currency]],tblXrate[],2,FALSE) -> 58000 | I115: Operations Programs Support | J115: Manager | K115: USA | L115: =VLOOKUP(tblSalaries[[#This Row],[Where do you work]],tblCountries[[Actual]:[Mapping]],2,FALSE) -> USA | M115: =VLOOKUP(tblSalaries[[#This Row],[clean Country]]&"*",Cont_Table,2,0) -> North America | N115: 4 to 6 hours a day
B116: ID0114 | C116: 2012-05-26T00:41:28 | D116: =LEFT(tblSalaries[[#This Row],[Timestamp]],FIND(".",tblSalaries[[#This Row],[Timestamp]],1)) -> 41055. | E116: 37900 | F116: 37900 | G116: USD | H116: =tblSalaries[[#This Row],[clean Salary (in local currency)]]*VLOOKUP(tblSalaries[[#This Row],[Currency]],tblXrate[],2,FALSE) -> 37900 | I116: Accounting Coordinator | J116: Accountant | K116: USA | L116: =VLOOKUP(tblSalaries[[#This Row],[Where do you work]],tblCountries[[Actual]:[Mapping]],2,FALSE) -> USA | M116: =VLOOKUP(tblSalaries[[#This Row],[clean Country]]&"*",Cont_Table,2,0) -> North America | N116: All the 8 hours baby, all the 8!
B117: ID0115 | C117: 2012-05-26T00:41:30 | D117: =LEFT(tblSalaries[[#This Row],[Timestamp]],FIND(".",tblSalaries[[#This Row],[Timestamp]],1)) -> 41055. | E117: 4000 | F117: 48000 | G117: USD | H117: =tblSalaries[[#This Row],[clean Salary (in local currency)]]*VLOOKUP(tblSalaries[[#This Row],[Currency]],tblXrate[],2,FALSE) -> 48000 | I117: Asst.Manager Finance | J117: Manager | K117: UAE | L117: =VLOOKUP(tblSalaries[[#This Row],[Where do you work]],tblCountries[[Actual]:[Mapping]],2,FALSE) -> UAE | M117: =VLOOKUP(tblSalaries[[#This Row],[clean Country]]&"*",Cont_Table,2,0) -> Asia | N117: 2 to 3 hours per day
B118: ID0116 | C118: 2012-05-26T00:41:32 | D118: =LEFT(tblSalaries[[#This Row],[Timestamp]],FIND(".",tblSalaries[[#This Row],[Timestamp]],1)) -> 41055. | E118: 67000 | F118: 67000 | G118: USD | H118: =tblSalaries[[#This Row],[clean Salary (in local currency)]]*VLOOKUP(tblSalaries[[#This Row],[Currency]],tblXrate[],2,FALSE) -> 67000 | I118: Operations Cost Analyst | J118: Analyst | K118: USA | L118: =VLOOKUP(tblSalaries[[#This Row],[Where do you work]],tblCountries[[Actual]:[Mapping]],2,FALSE) -> USA | M118: =VLOOKUP(tblSalaries[[#This Row],[clean Country]]&"*",Cont_Table,2,0) -> North America | N118: 4 to 6 hours a day
B119: ID0117 | C119: 2012-05-26T00:41:35 | D119: =LEFT(tblSalaries[[#This Row],[Timestamp]],FIND(".",tblSalaries[[#This Row],[Timestamp]],1)) -> 41055. | E119: 85000 | F119: 85000 | G119: USD | H119: =tblSalaries[[#This Row],[clean Salary (in local currency)]]*VLOOKUP(tblSalaries[[#This Row],[Currency]],tblXrate[],2,FALSE) -> 85000 | I119: Financial Controller | J119: Controller | K119: UAE | L119: =VLOOKUP(tblSalaries[[#This Row],[Where do you work]],tblCountries[[Actual]:[Mapping]],2,FALSE) -> UAE | M119: =VLOOKUP(tblSalaries[[#This Row],[clean Country]]&"*",Cont_Table,2,0) -> Asia | N119: 4 to 6 hours a day
B120: ID0118 | C120: 2012-05-26T00:41:35 | D120: =LEFT(tblSalaries[[#This Row],[Timestamp]],FIND(".",tblSalaries[[#This Row],[Timestamp]],1)) -> 41055. | E120: 56160 | F120: 56160 | G120: USD | H120: =tblSalaries[[#This Row],[clean Salary (in local currency)]]*VLOOKUP(tblSalaries[[#This Row],[Currency]],tblXrate[],2,FALSE) -> 56160 | I120: Utilization Analyst | J120: Analyst | K120: USA | L120: =VLOOKUP(tblSalaries[[#This Row],[Where do you work]],tblCountries[[Actual]:[Mapping]],2,FALSE) -> USA | M120: =VLOOKUP(tblSalaries[[#This Row],[clean Country]]&"*",Cont_Table,2,0) -> North America | N120: 4 to 6 hours a day
B121: ID0119 | C121: 2012-05-26T00:41:38 | D121: =LEFT(tblSalaries[[#This Row],[Timestamp]],FIND(".",tblSalaries[[#This Row],[Timestamp]],1)) -> 41055. | E121: 2000 | F121: 24000 | G121: USD | H121: =tblSalaries[[#This Row],[clean Salary (in local currency)]]*VLOOKUP(tblSalaries[[#This Row],[Currency]],tblXrate[],2,FALSE) -> 24000 | I121: Researcher | J121: Manager | K121: Colombia | L121: =VLOOKUP(tblSalaries[[#This Row],[Where do you work]],tblCountries[[Actual]:[Mapping]],2,FALSE) -> Colombia | M121: =VLOOKUP(tblSalaries[[#This Row],[clean Country]]&"*",Cont_Table,2,0) -> South America | N121: All the 8 hours baby, all the 8!
B122: ID0120 | C122: 2012-05-26T00:41:38 | D122: =LEFT(tblSalaries[[#This Row],[Timestamp]],FIND(".",tblSalaries[[#This Row],[Timestamp]],1)) -> 41055. | E122: 52000 | F122: 52000 | G122: USD | H122: =tblSalaries[[#This Row],[clean Salary (in local currency)]]*VLOOKUP(tblSalaries[[#This Row],[Currency]],tblXrate[],2,FALSE) -> 52000 | I122: Market Analyst | J122: Analyst | K122: USA | L122: =VLOOKUP(tblSalaries[[#This Row],[Where do you work]],tblCountries[[Actual]:[Mapping]],2,FALSE) -> USA | M122: =VLOOKUP(tblSalaries[[#This Row],[clean Country]]&"*",Cont_Table,2,0) -> North America | N122: Excel ?!? What Excel?
B123: ID0121 | C123: 2012-05-26T00:41:41 | D123: =LEFT(tblSalaries[[#This Row],[Timestamp]],FIND(".",tblSalaries[[#This Row],[Timestamp]],1)) -> 41055. | E123: 60000 | F123: 60000 | G123: CAD | H123: =tblSalaries[[#This Row],[clean Salary (in local currency)]]*VLOOKUP(tblSalaries[[#This Row],[Currency]],tblXrate[],2,FALSE) -> 59001.69138 | I123: Web Developer | J123: Analyst | K123: Canada | L123: =VLOOKUP(tblSalaries[[#This Row],[Where do you work]],tblCountries[[Actual]:[Mapping]],2,FALSE) -> Canada | M123: =VLOOKUP(tblSalaries[[#This Row],[clean Country]]&"*",Cont_Table,2,0) -> North America | N123: Excel ?!? What Excel?
B124: ID0122 | C124: 2012-05-26T00:41:43 | D124: =LEFT(tblSalaries[[#This Row],[Timestamp]],FIND(".",tblSalaries[[#This Row],[Timestamp]],1)) -> 41055. | E124: 70000 | F124: 70000 | G124: USD | H124: =tblSalaries[[#This Row],[clean Salary (in local currency)]]*VLOOKUP(tblSalaries[[#This Row],[Currency]],tblXrate[],2,FALSE) -> 70000 | I124: Sr. Acct | J124: Accountant | K124: USA | L124: =VLOOKUP(tblSalaries[[#This Row],[Where do you work]],tblCountries[[Actual]:[Mapping]],2,FALSE) -> USA | M124: =VLOOKUP(tblSalaries[[#This Row],[clean Country]]&"*",Cont_Table,2,0) -> North America | N124: All the 8 hours baby, all the 8!
B125: ID0123 | C125: 2012-05-26T00:41:56 | D125: =LEFT(tblSalaries[[#This Row],[Timestamp]],FIND(".",tblSalaries[[#This Row],[Timestamp]],1)) -> 41055. | E125: 50000 | F125: 50000 | G125: USD | H125: =tblSalaries[[#This Row],[clean Salary (in local currency)]]*VLOOKUP(tblSalaries[[#This Row],[Currency]],tblXrate[],2,FALSE) -> 50000 | I125: Information Systems Specialist | J125: Specialist | K125: USA | L125: =VLOOKUP(tblSalaries[[#This Row],[Where do you work]],tblCountries[[Actual]:[Mapping]],2,FALSE) -> USA | M125: =VLOOKUP(tblSalaries[[#This Row],[clean Country]]&"*",Cont_Table,2,0) -> North America | N125: 4 to 6 hours a day
B126: ID0124 | C126: 2012-05-26T00:41:58 | D126: =LEFT(tblSalaries[[#This Row],[Timestamp]],FIND(".",tblSalaries[[#This Row],[Timestamp]],1)) -> 41055. | E126: 2300000 | F126: 2300000 | G126: INR | H126: =tblSalaries[[#This Row],[clean Salary (in local currency)]]*VLOOKUP(tblSalaries[[#This Row],[Currency]],tblXrate[],2,FALSE) -> 40958.20838 | I126: Analytics lead | J126: Analyst | K126: India | L126: =VLOOKUP(tblSalaries[[#This Row],[Where do you work]],tblCountries[[Actual]:[Mapping]],2,FALSE) -> India | M126: =VLOOKUP(tblSalaries[[#This Row],[clean Country]]&"*",Cont_Table,2,0) -> Asia | N126: 1 or 2 hours a day
B127: ID0125 | C127: 2012-05-26T00:42:00 | D127: =LEFT(tblSalaries[[#This Row],[Timestamp]],FIND(".",tblSalaries[[#This Row],[Timestamp]],1)) -> 41055. | E127: 80000 | F127: 80000 | G127: USD | H127: =tblSalaries[[#This Row],[clean Salary (in local currency)]]*VLOOKUP(tblSalaries[[#This Row],[Currency]],tblXrate[],2,FALSE) -> 80000 | I127: Financial Analyst | J127: Analyst | K127: USA | L127: =VLOOKUP(tblSalaries[[#This Row],[Where do you work]],tblCountries[[Actual]:[Mapping]],2,FALSE) -> USA | M127: =VLOOKUP(tblSalaries[[#This Row],[clean Country]]&"*",Cont_Table,2,0) -> North America | N127: 4 to 6 hours a day
B128: ID0126 | C128: 2012-05-26T00:42:08 | D128: =LEFT(tblSalaries[[#This Row],[Timestamp]],FIND(".",tblSalaries[[#This Row],[Timestamp]],1)) -> 41055. | E128: 128000 | F128: 128000 | G128: USD | H128: =tblSalaries[[#This Row],[clean Salary (in local currency)]]*VLOOKUP(tblSalaries[[#This Row],[Currency]],tblXrate[],2,FALSE) -> 128000 | I128: Actuary | J128: Manager | K128: USA | L128: =VLOOKUP(tblSalaries[[#This Row],[Where do you work]],tblCountries[[Actual]:[Mapping]],2,FALSE) -> USA | M128: =VLOOKUP(tblSalaries[[#This Row],[clean Country]]&"*",Cont_Table,2,0) -> North America | N128: All the 8 hours baby, all the 8!
B129: ID0127 | C129: 2012-05-26T00:42:10 | D129: =LEFT(tblSalaries[[#This Row],[Timestamp]],FIND(".",tblSalaries[[#This Row],[Timestamp]],1)) -> 41055. | E129: US $44,000 | F129: 44000 | G129: USD | H129: =tblSalaries[[#This Row],[clean Salary (in local currency)]]*VLOOKUP(tblSalaries[[#This Row],[Currency]],tblXrate[],2,FALSE) -> 44000 | I129: School Tech Coordinator | J129: Manager | K129: USA | L129: =VLOOKUP(tblSalaries[[#This Row],[Where do you work]],tblCountries[[Actual]:[Mapping]],2,FALSE) -> USA | M129: =VLOOKUP(tblSalaries[[#This Row],[clean Country]]&"*",Cont_Table,2,0) -> North America | N129: 1 or 2 hours a day
B130: ID0128 | C130: 2012-05-26T00:42:11 | D130: =LEFT(tblSalaries[[#This Row],[Timestamp]],FIND(".",tblSalaries[[#This Row],[Timestamp]],1)) -> 41055. | E130: 65000 | F130: 65000 | G130: USD | H130: =tblSalaries[[#This Row],[clean Salary (in local currency)]]*VLOOKUP(tblSalaries[[#This Row],[Currency]],tblXrate[],2,FALSE) -> 65000 | I130: sr accountant | J130: Accountant | K130: USA | L130: =VLOOKUP(tblSalaries[[#This Row],[Where do you work]],tblCountries[[Actual]:[Mapping]],2,FALSE) -> USA | M130: =VLOOKUP(tblSalaries[[#This Row],[clean Country]]&"*",Cont_Table,2,0) -> North America | N130: All the 8 hours baby, all the 8!
B131: ID0129 | C131: 2012-05-26T00:42:32 | D131: =LEFT(tblSalaries[[#This Row],[Timestamp]],FIND(".",tblSalaries[[#This Row],[Timestamp]],1)) -> 41055. | E131: 36000 usd | F131: 36000 | G131: USD | H131: =tblSalaries[[#This Row],[clean Salary (in local currency)]]*VLOOKUP(tblSalaries[[#This Row],[Currency]],tblXrate[],2,FALSE) -> 36000 | I131: senior accountant | J131: Accountant | K131: Turkey | L131: =VLOOKUP(tblSalaries[[#This Row],[Where do you work]],tblCountries[[Actual]:[Mapping]],2,FALSE) -> Turkey | M131: =VLOOKUP(tblSalaries[[#This Row],[clean Country]]&"*",Cont_Table,2,0) -> Asia | N131: 4 to 6 hours a day
B132: ID0130 | C132: 2012-05-26T00:42:34 | D132: =LEFT(tblSalaries[[#This Row],[Timestamp]],FIND(".",tblSalaries[[#This Row],[Timestamp]],1)) -> 41055. | E132: 1000 | F132: 12000 | G132: USD | H132: =tblSalaries[[#This Row],[clean Salary (in local currency)]]*VLOOKUP(tblSalaries[[#This Row],[Currency]],tblXrate[],2,FALSE) -> 12000 | I132: Freelance | J132: Consultant | K132: Pakistan | L132: =VLOOKUP(tblSalaries[[#This Row],[Where do you work]],tblCountries[[Actual]:[Mapping]],2,FALSE) -> Pakistan | M132: =VLOOKUP(tblSalaries[[#This Row],[clean Country]]&"*",Cont_Table,2,0) -> Asia | N132: 1 or 2 hours a day
B133: ID0131 | C133: 2012-05-26T00:42:41 | D133: =LEFT(tblSalaries[[#This Row],[Timestamp]],FIND(".",tblSalaries[[#This Row],[Timestamp]],1)) -> 41055. | E133: 28159.2 | F133: 28159 | G133: GBP | H133: =tblSalaries[[#This Row],[clean Salary (in local currency)]]*VLOOKUP(tblSalaries[[#This Row],[Currency]],tblXrate[],2,FALSE) -> 44383.60396 | I133: Data Analyst | J133: Analyst | K133: UK | L133: =VLOOKUP(tblSalaries[[#This Row],[Where do you work]],tblCountries[[Actual]:[Mapping]],2,FALSE) -> UK | M133: =VLOOKUP(tblSalaries[[#This Row],[clean Country]]&"*",Cont_Table,2,0) -> Europe | N133: All the 8 hours baby, all the 8!
B134: ID0132 | C134: 2012-05-26T00:42:46 | D134: =LEFT(tblSalaries[[#This Row],[Timestamp]],FIND(".",tblSalaries[[#This Row],[Timestamp]],1)) -> 41055. | E134: 45000 | F134: 45000 | G134: USD | H134: =tblSalaries[[#This Row],[clean Salary (in local currency)]]*VLOOKUP(tblSalaries[[#This Row],[Currency]],tblXrate[],2,FALSE) -> 45000 | I134: DBA | J134: Analyst | K134: USA | L134: =VLOOKUP(tblSalaries[[#This Row],[Where do you work]],tblCountries[[Actual]:[Mapping]],2,FALSE) -> USA | M134: =VLOOKUP(tblSalaries[[#This Row],[clean Country]]&"*",Cont_Table,2,0) -> North America | N134: 4 to 6 hours a day
B135: ID0133 | C135: 2012-05-26T00:42:58 | D135: =LEFT(tblSalaries[[#This Row],[Timestamp]],FIND(".",tblSalaries[[#This Row],[Timestamp]],1)) -> 41055. | E135: 54000 | F135: 54000 | G135: USD | H135: =tblSalaries[[#This Row],[clean Salary (in local currency)]]*VLOOKUP(tblSalaries[[#This Row],[Currency]],tblXrate[],2,FALSE) -> 54000 | I135: Research Analyst | J135: Analyst | K135: USA | L135: =VLOOKUP(tblSalaries[[#This Row],[Where do you work]],tblCountries[[Actual]:[Mapping]],2,FALSE) -> USA | M135: =VLOOKUP(tblSalaries[[#This Row],[clean Country]]&"*",Cont_Table,2,0) -> North America | N135: 2 to 3 hours per day
B136: ID0134 | C136: 2012-05-26T00:43:03 | D136: =LEFT(tblSalaries[[#This Row],[Timestamp]],FIND(".",tblSalaries[[#This Row],[Timestamp]],1)) -> 41055. | E136: 70000 | F136: 70000 | G136: GBP | H136: =tblSalaries[[#This Row],[clean Salary (in local currency)]]*VLOOKUP(tblSalaries[[#This Row],[Currency]],tblXrate[],2,FALSE) -> 110332.479 | I136: Project Manager | J136: Manager | K136: UK | L136: =VLOOKUP(tblSalaries[[#This Row],[Where do you work]],tblCountries[[Actual]:[Mapping]],2,FALSE) -> UK | M136: =VLOOKUP(tblSalaries[[#This Row],[clean Country]]&"*",Cont_Table,2,0) -> Europe | N136: 2 to 3 hours per day
B137: ID0135 | C137: 2012-05-26T00:43:07 | D137: =LEFT(tblSalaries[[#This Row],[Timestamp]],FIND(".",tblSalaries[[#This Row],[Timestamp]],1)) -> 41055. | E137: 71000 | F137: 71000 | G137: USD | H137: =tblSalaries[[#This Row],[clean Salary (in local currency)]]*VLOOKUP(tblSalaries[[#This Row],[Currency]],tblXrate[],2,FALSE) -> 71000 | I137: Market Research Analyst | J137: Analyst | K137: USA | L137: =VLOOKUP(tblSalaries[[#This Row],[Where do you work]],tblCountries[[Actual]:[Mapping]],2,FALSE) -> USA | M137: =VLOOKUP(tblSalaries[[#This Row],[clean Country]]&"*",Cont_Table,2,0) -> North America | N137: 4 to 6 hours a day
B138: ID0136 | C138: 2012-05-26T00:43:08 | D138: =LEFT(tblSalaries[[#This Row],[Timestamp]],FIND(".",tblSalaries[[#This Row],[Timestamp]],1)) -> 41055. | E138: 800000 | F138: 800000 | G138: INR | H138: =tblSalaries[[#This Row],[clean Salary (in local currency)]]*VLOOKUP(tblSalaries[[#This Row],[Currency]],tblXrate[],2,FALSE) -> 14246.33335 | I138: Manager : Accounts | J138: Manager | K138: India | L138: =VLOOKUP(tblSalaries[[#This Row],[Where do you work]],tblCountries[[Actual]:[Mapping]],2,FALSE) -> India | M138: =VLOOKUP(tblSalaries[[#This Row],[clean Country]]&"*",Cont_Table,2,0) -> Asia | N138: 2 to 3 hours per day
B139: ID0137 | C139: 2012-05-26T00:43:17 | D139: =LEFT(tblSalaries[[#This Row],[Timestamp]],FIND(".",tblSalaries[[#This Row],[Timestamp]],1)) -> 41055. | E139: 70000 | F139: 70000 | G139: CAD | H139: =tblSalaries[[#This Row],[clean Salary (in local currency)]]*VLOOKUP(tblSalaries[[#This Row],[Currency]],tblXrate[],2,FALSE) -> 68835.30661 | I139: project manager | J139: Manager | K139: canada | L139: =VLOOKUP(tblSalaries[[#This Row],[Where do you work]],tblCountries[[Actual]:[Mapping]],2,FALSE) -> Canada | M139: =VLOOKUP(tblSalaries[[#This Row],[clean Country]]&"*",Cont_Table,2,0) -> North America | N139: 4 to 6 hours a day
B140: ID0138 | C140: 2012-05-26T00:43:25 | D140: =LEFT(tblSalaries[[#This Row],[Timestamp]],FIND(".",tblSalaries[[#This Row],[Timestamp]],1)) -> 41055. | E140: 50000 | F140: 50000 | G140: CAD | H140: =tblSalaries[[#This Row],[clean Salary (in local currency)]]*VLOOKUP(tblSalaries[[#This Row],[Currency]],tblXrate[],2,FALSE) -> 49168.07615 | I140: Inventory manger | J140: Manager | K140: Canada | L140: =VLOOKUP(tblSalaries[[#This Row],[Where do you work]],tblCountries[[Actual]:[Mapping]],2,FALSE) -> Canada | M140: =VLOOKUP(tblSalaries[[#This Row],[clean Country]]&"*",Cont_Table,2,0) -> North America | N140: 4 to 6 hours a day
B141: ID0139 | C141: 2012-05-26T00:43:27 | D141: =LEFT(tblSalaries[[#This Row],[Timestamp]],FIND(".",tblSalaries[[#This Row],[Timestamp]],1)) -> 41055. | E141: 40000 | F141: 40000 | G141: USD | H141: =tblSalaries[[#This Row],[clean Salary (in local currency)]]*VLOOKUP(tblSalaries[[#This Row],[Currency]],tblXrate[],2,FALSE) -> 40000 | I141: Business Analyst | J141: Analyst | K141: USA | L141: =VLOOKUP(tblSalaries[[#This Row],[Where do you work]],tblCountries[[Actual]:[Mapping]],2,FALSE) -> USA | M141: =VLOOKUP(tblSalaries[[#This Row],[clean Country]]&"*",Cont_Table,2,0) -> North America | N141: 4 to 6 hours a day
B142: ID0140 | C142: 2012-05-26T00:43:34 | D142: =LEFT(tblSalaries[[#This Row],[Timestamp]],FIND(".",tblSalaries[[#This Row],[Timestamp]],1)) -> 41055. | E142: $62,000 CND | F142: 62000 | G142: CAD | H142: =tblSalaries[[#This Row],[clean Salary (in local currency)]]*VLOOKUP(tblSalaries[[#This Row],[Currency]],tblXrate[],2,FALSE) -> 60968.41443 | I142: Process Technician | J142: Analyst | K142: Canada | L142: =VLOOKUP(tblSalaries[[#This Row],[Where do you work]],tblCountries[[Actual]:[Mapping]],2,FALSE) -> Canada | M142: =VLOOKUP(tblSalaries[[#This Row],[clean Country]]&"*",Cont_Table,2,0) -> North America | N142: 2 to 3 hours per day
B143: ID0141 | C143: 2012-05-26T00:43:36 | D143: =LEFT(tblSalaries[[#This Row],[Timestamp]],FIND(".",tblSalaries[[#This Row],[Timestamp]],1)) -> 41055. | E143: 28000rs | F143: 336000 | G143: INR | H143: =tblSalaries[[#This Row],[clean Salary (in local currency)]]*VLOOKUP(tblSalaries[[#This Row],[Currency]],tblXrate[],2,FALSE) -> 5983.460007 | I143: MIS Team Leader | J143: Reporting | K143: India | L143: =VLOOKUP(tblSalaries[[#This Row],[Where do you work]],tblCountries[[Actual]:[Mapping]],2,FALSE) -> India | M143: =VLOOKUP(tblSalaries[[#This Row],[clean Country]]&"*",Cont_Table,2,0) -> Asia | N143: 4 to 6 hours a day
B144: ID0142 | C144: 2012-05-26T00:43:36 | D144: =LEFT(tblSalaries[[#This Row],[Timestamp]],FIND(".",tblSalaries[[#This Row],[Timestamp]],1)) -> 41055. | E144: 53000 | F144: 53000 | G144: USD | H144: =tblSalaries[[#This Row],[clean Salary (in local currency)]]*VLOOKUP(tblSalaries[[#This Row],[Currency]],tblXrate[],2,FALSE) -> 53000 | I144: Data Analyst | J144: Analyst | K144: USA | L144: =VLOOKUP(tblSalaries[[#This Row],[Where do you work]],tblCountries[[Actual]:[Mapping]],2,FALSE) -> USA | M144: =VLOOKUP(tblSalaries[[#This Row],[clean Country]]&"*",Cont_Table,2,0) -> North America | N144: 4 to 6 hours a day
B145: ID0143 | C145: 2012-05-26T00:43:49 | D145: =LEFT(tblSalaries[[#This Row],[Timestamp]],FIND(".",tblSalaries[[#This Row],[Timestamp]],1)) -> 41055. | E145: 104000 | F145: 104000 | G145: USD | H145: =tblSalaries[[#This Row],[clean Salary (in local currency)]]*VLOOKUP(tblSalaries[[#This Row],[Currency]],tblXrate[],2,FALSE) -> 104000 | I145: Finance Director | J145: CXO or Top Mgmt. | K145: USA | L145: =VLOOKUP(tblSalaries[[#This Row],[Where do you work]],tblCountries[[Actual]:[Mapping]],2,FALSE) -> USA | M145: =VLOOKUP(tblSalaries[[#This Row],[clean Country]]&"*",Cont_Table,2,0) -> North America | N145: 2 to 3 hours per day
B146: ID0144 | C146: 2012-05-26T00:44:02 | D146: =LEFT(tblSalaries[[#This Row],[Timestamp]],FIND(".",tblSalaries[[#This Row],[Timestamp]],1)) -> 41055. | E146: 57000 | F146: 57000 | G146: USD | H146: =tblSalaries[[#This Row],[clean Salary (in local currency)]]*VLOOKUP(tblSalaries[[#This Row],[Currency]],tblXrate[],2,FALSE) -> 57000 | I146: Industrial Engineer | J146: Engineer | K146: USA | L146: =VLOOKUP(tblSalaries[[#This Row],[Where do you work]],tblCountries[[Actual]:[Mapping]],2,FALSE) -> USA | M146: =VLOOKUP(tblSalaries[[#This Row],[clean Country]]&"*",Cont_Table,2,0) -> North America | N146: 4 to 6 hours a day
B147: ID0145 | C147: 2012-05-26T00:44:09 | D147: =LEFT(tblSalaries[[#This Row],[Timestamp]],FIND(".",tblSalaries[[#This Row],[Timestamp]],1)) -> 41055. | E147: 45000 | F147: 45000 | G147: USD | H147: =tblSalaries[[#This Row],[clean Salary (in local currency)]]*VLOOKUP(tblSalaries[[#This Row],[Currency]],tblXrate[],2,FALSE) -> 45000 | I147: data analyst | J147: Analyst | K147: USA | L147: =VLOOKUP(tblSalaries[[#This Row],[Where do you work]],tblCountries[[Actual]:[Mapping]],2,FALSE) -> USA | M147: =VLOOKUP(tblSalaries[[#This Row],[clean Country]]&"*",Cont_Table,2,0) -> North America | N147: 2 to 3 hours per day
B148: ID0146 | C148: 2012-05-26T00:44:15 | D148: =LEFT(tblSalaries[[#This Row],[Timestamp]],FIND(".",tblSalaries[[#This Row],[Timestamp]],1)) -> 41055. | E148: 92000 | F148: 92000 | G148: USD | H148: =tblSalaries[[#This Row],[clean Salary (in local currency)]]*VLOOKUP(tblSalaries[[#This Row],[Currency]],tblXrate[],2,FALSE) -> 92000 | I148: Senior Financial & Systems Analyst | J148: Analyst | K148: USA | L148: =VLOOKUP(tblSalaries[[#This Row],[Where do you work]],tblCountries[[Actual]:[Mapping]],2,FALSE) -> USA | M148: =VLOOKUP(tblSalaries[[#This Row],[clean Country]]&"*",Cont_Table,2,0) -> North America | N148: 4 to 6 hours a day
B149: ID0147 | C149: 2012-05-26T00:44:18 | D149: =LEFT(tblSalaries[[#This Row],[Timestamp]],FIND(".",tblSalaries[[#This Row],[Timestamp]],1)) -> 41055. | E149: 88000 | F149: 88000 | G149: USD | H149: =tblSalaries[[#This Row],[clean Salary (in local currency)]]*VLOOKUP(tblSalaries[[#This Row],[Currency]],tblXrate[],2,FALSE) -> 88000 | I149: project manager - metrics | J149: Manager | K149: USA | L149: =VLOOKUP(tblSalaries[[#This Row],[Where do you work]],tblCountries[[Actual]:[Mapping]],2,FALSE) -> USA | M149: =VLOOKUP(tblSalaries[[#This Row],[clean Country]]&"*",Cont_Table,2,0) -> North America | N149: 4 to 6 hours a day
B150: ID0148 | C150: 2012-05-26T00:44:20 | D150: =LEFT(tblSalaries[[#This Row],[Timestamp]],FIND(".",tblSalaries[[#This Row],[Timestamp]],1)) -> 41055. | E150: 80000 | F150: 80000 | G150: USD | H150: =tblSalaries[[#This Row],[clean Salary (in local currency)]]*VLOOKUP(tblSalaries[[#This Row],[Currency]],tblXrate[],2,FALSE) -> 80000 | I150: Informatics Research Analyst | J150: Analyst | K150: USA | L150: =VLOOKUP(tblSalaries[[#This Row],[Where do you work]],tblCountries[[Actual]:[Mapping]],2,FALSE) -> USA | M150: =VLOOKUP(tblSalaries[[#This Row],[clean Country]]&"*",Cont_Table,2,0) -> North America | N150: 2 to 3 hours per day
B151: ID0149 | C151: 2012-05-26T00:44:22 | D151: =LEFT(tblSalaries[[#This Row],[Timestamp]],FIND(".",tblSalaries[[#This Row],[Timestamp]],1)) -> 41055. | E151: 69000 | F151: 69000 | G151: USD | H151: =tblSalaries[[#This Row],[clean Salary (in local currency)]]*VLOOKUP(tblSalaries[[#This Row],[Currency]],tblXrate[],2,FALSE) -> 69000 | I151: Business Technical Consultant | J151: Consultant | K151: USA | L151: =VLOOKUP(tblSalaries[[#This Row],[Where do you work]],tblCountries[[Actual]:[Mapping]],2,FALSE) -> USA | M151: =VLOOKUP(tblSalaries[[#This Row],[clean Country]]&"*",Cont_Table,2,0) -> North America | N151: 4 to 6 hours a day
B152: ID0150 | C152: 2012-05-26T00:44:23 | D152: =LEFT(tblSalaries[[#This Row],[Timestamp]],FIND(".",tblSalaries[[#This Row],[Timestamp]],1)) -> 41055. | E152: 50000 | F152: 50000 | G152: USD | H152: =tblSalaries[[#This Row],[clean Salary (in local currency)]]*VLOOKUP(tblSalaries[[#This Row],[Currency]],tblXrate[],2,FALSE) -> 50000 | I152: Business Operations Reporting Analyst | J152: Analyst | K152: Mexico | L152: =VLOOKUP(tblSalaries[[#This Row],[Where do you work]],tblCountries[[Actual]:[Mapping]],2,FALSE) -> Mexico | M152: =VLOOKUP(tblSalaries[[#This Row],[clean Country]]&"*",Cont_Table,2,0) -> North America | N152: All the 8 hours baby, all the 8!
B153: ID0151 | C153: 2012-05-26T00:44:40 | D153: =LEFT(tblSalaries[[#This Row],[Timestamp]],FIND(".",tblSalaries[[#This Row],[Timestamp]],1)) -> 41055. | E153: 35000 | F153: 35000 | G153: USD | H153: =tblSalaries[[#This Row],[clean Salary (in local currency)]]*VLOOKUP(tblSalaries[[#This Row],[Currency]],tblXrate[],2,FALSE) -> 35000 | I153: Program Services Coordinator | J153: Manager | K153: USA | L153: =VLOOKUP(tblSalaries[[#This Row],[Where do you work]],tblCountries[[Actual]:[Mapping]],2,FALSE) -> USA | M153: =VLOOKUP(tblSalaries[[#This Row],[clean Country]]&"*",Cont_Table,2,0) -> North America | N153: 2 to 3 hours per day
B154: ID0152 | C154: 2012-05-26T00:44:59 | D154: =LEFT(tblSalaries[[#This Row],[Timestamp]],FIND(".",tblSalaries[[#This Row],[Timestamp]],1)) -> 41055. | E154: 96000 | F154: 96000 | G154: USD | H154: =tblSalaries[[#This Row],[clean Salary (in local currency)]]*VLOOKUP(tblSalaries[[#This Row],[Currency]],tblXrate[],2,FALSE) -> 96000 | I154: Specialist - Finance Planning and Analysis | J154: Analyst | K154: USA | L154: =VLOOKUP(tblSalaries[[#This Row],[Where do you work]],tblCountries[[Actual]:[Mapping]],2,FALSE) -> USA | M154: =VLOOKUP(tblSalaries[[#This Row],[clean Country]]&"*",Cont_Table,2,0) -> North America | N154: 4 to 6 hours a day
B155: ID0153 | C155: 2012-05-26T00:45:00 | D155: =LEFT(tblSalaries[[#This Row],[Timestamp]],FIND(".",tblSalaries[[#This Row],[Timestamp]],1)) -> 41055. | E155: 65000 | F155: 65000 | G155: USD | H155: =tblSalaries[[#This Row],[clean Salary (in local currency)]]*VLOOKUP(tblSalaries[[#This Row],[Currency]],tblXrate[],2,FALSE) -> 65000 | I155: Sr Accountant | J155: Accountant | K155: USA | L155: =VLOOKUP(tblSalaries[[#This Row],[Where do you work]],tblCountries[[Actual]:[Mapping]],2,FALSE) -> USA | M155: =VLOOKUP(tblSalaries[[#This Row],[clean Country]]&"*",Cont_Table,2,0) -> North America | N155: All the 8 hours baby, all the 8!
B156: ID0154 | C156: 2012-05-26T00:45:06 | D156: =LEFT(tblSalaries[[#This Row],[Timestamp]],FIND(".",tblSalaries[[#This Row],[Timestamp]],1)) -> 41055. | E156: 37440 | F156: 37440 | G156: USD | H156: =tblSalaries[[#This Row],[clean Salary (in local currency)]]*VLOOKUP(tblSalaries[[#This Row],[Currency]],tblXrate[],2,FALSE) -> 37440 | I156: sales analyst | J156: Analyst | K156: USA | L156: =VLOOKUP(tblSalaries[[#This Row],[Where do you work]],tblCountries[[Actual]:[Mapping]],2,FALSE) -> USA | M156: =VLOOKUP(tblSalaries[[#This Row],[clean Country]]&"*",Cont_Table,2,0) -> North America | N156: All the 8 hours baby, all the 8!
B157: ID0155 | C157: 2012-05-26T00:45:11 | D157: =LEFT(tblSalaries[[#This Row],[Timestamp]],FIND(".",tblSalaries[[#This Row],[Timestamp]],1)) -> 41055. | E157: 15500 | F157: 15500 | G157: USD | H157: =tblSalaries[[#This Row],[clean Salary (in local currency)]]*VLOOKUP(tblSalaries[[#This Row],[Currency]],tblXrate[],2,FALSE) -> 15500 | I157: Proces auditor | J157: Accountant | K157: Mexico | L157: =VLOOKUP(tblSalaries[[#This Row],[Where do you work]],tblCountries[[Actual]:[Mapping]],2,FALSE) -> Mexico | M157: =VLOOKUP(tblSalaries[[#This Row],[clean Country]]&"*",Cont_Table,2,0) -> North America | N157: All the 8 hours baby, all the 8!
B158: ID0156 | C158: 2012-05-26T00:45:17 | D158: =LEFT(tblSalaries[[#This Row],[Timestamp]],FIND(".",tblSalaries[[#This Row],[Timestamp]],1)) -> 41055. | E158: 90000 USD | F158: 90000 | G158: USD | H158: =tblSalaries[[#This Row],[clean Salary (in local currency)]]*VLOOKUP(tblSalaries[[#This Row],[Currency]],tblXrate[],2,FALSE) -> 90000 | I158: Senior Data Quality Analyst | J158: Analyst | K158: USA | L158: =VLOOKUP(tblSalaries[[#This Row],[Where do you work]],tblCountries[[Actual]:[Mapping]],2,FALSE) -> USA | M158: =VLOOKUP(tblSalaries[[#This Row],[clean Country]]&"*",Cont_Table,2,0) -> North America | N158: 2 to 3 hours per day
B159: ID0157 | C159: 2012-05-26T00:45:46 | D159: =LEFT(tblSalaries[[#This Row],[Timestamp]],FIND(".",tblSalaries[[#This Row],[Timestamp]],1)) -> 41055. | E159: 66500 | F159: 66500 | G159: USD | H159: =tblSalaries[[#This Row],[clean Salary (in local currency)]]*VLOOKUP(tblSalaries[[#This Row],[Currency]],tblXrate[],2,FALSE) -> 66500 | I159: Sr Business Analyst | J159: Analyst | K159: USA | L159: =VLOOKUP(tblSalaries[[#This Row],[Where do you work]],tblCountries[[Actual]:[Mapping]],2,FALSE) -> USA | M159: =VLOOKUP(tblSalaries[[#This Row],[clean Country]]&"*",Cont_Table,2,0) -> North America | N159: All the 8 hours baby, all the 8!
B160: ID0158 | C160: 2012-05-26T00:45:49 | D160: =LEFT(tblSalaries[[#This Row],[Timestamp]],FIND(".",tblSalaries[[#This Row],[Timestamp]],1)) -> 41055. | E160: 100000 | F160: 100000 | G160: USD | H160: =tblSalaries[[#This Row],[clean Salary (in local currency)]]*VLOOKUP(tblSalaries[[#This Row],[Currency]],tblXrate[],2,FALSE) -> 100000 | I160: COST ACCOUNTANT | J160: Accountant | K160: USA | L160: =VLOOKUP(tblSalaries[[#This Row],[Where do you work]],tblCountries[[Actual]:[Mapping]],2,FALSE) -> USA | M160: =VLOOKUP(tblSalaries[[#This Row],[clean Country]]&"*",Cont_Table,2,0) -> North America | N160: All the 8 hours baby, all the 8!
B161: ID0159 | C161: 2012-05-26T00:45:51 | D161: =LEFT(tblSalaries[[#This Row],[Timestamp]],FIND(".",tblSalaries[[#This Row],[Timestamp]],1)) -> 41055. | E161: Â£32250 | F161: 32250 | G161: GBP | H161: =tblSalaries[[#This Row],[clean Salary (in local currency)]]*VLOOKUP(tblSalaries[[#This Row],[Currency]],tblXrate[],2,FALSE) -> 50831.74927 | I161: project Support | J161: Manager | K161: UK | L161: =VLOOKUP(tblSalaries[[#This Row],[Where do you work]],tblCountries[[Actual]:[Mapping]],2,FALSE) -> UK | M161: =VLOOKUP(tblSalaries[[#This Row],[clean Country]]&"*",Cont_Table,2,0) -> Europe | N161: 4 to 6 hours a day
B162: ID0160 | C162: 2012-05-26T00:45:53 | D162: =LEFT(tblSalaries[[#This Row],[Timestamp]],FIND(".",tblSalaries[[#This Row],[Timestamp]],1)) -> 41055. | E162: 420000 | F162: 420000 | G162: INR | H162: =tblSalaries[[#This Row],[clean Salary (in local currency)]]*VLOOKUP(tblSalaries[[#This Row],[Currency]],tblXrate[],2,FALSE) -> 7479.325009 | I162: managerial | J162: Manager | K162: India | L162: =VLOOKUP(tblSalaries[[#This Row],[Where do you work]],tblCountries[[Actual]:[Mapping]],2,FALSE) -> India | M162: =VLOOKUP(tblSalaries[[#This Row],[clean Country]]&"*",Cont_Table,2,0) -> Asia | N162: 1 or 2 hours a day
B163: ID0161 | C163: 2012-05-26T00:46:00 | D163: =LEFT(tblSalaries[[#This Row],[Timestamp]],FIND(".",tblSalaries[[#This Row],[Timestamp]],1)) -> 41055. | E163: 75000 | F163: 75000 | G163: USD | H163: =tblSalaries[[#This Row],[clean Salary (in local currency)]]*VLOOKUP(tblSalaries[[#This Row],[Currency]],tblXrate[],2,FALSE) -> 75000 | I163: Program Analyst | J163: Analyst | K163: USA | L163: =VLOOKUP(tblSalaries[[#This Row],[Where do you work]],tblCountries[[Actual]:[Mapping]],2,FALSE) -> USA | M163: =VLOOKUP(tblSalaries[[#This Row],[clean Country]]&"*",Cont_Table,2,0) -> North America | N163: 1 or 2 hours a day
B164: ID0162 | C164: 2012-05-26T00:46:25 | D164: =LEFT(tblSalaries[[#This Row],[Timestamp]],FIND(".",tblSalaries[[#This Row],[Timestamp]],1)) -> 41055. | E164: 58 | F164: 58000 | G164: USD | H164: =tblSalaries[[#This Row],[clean Salary (in local currency)]]*VLOOKUP(tblSalaries[[#This Row],[Currency]],tblXrate[],2,FALSE) -> 58000 | I164: Team Lead - Computer Discounts | J164: Manager | K164: Canada | L164: =VLOOKUP(tblSalaries[[#This Row],[Where do you work]],tblCountries[[Actual]:[Mapping]],2,FALSE) -> Canada | M164: =VLOOKUP(tblSalaries[[#This Row],[clean Country]]&"*",Cont_Table,2,0) -> North America | N164: 1 or 2 hours a day
B165: ID0163 | C165: 2012-05-26T00:46:29 | D165: =LEFT(tblSalaries[[#This Row],[Timestamp]],FIND(".",tblSalaries[[#This Row],[Timestamp]],1)) -> 41055. | E165: 55000 | F165: 55000 | G165: USD | H165: =tblSalaries[[#This Row],[clean Salary (in local currency)]]*VLOOKUP(tblSalaries[[#This Row],[Currency]],tblXrate[],2,FALSE) -> 55000 | I165: Change Architect | J165: Manager | K165: USA | L165: =VLOOKUP(tblSalaries[[#This Row],[Where do you work]],tblCountries[[Actual]:[Mapping]],2,FALSE) -> USA | M165: =VLOOKUP(tblSalaries[[#This Row],[clean Country]]&"*",Cont_Table,2,0) -> North America | N165: 2 to 3 hours per day
B166: ID0164 | C166: 2012-05-26T00:47:42 | D166: =LEFT(tblSalaries[[#This Row],[Timestamp]],FIND(".",tblSalaries[[#This Row],[Timestamp]],1)) -> 41055. | E166: 60000 | F166: 60000 | G166: USD | H166: =tblSalaries[[#This Row],[clean Salary (in local currency)]]*VLOOKUP(tblSalaries[[#This Row],[Currency]],tblXrate[],2,FALSE) -> 60000 | I166: Telecom Technician | J166: Analyst | K166: USA | L166: =VLOOKUP(tblSalaries[[#This Row],[Where do you work]],tblCountries[[Actual]:[Mapping]],2,FALSE) -> USA | M166: =VLOOKUP(tblSalaries[[#This Row],[clean Country]]&"*",Cont_Table,2,0) -> North America | N166: 4 to 6 hours a day
B167: ID0165 | C167: 2012-05-26T00:47:45 | D167: =LEFT(tblSalaries[[#This Row],[Timestamp]],FIND(".",tblSalaries[[#This Row],[Timestamp]],1)) -> 41055. | E167: Rs. 1300000 | F167: 1300000 | G167: INR | H167: =tblSalaries[[#This Row],[clean Salary (in local currency)]]*VLOOKUP(tblSalaries[[#This Row],[Currency]],tblXrate[],2,FALSE) -> 23150.29169 | I167: Manager | J167: Manager | K167: India | L167: =VLOOKUP(tblSalaries[[#This Row],[Where do you work]],tblCountries[[Actual]:[Mapping]],2,FALSE) -> India | M167: =VLOOKUP(tblSalaries[[#This Row],[clean Country]]&"*",Cont_Table,2,0) -> Asia | N167: 4 to 6 hours a day
B168: ID0166 | C168: 2012-05-26T00:47:50 | D168: =LEFT(tblSalaries[[#This Row],[Timestamp]],FIND(".",tblSalaries[[#This Row],[Timestamp]],1)) -> 41055. | E168: 107000 | F168: 107000 | G168: CAD | H168: =tblSalaries[[#This Row],[clean Salary (in local currency)]]*VLOOKUP(tblSalaries[[#This Row],[Currency]],tblXrate[],2,FALSE) -> 105219.683 | I168: Manager, Asset Optimization | J168: Manager | K168: Canada | L168: =VLOOKUP(tblSalaries[[#This Row],[Where do you work]],tblCountries[[Actual]:[Mapping]],2,FALSE) -> Canada | M168: =VLOOKUP(tblSalaries[[#This Row],[clean Country]]&"*",Cont_Table,2,0) -> North America | N168: 2 to 3 hours per day
B169: ID0167 | C169: 2012-05-26T00:47:57 | D169: =LEFT(tblSalaries[[#This Row],[Timestamp]],FIND(".",tblSalaries[[#This Row],[Timestamp]],1)) -> 41055. | E169: 145000 | F169: 145000 | G169: USD | H169: =tblSalaries[[#This Row],[clean Salary (in local currency)]]*VLOOKUP(tblSalaries[[#This Row],[Currency]],tblXrate[],2,FALSE) -> 145000 | I169: Financialcontroller | J169: Controller | K169: Switzerland | L169: =VLOOKUP(tblSalaries[[#This Row],[Where do you work]],tblCountries[[Actual]:[Mapping]],2,FALSE) -> Switzerland | M169: =VLOOKUP(tblSalaries[[#This Row],[clean Country]]&"*",Cont_Table,2,0) -> Europe | N169: All the 8 hours baby, all the 8!
B170: ID0168 | C170: 2012-05-26T00:48:04 | D170: =LEFT(tblSalaries[[#This Row],[Timestamp]],FIND(".",tblSalaries[[#This Row],[Timestamp]],1)) -> 41055. | E170: 22880 | F170: 22880 | G170: USD | H170: =tblSalaries[[#This Row],[clean Salary (in local currency)]]*VLOOKUP(tblSalaries[[#This Row],[Currency]],tblXrate[],2,FALSE) -> 22880 | I170: Accounting | J170: Accountant | K170: USA | L170: =VLOOKUP(tblSalaries[[#This Row],[Where do you work]],tblCountries[[Actual]:[Mapping]],2,FALSE) -> USA | M170: =VLOOKUP(tblSalaries[[#This Row],[clean Country]]&"*",Cont_Table,2,0) -> North America | N170: 4 to 6 hours a day
B171: ID0169 | C171: 2012-05-26T00:48:07 | D171: =LEFT(tblSalaries[[#This Row],[Timestamp]],FIND(".",tblSalaries[[#This Row],[Timestamp]],1)) -> 41055. | E171: 80000 | F171: 80000 | G171: USD | H171: =tblSalaries[[#This Row],[clean Salary (in local currency)]]*VLOOKUP(tblSalaries[[#This Row],[Currency]],tblXrate[],2,FALSE) -> 80000 | I171: Consultant, HR Services & Governance | J171: Consultant | K171: USA | L171: =VLOOKUP(tblSalaries[[#This Row],[Where do you work]],tblCountries[[Actual]:[Mapping]],2,FALSE) -> USA | M171: =VLOOKUP(tblSalaries[[#This Row],[clean Country]]&"*",Cont_Table,2,0) -> North America | N171: 4 to 6 hours a day
B172: ID0170 | C172: 2012-05-26T00:48:11 | D172: =LEFT(tblSalaries[[#This Row],[Timestamp]],FIND(".",tblSalaries[[#This Row],[Timestamp]],1)) -> 41055. | E172: Rs 5 lakh | F172: 500000 | G172: INR | H172: =tblSalaries[[#This Row],[clean Salary (in local currency)]]*VLOOKUP(tblSalaries[[#This Row],[Currency]],tblXrate[],2,FALSE) -> 8903.958344 | I172: QA Executive | J172: Analyst | K172: India | L172: =VLOOKUP(tblSalaries[[#This Row],[Where do you work]],tblCountries[[Actual]:[Mapping]],2,FALSE) -> India | M172: =VLOOKUP(tblSalaries[[#This Row],[clean Country]]&"*",Cont_Table,2,0) -> Asia | N172: 2 to 3 hours per day
B173: ID0171 | C173: 2012-05-26T00:48:46 | D173: =LEFT(tblSalaries[[#This Row],[Timestamp]],FIND(".",tblSalaries[[#This Row],[Timestamp]],1)) -> 41055. | E173: 90000 | F173: 90000 | G173: CAD | H173: =tblSalaries[[#This Row],[clean Salary (in local currency)]]*VLOOKUP(tblSalaries[[#This Row],[Currency]],tblXrate[],2,FALSE) -> 88502.53707 | I173: Senior Actuarial Analyst | J173: Analyst | K173: Canada | L173: =VLOOKUP(tblSalaries[[#This Row],[Where do you work]],tblCountries[[Actual]:[Mapping]],2,FALSE) -> Canada | M173: =VLOOKUP(tblSalaries[[#This Row],[clean Country]]&"*",Cont_Table,2,0) -> North America | N173: 4 to 6 hours a day
B174: ID0172 | C174: 2012-05-26T00:48:48 | D174: =LEFT(tblSalaries[[#This Row],[Timestamp]],FIND(".",tblSalaries[[#This Row],[Timestamp]],1)) -> 41055. | E174: 180000 | F174: 180000 | G174: INR | H174: =tblSalaries[[#This Row],[clean Salary (in local currency)]]*VLOOKUP(tblSalaries[[#This Row],[Currency]],tblXrate[],2,FALSE) -> 3205.425004 | I174: Sr. Associate | J174: Analyst | K174: India | L174: =VLOOKUP(tblSalaries[[#This Row],[Where do you work]],tblCountries[[Actual]:[Mapping]],2,FALSE) -> India | M174: =VLOOKUP(tblSalaries[[#This Row],[clean Country]]&"*",Cont_Table,2,0) -> Asia | N174: 4 to 6 hours a day
B175: ID0173 | C175: 2012-05-26T00:48:48 | D175: =LEFT(tblSalaries[[#This Row],[Timestamp]],FIND(".",tblSalaries[[#This Row],[Timestamp]],1)) -> 41055. | E175: 46584 | F175: 46584 | G175: USD | H175: =tblSalaries[[#This Row],[clean Salary (in local currency)]]*VLOOKUP(tblSalaries[[#This Row],[Currency]],tblXrate[],2,FALSE) -> 46584 | I175: Budget Analyst | J175: Analyst | K175: USA | L175: =VLOOKUP(tblSalaries[[#This Row],[Where do you work]],tblCountries[[Actual]:[Mapping]],2,FALSE) -> USA | M175: =VLOOKUP(tblSalaries[[#This Row],[clean Country]]&"*",Cont_Table,2,0) -> North America | N175: 4 to 6 hours a day
B176: ID0174 | C176: 2012-05-26T00:48:48 | D176: =LEFT(tblSalaries[[#This Row],[Timestamp]],FIND(".",tblSalaries[[#This Row],[Timestamp]],1)) -> 41055. | E176: 67000 | F176: 67000 | G176: USD | H176: =tblSalaries[[#This Row],[clean Salary (in local currency)]]*VLOOKUP(tblSalaries[[#This Row],[Currency]],tblXrate[],2,FALSE) -> 67000 | I176: B.I. Data Analyst II | J176: Analyst | K176: USA | L176: =VLOOKUP(tblSalaries[[#This Row],[Where do you work]],tblCountries[[Actual]:[Mapping]],2,FALSE) -> USA | M176: =VLOOKUP(tblSalaries[[#This Row],[clean Country]]&"*",Cont_Table,2,0) -> North America | N176: 4 to 6 hours a day
B177: ID0175 | C177: 2012-05-26T00:48:57 | D177: =LEFT(tblSalaries[[#This Row],[Timestamp]],FIND(".",tblSalaries[[#This Row],[Timestamp]],1)) -> 41055. | E177: Rd. 11 lakhs | F177: 1100000 | G177: INR | H177: =tblSalaries[[#This Row],[clean Salary (in local currency)]]*VLOOKUP(tblSalaries[[#This Row],[Currency]],tblXrate[],2,FALSE) -> 19588.70836 | I177: Asst manager investor relations and business analytics | J177: Manager | K177: India | L177: =VLOOKUP(tblSalaries[[#This Row],[Where do you work]],tblCountries[[Actual]:[Mapping]],2,FALSE) -> India | M177: =VLOOKUP(tblSalaries[[#This Row],[clean Country]]&"*",Cont_Table,2,0) -> Asia | N177: 4 to 6 hours a day
B178: ID0176 | C178: 2012-05-26T00:49:18 | D178: =LEFT(tblSalaries[[#This Row],[Timestamp]],FIND(".",tblSalaries[[#This Row],[Timestamp]],1)) -> 41055. | E178: 92000 | F178: 92000 | G178: USD | H178: =tblSalaries[[#This Row],[clean Salary (in local currency)]]*VLOOKUP(tblSalaries[[#This Row],[Currency]],tblXrate[],2,FALSE) -> 92000 | I178: Industrial Engineer (Fed) | J178: Engineer | K178: USA | L178: =VLOOKUP(tblSalaries[[#This Row],[Where do you work]],tblCountries[[Actual]:[Mapping]],2,FALSE) -> USA | M178: =VLOOKUP(tblSalaries[[#This Row],[clean Country]]&"*",Cont_Table,2,0) -> North America | N178: 4 to 6 hours a day
B179: ID0177 | C179: 2012-05-26T00:49:21 | D179: =LEFT(tblSalaries[[#This Row],[Timestamp]],FIND(".",tblSalaries[[#This Row],[Timestamp]],1)) -> 41055. | E179: 75000 | F179: 75000 | G179: USD | H179: =tblSalaries[[#This Row],[clean Salary (in local currency)]]*VLOOKUP(tblSalaries[[#This Row],[Currency]],tblXrate[],2,FALSE) -> 75000 | I179: Informatics specialist | J179: Specialist | K179: USA | L179: =VLOOKUP(tblSalaries[[#This Row],[Where do you work]],tblCountries[[Actual]:[Mapping]],2,FALSE) -> USA | M179: =VLOOKUP(tblSalaries[[#This Row],[clean Country]]&"*",Cont_Table,2,0) -> North America | N179: All the 8 hours baby, all the 8!
B180: ID0178 | C180: 2012-05-26T00:49:35 | D180: =LEFT(tblSalaries[[#This Row],[Timestamp]],FIND(".",tblSalaries[[#This Row],[Timestamp]],1)) -> 41055. | E180: 180000 | F180: 180000 | G180: INR | H180: =tblSalaries[[#This Row],[clean Salary (in local currency)]]*VLOOKUP(tblSalaries[[#This Row],[Currency]],tblXrate[],2,FALSE) -> 3205.425004 | I180: Sr. Associate | J180: Analyst | K180: India | L180: =VLOOKUP(tblSalaries[[#This Row],[Where do you work]],tblCountries[[Actual]:[Mapping]],2,FALSE) -> India | M180: =VLOOKUP(tblSalaries[[#This Row],[clean Country]]&"*",Cont_Table,2,0) -> Asia | N180: 4 to 6 hours a day
B181: ID0179 | C181: 2012-05-26T00:49:48 | D181: =LEFT(tblSalaries[[#This Row],[Timestamp]],FIND(".",tblSalaries[[#This Row],[Timestamp]],1)) -> 41055. | E181: 18500 | F181: 18500 | G181: GBP | H181: =tblSalaries[[#This Row],[clean Salary (in local currency)]]*VLOOKUP(tblSalaries[[#This Row],[Currency]],tblXrate[],2,FALSE) -> 29159.29803 | I181: Trainee Management Accountant | J181: Manager | K181: UK | L181: =VLOOKUP(tblSalaries[[#This Row],[Where do you work]],tblCountries[[Actual]:[Mapping]],2,FALSE) -> UK | M181: =VLOOKUP(tblSalaries[[#This Row],[clean Country]]&"*",Cont_Table,2,0) -> Europe | N181: All the 8 hours baby, all the 8!
B182: ID0180 | C182: 2012-05-26T00:49:50 | D182: =LEFT(tblSalaries[[#This Row],[Timestamp]],FIND(".",tblSalaries[[#This Row],[Timestamp]],1)) -> 41055. | E182: 40000 | F182: 40000 | G182: USD | H182: =tblSalaries[[#This Row],[clean Salary (in local currency)]]*VLOOKUP(tblSalaries[[#This Row],[Currency]],tblXrate[],2,FALSE) -> 40000 | I182: Senior analyst | J182: Analyst | K182: USA | L182: =VLOOKUP(tblSalaries[[#This Row],[Where do you work]],tblCountries[[Actual]:[Mapping]],2,FALSE) -> USA | M182: =VLOOKUP(tblSalaries[[#This Row],[clean Country]]&"*",Cont_Table,2,0) -> North America | N182: All the 8 hours baby, all the 8!
B183: ID0181 | C183: 2012-05-26T00:49:59 | D183: =LEFT(tblSalaries[[#This Row],[Timestamp]],FIND(".",tblSalaries[[#This Row],[Timestamp]],1)) -> 41055. | E183: 111680 | F183: 111680 | G183: USD | H183: =tblSalaries[[#This Row],[clean Salary (in local currency)]]*VLOOKUP(tblSalaries[[#This Row],[Currency]],tblXrate[],2,FALSE) -> 111680 | I183: Director of Analytics | J183: Analyst | K183: USA | L183: =VLOOKUP(tblSalaries[[#This Row],[Where do you work]],tblCountries[[Actual]:[Mapping]],2,FALSE) -> USA | M183: =VLOOKUP(tblSalaries[[#This Row],[clean Country]]&"*",Cont_Table,2,0) -> North America | N183: 2 to 3 hours per day
B184: ID0182 | C184: 2012-05-26T00:50:11 | D184: =LEFT(tblSalaries[[#This Row],[Timestamp]],FIND(".",tblSalaries[[#This Row],[Timestamp]],1)) -> 41055. | E184: 41.406 | F184: 41406 | G184: USD | H184: =tblSalaries[[#This Row],[clean Salary (in local currency)]]*VLOOKUP(tblSalaries[[#This Row],[Currency]],tblXrate[],2,FALSE) -> 41406 | I184: Executive Assistant | J184: Analyst | K184: Canada | L184: =VLOOKUP(tblSalaries[[#This Row],[Where do you work]],tblCountries[[Actual]:[Mapping]],2,FALSE) -> Canada | M184: =VLOOKUP(tblSalaries[[#This Row],[clean Country]]&"*",Cont_Table,2,0) -> North America | N184: 1 or 2 hours a day
B185: ID0183 | C185: 2012-05-26T00:50:15 | D185: =LEFT(tblSalaries[[#This Row],[Timestamp]],FIND(".",tblSalaries[[#This Row],[Timestamp]],1)) -> 41055. | E185: 70000 | F185: 70000 | G185: USD | H185: =tblSalaries[[#This Row],[clean Salary (in local currency)]]*VLOOKUP(tblSalaries[[#This Row],[Currency]],tblXrate[],2,FALSE) -> 70000 | I185: Project Speciast | J185: Manager | K185: USA | L185: =VLOOKUP(tblSalaries[[#This Row],[Where do you work]],tblCountries[[Actual]:[Mapping]],2,FALSE) -> USA | M185: =VLOOKUP(tblSalaries[[#This Row],[clean Country]]&"*",Cont_Table,2,0) -> North America | N185: 4 to 6 hours a day
B186: ID0184 | C186: 2012-05-26T00:50:31 | D186: =LEFT(tblSalaries[[#This Row],[Timestamp]],FIND(".",tblSalaries[[#This Row],[Timestamp]],1)) -> 41055. | E186: 40700 | F186: 40700 | G186: USD | H186: =tblSalaries[[#This Row],[clean Salary (in local currency)]]*VLOOKUP(tblSalaries[[#This Row],[Currency]],tblXrate[],2,FALSE) -> 40700 | I186: Sales Coordinator & Analytical Support | J186: Analyst | K186: USA | L186: =VLOOKUP(tblSalaries[[#This Row],[Where do you work]],tblCountries[[Actual]:[Mapping]],2,FALSE) -> USA | M186: =VLOOKUP(tblSalaries[[#This Row],[clean Country]]&"*",Cont_Table,2,0) -> North America | N186: 1 or 2 hours a day
B187: ID0185 | C187: 2012-05-26T00:50:32 | D187: =LEFT(tblSalaries[[#This Row],[Timestamp]],FIND(".",tblSalaries[[#This Row],[Timestamp]],1)) -> 41055. | E187: 40000 | F187: 40000 | G187: USD | H187: =tblSalaries[[#This Row],[clean Salary (in local currency)]]*VLOOKUP(tblSalaries[[#This Row],[Currency]],tblXrate[],2,FALSE) -> 40000 | I187: analyst | J187: Analyst | K187: USA | L187: =VLOOKUP(tblSalaries[[#This Row],[Where do you work]],tblCountries[[Actual]:[Mapping]],2,FALSE) -> USA | M187: =VLOOKUP(tblSalaries[[#This Row],[clean Country]]&"*",Cont_Table,2,0) -> North America | N187: 4 to 6 hours a day
B188: ID0186 | C188: 2012-05-26T00:50:38 | D188: =LEFT(tblSalaries[[#This Row],[Timestamp]],FIND(".",tblSalaries[[#This Row],[Timestamp]],1)) -> 41055. | E188: 60000 | F188: 60000 | G188: USD | H188: =tblSalaries[[#This Row],[clean Salary (in local currency)]]*VLOOKUP(tblSalaries[[#This Row],[Currency]],tblXrate[],2,FALSE) -> 60000 | I188: Senior Staff Accountant | J188: Accountant | K188: USA | L188: =VLOOKUP(tblSalaries[[#This Row],[Where do you work]],tblCountries[[Actual]:[Mapping]],2,FALSE) -> USA | M188: =VLOOKUP(tblSalaries[[#This Row],[clean Country]]&"*",Cont_Table,2,0) -> North America | N188: 4 to 6 hours a day
B189: ID0187 | C189: 2012-05-26T00:50:41 | D189: =LEFT(tblSalaries[[#This Row],[Timestamp]],FIND(".",tblSalaries[[#This Row],[Timestamp]],1)) -> 41055. | E189: 92000 | F189: 92000 | G189: CAD | H189: =tblSalaries[[#This Row],[clean Salary (in local currency)]]*VLOOKUP(tblSalaries[[#This Row],[Currency]],tblXrate[],2,FALSE) -> 90469.26012 | I189: Consultant - Retail Mkts | J189: Consultant | K189: Canada | L189: =VLOOKUP(tblSalaries[[#This Row],[Where do you work]],tblCountries[[Actual]:[Mapping]],2,FALSE) -> Canada | M189: =VLOOKUP(tblSalaries[[#This Row],[clean Country]]&"*",Cont_Table,2,0) -> North America | N189: All the 8 hours baby, all the 8!
B190: ID0188 | C190: 2012-05-26T00:50:43 | D190: =LEFT(tblSalaries[[#This Row],[Timestamp]],FIND(".",tblSalaries[[#This Row],[Timestamp]],1)) -> 41055. | E190: 13636.36 | F190: 13636 | G190: USD | H190: =tblSalaries[[#This Row],[clean Salary (in local currency)]]*VLOOKUP(tblSalaries[[#This Row],[Currency]],tblXrate[],2,FALSE) -> 13636 | I190: Process Manager | J190: Manager | K190: India | L190: =VLOOKUP(tblSalaries[[#This Row],[Where do you work]],tblCountries[[Actual]:[Mapping]],2,FALSE) -> India | M190: =VLOOKUP(tblSalaries[[#This Row],[clean Country]]&"*",Cont_Table,2,0) -> Asia | N190: All the 8 hours baby, all the 8!
B191: ID0189 | C191: 2012-05-26T00:50:43 | D191: =LEFT(tblSalaries[[#This Row],[Timestamp]],FIND(".",tblSalaries[[#This Row],[Timestamp]],1)) -> 41055. | E191: 80000 | F191: 80000 | G191: USD | H191: =tblSalaries[[#This Row],[clean Salary (in local currency)]]*VLOOKUP(tblSalaries[[#This Row],[Currency]],tblXrate[],2,FALSE) -> 80000 | I191: Project Manager (Process Owner) | J191: Manager | K191: USA | L191: =VLOOKUP(tblSalaries[[#This Row],[Where do you work]],tblCountries[[Actual]:[Mapping]],2,FALSE) -> USA | M191: =VLOOKUP(tblSalaries[[#This Row],[clean Country]]&"*",Cont_Table,2,0) -> North America | N191: 2 to 3 hours per day
B192: ID0190 | C192: 2012-05-26T00:51:00 | D192: =LEFT(tblSalaries[[#This Row],[Timestamp]],FIND(".",tblSalaries[[#This Row],[Timestamp]],1)) -> 41055. | E192: 60000 CAD$ | F192: 60000 | G192: CAD | H192: =tblSalaries[[#This Row],[clean Salary (in local currency)]]*VLOOKUP(tblSalaries[[#This Row],[Currency]],tblXrate[],2,FALSE) -> 59001.69138 | I192: Demographer | J192: Analyst | K192: Canada | L192: =VLOOKUP(tblSalaries[[#This Row],[Where do you work]],tblCountries[[Actual]:[Mapping]],2,FALSE) -> Canada | M192: =VLOOKUP(tblSalaries[[#This Row],[clean Country]]&"*",Cont_Table,2,0) -> North America | N192: 2 to 3 hours per day
B193: ID0192 | C193: 2012-05-26T00:51:43 | D193: =LEFT(tblSalaries[[#This Row],[Timestamp]],FIND(".",tblSalaries[[#This Row],[Timestamp]],1)) -> 41055. | E193: 28000 | F193: 28000 | G193: USD | H193: =tblSalaries[[#This Row],[clean Salary (in local currency)]]*VLOOKUP(tblSalaries[[#This Row],[Currency]],tblXrate[],2,FALSE) -> 28000 | I193: Administrative Assistant | J193: Analyst | K193: USA | L193: =VLOOKUP(tblSalaries[[#This Row],[Where do you work]],tblCountries[[Actual]:[Mapping]],2,FALSE) -> USA | M193: =VLOOKUP(tblSalaries[[#This Row],[clean Country]]&"*",Cont_Table,2,0) -> North America | N193: 4 to 6 hours a day
B194: ID0193 | C194: 2012-05-26T00:51:55 | D194: =LEFT(tblSalaries[[#This Row],[Timestamp]],FIND(".",tblSalaries[[#This Row],[Timestamp]],1)) -> 41055. | E194: 60000 | F194: 60000 | G194: USD | H194: =tblSalaries[[#This Row],[clean Salary (in local currency)]]*VLOOKUP(tblSalaries[[#This Row],[Currency]],tblXrate[],2,FALSE) -> 60000 | I194: Accounting/Financial Analyst | J194: Analyst | K194: USA | L194: =VLOOKUP(tblSalaries[[#This Row],[Where do you work]],tblCountries[[Actual]:[Mapping]],2,FALSE) -> USA | M194: =VLOOKUP(tblSalaries[[#This Row],[clean Country]]&"*",Cont_Table,2,0) -> North America | N194: 4 to 6 hours a day
B195: ID0194 | C195: 2012-05-26T00:51:59 | D195: =LEFT(tblSalaries[[#This Row],[Timestamp]],FIND(".",tblSalaries[[#This Row],[Timestamp]],1)) -> 41055. | E195: 96000 | F195: 96000 | G195: USD | H195: =tblSalaries[[#This Row],[clean Salary (in local currency)]]*VLOOKUP(tblSalaries[[#This Row],[Currency]],tblXrate[],2,FALSE) -> 96000 | I195: Business Process Specialist | J195: Specialist | K195: USA | L195: =VLOOKUP(tblSalaries[[#This Row],[Where do you work]],tblCountries[[Actual]:[Mapping]],2,FALSE) -> USA | M195: =VLOOKUP(tblSalaries[[#This Row],[clean Country]]&"*",Cont_Table,2,0) -> North America | N195: 2 to 3 hours per day
B196: ID0195 | C196: 2012-05-26T00:52:21 | D196: =LEFT(tblSalaries[[#This Row],[Timestamp]],FIND(".",tblSalaries[[#This Row],[Timestamp]],1)) -> 41055. | E196: 67000 | F196: 67000 | G196: USD | H196: =tblSalaries[[#This Row],[clean Salary (in local currency)]]*VLOOKUP(tblSalaries[[#This Row],[Currency]],tblXrate[],2,FALSE) -> 67000 | I196: Financial Analyst | J196: Analyst | K196: USA | L196: =VLOOKUP(tblSalaries[[#This Row],[Where do you work]],tblCountries[[Actual]:[Mapping]],2,FALSE) -> USA | M196: =VLOOKUP(tblSalaries[[#This Row],[clean Country]]&"*",Cont_Table,2,0) -> North America | N196: 4 to 6 hours a day
B197: ID0196 | C197: 2012-05-26T00:52:25 | D197: =LEFT(tblSalaries[[#This Row],[Timestamp]],FIND(".",tblSalaries[[#This Row],[Timestamp]],1)) -> 41055. | E197: 70000 | F197: 70000 | G197: USD | H197: =tblSalaries[[#This Row],[clean Salary (in local currency)]]*VLOOKUP(tblSalaries[[#This Row],[Currency]],tblXrate[],2,FALSE) -> 70000 | I197: Sr Financial Analyst | J197: Analyst | K197: USA | L197: =VLOOKUP(tblSalaries[[#This Row],[Where do you work]],tblCountries[[Actual]:[Mapping]],2,FALSE) -> USA | M197: =VLOOKUP(tblSalaries[[#This Row],[clean Country]]&"*",Cont_Table,2,0) -> North America | N197: 4 to 6 hours a day
B198: ID0197 | C198: 2012-05-26T00:52:30 | D198: =LEFT(tblSalaries[[#This Row],[Timestamp]],FIND(".",tblSalaries[[#This Row],[Timestamp]],1)) -> 41055. | E198: 233000 | F198: 233000 | G198: INR | H198: =tblSalaries[[#This Row],[clean Salary (in local currency)]]*VLOOKUP(tblSalaries[[#This Row],[Currency]],tblXrate[],2,FALSE) -> 4149.244588 | I198: Asst. Manager (MIS) | J198: Manager | K198: India | L198: =VLOOKUP(tblSalaries[[#This Row],[Where do you work]],tblCountries[[Actual]:[Mapping]],2,FALSE) -> India | M198: =VLOOKUP(tblSalaries[[#This Row],[clean Country]]&"*",Cont_Table,2,0) -> Asia | N198: All the 8 hours baby, all the 8!
B199: ID0198 | C199: 2012-05-26T00:52:37 | D199: =LEFT(tblSalaries[[#This Row],[Timestamp]],FIND(".",tblSalaries[[#This Row],[Timestamp]],1)) -> 41055. | E199: US$ 99000 | F199: 99000 | G199: USD | H199: =tblSalaries[[#This Row],[clean Salary (in local currency)]]*VLOOKUP(tblSalaries[[#This Row],[Currency]],tblXrate[],2,FALSE) -> 99000 | I199: Business Controller | J199: Controller | K199: USA | L199: =VLOOKUP(tblSalaries[[#This Row],[Where do you work]],tblCountries[[Actual]:[Mapping]],2,FALSE) -> USA | M199: =VLOOKUP(tblSalaries[[#This Row],[clean Country]]&"*",Cont_Table,2,0) -> North America | N199: 4 to 6 hours a day
B200: ID0200 | C200: 2012-05-26T00:53:00 | D200: =LEFT(tblSalaries[[#This Row],[Timestamp]],FIND(".",tblSalaries[[#This Row],[Timestamp]],1)) -> 41055. | E200: 90000 | F200: 90000 | G200: USD | H200: =tblSalaries[[#This Row],[clean Salary (in local currency)]]*VLOOKUP(tblSalaries[[#This Row],[Currency]],tblXrate[],2,FALSE) -> 90000 | I200: Project Manager | J200: Manager | K200: USA | L200: =VLOOKUP(tblSalaries[[#This Row],[Where do you work]],tblCountries[[Actual]:[Mapping]],2,FALSE) -> USA | M200: =VLOOKUP(tblSalaries[[#This Row],[clean Country]]&"*",Cont_Table,2,0) -> North America | N200: 2 to 3 hours per day
B201: ID0201 | C201: 2012-05-26T00:53:02 | D201: =LEFT(tblSalaries[[#This Row],[Timestamp]],FIND(".",tblSalaries[[#This Row],[Timestamp]],1)) -> 41055. | E201: Rs. 275000 | F201: 275000 | G201: INR | H201: =tblSalaries[[#This Row],[clean Salary (in local currency)]]*VLOOKUP(tblSalaries[[#This Row],[Currency]],tblXrate[],2,FALSE) -> 4897.177089 | I201: low level monitoring | J201: Analyst | K201: India | L201: =VLOOKUP(tblSalaries[[#This Row],[Where do you work]],tblCountries[[Actual]:[Mapping]],2,FALSE) -> India | M201: =VLOOKUP(tblSalaries[[#This Row],[clean Country]]&"*",Cont_Table,2,0) -> Asia | N201: 2 to 3 hours per day
B202: ID0202 | C202: 2012-05-26T00:53:18 | D202: =LEFT(tblSalaries[[#This Row],[Timestamp]],FIND(".",tblSalaries[[#This Row],[Timestamp]],1)) -> 41055. | E202: INR 16000 | F202: 192000 | G202: INR | H202: =tblSalaries[[#This Row],[clean Salary (in local currency)]]*VLOOKUP(tblSalaries[[#This Row],[Currency]],tblXrate[],2,FALSE) -> 3419.120004 | I202: Administrative | J202: Analyst | K202: India | L202: =VLOOKUP(tblSalaries[[#This Row],[Where do you work]],tblCountries[[Actual]:[Mapping]],2,FALSE) -> India | M202: =VLOOKUP(tblSalaries[[#This Row],[clean Country]]&"*",Cont_Table,2,0) -> Asia | N202: All the 8 hours baby, all the 8!
... 1686 more rows

Sheet Calculations (hidden)
C2: # Responses | D2: Total Income | E2: Average | F2: Average Yrs Exp
B3: Africa | C3: =COUNTIF(tblSalaries[[#All],[Continent]],B3) -> 37 | D3: =SUMIF(tblSalaries[[#All],[Continent]],Calculations!B3,sal_usd) -> 1431465.278 | E3: =D3/C3 -> 38688.25076 | F3: =AVERAGEIF(tblSalaries[Continent],B3,tblSalaries[Years of Experience]) -> 9.838709677 | K3: 1 or 2 hours a day | L3: 2 to 3 hours per day | M3: 4 to 6 hours a day | N3: All the 8 hours baby, all the 8! | O3: Excel ?!? What Excel?
B4: Asia | C4: =COUNTIF(tblSalaries[[#All],[Continent]],B4) -> 721 | D4: =SUMIF(tblSalaries[[#All],[Continent]],Calculations!B4,sal_usd) -> 30156789.67 | E4: 41826.33796 | F4: =AVERAGEIF(tblSalaries[Continent],B4,tblSalaries[Years of Experience]) -> 6.83410596 | J4: Africa | K4: =COUNTIFS(INDIRECT("tblSalaries[Continent]"),$J5,INDIRECT("tblSalaries[How many hours of a day you work on Excel]"),K$3) -> 76 | L4: 170 | M4: 268 | N4: 205 | O4: 2
B5: Australia | C5: =COUNTIF(tblSalaries[[#All],[Continent]],B5) -> 96 | D5: =SUMIF(tblSalaries[[#All],[Continent]],Calculations!B5,sal_usd) -> 5735505.006 | E5: 59744.84381 | F5: =AVERAGEIF(tblSalaries[Continent],B5,tblSalaries[Years of Experience]) -> 10.48876404 | J5: Asia | K5: 10 | L5: 29 | M5: 43 | N5: 14 | O5: 0
B6: Europe | C6: =COUNTIF(tblSalaries[[#All],[Continent]],B6) -> 303 | D6: =SUMIF(tblSalaries[[#All],[Continent]],Calculations!B6,sal_usd) -> 15255651.48 | E6: 50348.68474 | F6: =AVERAGEIF(tblSalaries[Continent],B6,tblSalaries[Years of Experience]) -> 10.265 | J6: Australia | K6: 30 | L6: 76 | M6: 124 | N6: 72 | O6: 1
B7: North America | C7: =COUNTIF(tblSalaries[[#All],[Continent]],B7) -> 693 | D7: =SUMIF(tblSalaries[[#All],[Continent]],Calculations!B7,sal_usd) -> 38725174.86 | E7: 55880.48321 | F7: =AVERAGEIF(tblSalaries[Continent],B7,tblSalaries[Years of Experience]) -> 10.14054054 | J7: Europe | K7: 51 | L7: 170 | M7: 313 | N7: 155 | O7: 4
B8: South America | C8: =COUNTIF(tblSalaries[[#All],[Continent]],B8) -> 32 | D8: =SUMIF(tblSalaries[[#All],[Continent]],Calculations!B8,sal_usd) -> 1971289.873 | E8: 61602.80853 | F8: =AVERAGEIF(tblSalaries[Continent],B8,tblSalaries[Years of Experience]) -> 8.571428571 | J8: North America | K8: 7 | L8: 2 | M8: 7 | N8: 16 | O8: 0
B9: All | C9: =AVERAGE(C3:C8) -> 313.6666667 | J9: South America | K9: 0 | L9: 0 | M9: 0 | N9: 0 | O9: 0
J10: Totals | K10: =SUM(K4:K9) -> 174 | L10: =SUM(L4:L9) -> 447 | M10: =SUM(M4:M9) -> 755 | N10: =SUM(N4:N9) -> 462 | O10: =SUM(O4:O9) -> 7
C11: =C2 -> # Responses | D11: Average Salary | E11: Average Yrs Exp
B12: Accountant | C12: =COUNTIF(Job_Type,B12) -> 135 | D12: =AVERAGEIF(Job_Type,B12,sal_usd) -> 46058.75828 | E12: =AVERAGEIF(Job_Type,B12,yrs_exp) -> 9.336633663
B13: Analyst | C13: 743 | D13: 49452.98664 | E13: 7.318975332 | K13: 1 or 2 hours a day | L13: 2 to 3 hours per day | M13: 4 to 6 hours a day | N13: All the 8 hours baby, all the 8! | O13: Excel ?!? What Excel?
B14: Consultant | C14: 90 | D14: 48668.60199 | E14: 9.224137931 | J14: Accountant | K14: =COUNTIFS(INDIRECT("tblSalaries[job type]"),$J14,INDIRECT("tblSalaries[How many hours of a day you work on Excel]"),K$13) -> 4 | L14: 34 | M14: 58 | N14: 39 | O14: 0
B15: Controller | C15: 67 | D15: 49572.83881 | E15: 11.8 | J15: Analyst | K15: 57 | L15: 137 | M15: 329 | N15: 215 | O15: 5
B16: CXO or Top Mgmt. | C16: 75 | D16: 48286.93996 | E16: 13.41489362 | J16: Consultant | K16: 12 | L16: 26 | M16: 27 | N16: 25 | O16: 0
B17: Engineer | C17: 74 | D17: 51889.07024 | E17: 7.93877551 | J17: Controller | K17: 2 | L17: 15 | M17: 36 | N17: 14 | O17: 0
B18: Manager | C18: 558 | D18: 48021.92212 | E18: 9.875888325 | J18: CXO or Top Mgmt. | K18: 10 | L18: 22 | M18: 32 | N18: 11 | O18: 0
B19: Misc. | C19: 7 | D19: 78083.27102 | E19: 6.166666667 | J19: Engineer | K19: 14 | L19: 26 | M19: 26 | N19: 8 | O19: 0
B20: Reporting | C20: 83 | D20: 49738.45301 | E20: 5.28028169 | J20: Manager | K20: 65 | L20: 166 | M20: 215 | N20: 110 | O20: 2
B21: Specialist | C21: 51 | D21: 82622.33513 | E21: 9.259259259 | J21: Misc. | K21: 2 | L21: 1 | M21: 3 | N21: 1 | O21: 0
B22: All | D22: =AVERAGE(D12:D21) -> 55239.51772 | E22: =AVERAGE(E12:E21) -> 8.961551199 | J22: Reporting | K22: 4 | L22: 12 | M22: 26 | N22: 41 | O22: 0
J23: Specialist | K23: 4 | L23: 12 | M23: 23 | N23: 12 | O23: 0
K24: =SUM(K14:K23) -> 174 | L24: =SUM(L14:L23) -> 451 | M24: =SUM(M14:M23) -> 775 | N24: =SUM(N14:N23) -> 476 | O24: =SUM(O14:O23) -> 7
J28: Average Income
K29: Accountant | L29: Analyst | M29: Consultant | N29: Controller | O29: CXO or Top Mgmt. | P29: Engineer | Q29: Manager | R29: Misc. | S29: Reporting
J30: Africa | K30: =IFERROR(AVERAGEIFS(INDIRECT("tblSalaries[Salary in USD]"),INDIRECT("tblSalaries[Continent]"),$J30,INDIRECT("tblSalaries[Job Type]"),K$29),"N/A") -> 55503.06458 | L30: 40657.29031 | M30: 82000 | N30: 11627.80165 | O30: 69815.30679 | P30: 16688.12569 | Q30: 46758.11492 | R30: N/A | S30: 19984.61538
J31: Asia | K31: 15810.03313 | L31: 14875.57708 | M31: 21314.98549 | N31: 25674.29111 | O31: 33891.45557 | P31: 21812.7494 | Q31: 19033.8384 | R31: 17551.33488 | S31: 11240.38066
J32: Australia | K32: 84029.74398 | L32: 82088.78047 | M32: 99389.4933 | N32: 82952.65205 | O32: 95191.56793 | P32: 122423.4681 | Q32: 97221.09128 | R32: N/A | S32: 85000
J33: Europe | K33: 52752.01821 | L33: 54349.60285 | M33: 69873.46709 | N33: 84048.50644 | O33: 93668.94735 | P33: 69872.11454 | Q33: 64910.85132 | R33: N/A | S33: 60976.59837
J34: North America | K34: 90726.83365 | L34: 61865.93092 | M34: 94494.33405 | N34: 87989.30512 | O34: 121798.5152 | P34: 69604.43952 | Q34: 75764.96717 | R34: 83820.33333 | S34: 58200
J35: South America | K35: N/A | L35: 26449.97492 | M35: 116050 | N35: 11400 | O35: N/A | P35: 49000 | Q35: 25870.169 | R35: N/A | S35: 20000
J37: Ave Yrs Exp
K38: Accountant | L38: Analyst | M38: Consultant | N38: Controller | O38: CXO or Top Mgmt. | P38: Engineer | Q38: Manager | R38: Misc. | S38: Reporting
J39: Africa | K39: =IFERROR(AVERAGEIFS(INDIRECT("tblSalaries[Years of Experience]"),INDIRECT("tblSalaries[Continent]"),$J39,INDIRECT("tblSalaries[Job Type]"),K$29),"N/A") -> 9.6 | L39: 12.4 | M39: 10 | N39: 5 | O39: 15 | P39: 7 | Q39: 7.875 | R39: N/A | S39: 3
J40: Asia | K40: 8.295454545 | L40: 5.376530612 | M40: 7.318181818 | N40: 9.4 | O40: 9.375 | P40: 5.770833333 | Q40: 8.262895928 | R40: 6.25 | S40: 4.481666667
J41: Australia | K41: 10 | L41: 8.475609756 | M41: 13.57142857 | N41: 16.66666667 | O41: 8.5 | P41: 11.33333333 | Q41: 12.9047619 | R41: N/A | S41: 8
J42: Europe | K42: 11.36842105 | L42: 7.686585366 | M42: 9.444444444 | N42: 12.73684211 | O42: 17 | P42: 9.125 | Q42: 12.50909091 | R42: N/A | S42: 6.75
J43: North America | K43: 9.333333333 | L43: 8.75 | M43: 9.9 | N43: 12.71428571 | O43: 14.45454545 | P43: 10.625 | Q43: 11.66666667 | R43: 6 | S43: 15.5
J44: South America | K44: N/A | L44: 6.166666667 | M44: N/A | N44: 14 | O44: N/A | P44: 9 | Q44: 12.6 | R44: N/A | S44: 6

Sheet Header Info (hidden)
C1: Total Surveys: | D1: =COUNTA(tblSalaries[Unique ID]) -> 1883
C2: # Of Days Survey Open | D2: 27.06587963 | H2: Highest Average Salary: | I2: =OFFSET(Sheet4!A4,MATCH(J2,Sheet4!B4:B13,0)-1,,,) -> CXO or Top Mgmt. | J2: =MAX(Sheet4!B4:B13) -> 97265.87562
C3: Average Surveys/Day | D3: =D1/D2 -> 69.57098848 | E3: ="Average "&TEXT(D3,"#")&" Per Day" -> Average 70 Per Day | H3: Average Salary for All: | I3: =AVERAGE(Sheet4!B4:B13) -> 54935.5602
C4: Highest Survey Amount | D4: =MAX(D10:D1886) -> 743 | H4: Average Year Experience: | I4: =AVERAGE(Sheet4!C4:C13) -> 8.961551199
C5: Highest Survey Day | D5: =OFFSET(C9,MATCH(D4,D10:D37,0),0) -> 2012-05-26
C6: Lowest Survey Amount | D6: =MIN(D10:D1886) -> 4
C7: Lowest Survey Day | D7: =OFFSET(C9,MATCH(D6,D10:D37,0),0) -> 2012-06-21
C10: 2012-05-25 | D10: =ROUND(COUNTIF(tblSalaries[Date Only],'Header Info'!C10),0) -> 80
C11: 2012-05-26 | D11: =ROUND(COUNTIF(tblSalaries[Date Only],'Header Info'!C11),0) -> 743
C12: 2012-05-27 | D12: =ROUND(COUNTIF(tblSalaries[Date Only],'Header Info'!C12),0) -> 99
C13: 2012-05-28 | D13: =ROUND(COUNTIF(tblSalaries[Date Only],'Header Info'!C13),0) -> 253
C14: 2012-05-29 | D14: =ROUND(COUNTIF(tblSalaries[Date Only],'Header Info'!C14),0) -> 205
C15: 2012-05-30 | D15: =ROUND(COUNTIF(tblSalaries[Date Only],'Header Info'!C15),0) -> 93
C16: 2012-05-31 | D16: =ROUND(COUNTIF(tblSalaries[Date Only],'Header Info'!C16),0) -> 54
C17: 2012-06-01 | D17: =ROUND(COUNTIF(tblSalaries[Date Only],'Header Info'!C17),0) -> 41
C18: 2012-06-02 | D18: =ROUND(COUNTIF(tblSalaries[Date Only],'Header Info'!C18),0) -> 23
C19: 2012-06-03 | D19: =ROUND(COUNTIF(tblSalaries[Date Only],'Header Info'!C19),0) -> 19
C20: 2012-06-04 | D20: =ROUND(COUNTIF(tblSalaries[Date Only],'Header Info'!C20),0) -> 22
C21: 2012-06-05 | D21: =ROUND(COUNTIF(tblSalaries[Date Only],'Header Info'!C21),0) -> 27
C22: 2012-06-06 | D22: =ROUND(COUNTIF(tblSalaries[Date Only],'Header Info'!C22),0) -> 24
C23: 2012-06-07 | D23: =ROUND(COUNTIF(tblSalaries[Date Only],'Header Info'!C23),0) -> 14
C24: 2012-06-08 | D24: =ROUND(COUNTIF(tblSalaries[Date Only],'Header Info'!C24),0) -> 25
C25: 2012-06-09 | D25: =ROUND(COUNTIF(tblSalaries[Date Only],'Header Info'!C25),0) -> 6
C26: 2012-06-10 | D26: =ROUND(COUNTIF(tblSalaries[Date Only],'Header Info'!C26),0) -> 12
C27: 2012-06-11 | D27: =ROUND(COUNTIF(tblSalaries[Date Only],'Header Info'!C27),0) -> 14
C28: 2012-06-12 | D28: =ROUND(COUNTIF(tblSalaries[Date Only],'Header Info'!C28),0) -> 20
C29: 2012-06-13 | D29: =ROUND(COUNTIF(tblSalaries[Date Only],'Header Info'!C29),0) -> 19
C30: 2012-06-14 | D30: =ROUND(COUNTIF(tblSalaries[Date Only],'Header Info'!C30),0) -> 8
C31: 2012-06-15 | D31: =ROUND(COUNTIF(tblSalaries[Date Only],'Header Info'!C31),0) -> 24
C32: 2012-06-16 | D32: =ROUND(COUNTIF(tblSalaries[Date Only],'Header Info'!C32),0) -> 11
C33: 2012-06-17 | D33: =ROUND(COUNTIF(tblSalaries[Date Only],'Header Info'!C33),0) -> 7
C34: 2012-06-18 | D34: =ROUND(COUNTIF(tblSalaries[Date Only],'Header Info'!C34),0) -> 6
C35: 2012-06-19 | D35: =ROUND(COUNTIF(tblSalaries[Date Only],'Header Info'!C35),0) -> 17
C36: 2012-06-20 | D36: =ROUND(COUNTIF(tblSalaries[Date Only],'Header Info'!C36),0) -> 13
C37: 2012-06-21 | D37: =ROUND(COUNTIF(tblSalaries[Date Only],'Header Info'!C37),0) -> 4

Sheet Sheet4 (hidden)
A1: Continent | B1: (All)
A3: Job Type | B3: Average Salary | C3: Average Years of Experience | D3: # Responses
A4: Accountant | B4: 54196.44058 | C4: 9.336633663 | D4: 135
A5: Analyst | B5: 46295.76942 | C5: 7.318975332 | D5: 743
A6: Consultant | B6: 62950.73322 | C6: 9.224137931 | D6: 90
A7: Controller | B7: 65103.92903 | C7: 11.8 | D7: 67
A8: CXO or Top Mgmt. | B8: 97265.87562 | C8: 13.41489362 | D8: 75
A9: Engineer | B9: 51715.15142 | C9: 7.93877551 | D9: 74
A10: Manager | B10: 46488.24071 | C10: 9.875888325 | D10: 558
A11: Misc. | B11: 45952.33422 | C11: 6.166666667 | D11: 7
A12: Reporting | B12: 19574.15853 | C12: 5.28028169 | D12: 83
A13: Specialist | B13: 59812.96927 | C13: 9.259259259 | D13: 51 | J13: =OFFSET(M18,M18,0) -> 87167.97475
A16: Continent | B16: (All)
A18: Continent | B18: Average Salary | C18: Average Yrs Exp | D18: # Responses | L18: =p_continent_country -> (All) | M18: 10
A19: Lesotho | B19: 177600 | C19: 6 | D19: 1 | L19: =IF(A19="","",A19) -> Lesotho | M19: =OFFSET(A19,0,drp_Type) -> 177600
A20: Switzerland | B20: 137525.5572 | C20: 13 | D20: 4 | L20: Switzerland | M20: 137525.5572
A21: Europe | B21: 123889.3533 | C21: 13.4 | D21: 5 | L21: Europe | M21: 123889.3533
A22: Oman | B22: 100800 | C22: 4 | D22: 1 | L22: Oman | M22: 100800
A23: Uganda | B23: 100000 | C23: 17 | D23: 1 | L23: Uganda | M23: 100000
A24: Norway | B24: 99016.17437 | C24: 8.6 | D24: 7 | L24: Norway | M24: 99016.17437
A25: Central America | B25: 95000 | D25: 1 | L25: Central America | M25: 95000
A26: Australia | B26: 92857.62985 | C26: 10.26 | D26: 81 | L26: Australia | M26: 92857.62985
A27: Canada | B27: 89799.52684 | C27: 8.75 | D27: 58 | L27: Canada | M27: 89799.52684
A28: CEE | B28: 87167.97475 | C28: 20 | D28: 2 | L28: CEE | M28: 87167.97475
A29: Sweden | B29: 84477.26009 | C29: 20 | D29: 2 | L29: =IF(A29="","",A29) -> Sweden | M29: =OFFSET(A29,0,drp_Type) -> 84477.26009
A30: Denmark | B30: 82525.5254 | C30: 17 | D30: 6 | L30: =IF(A30="","",A30) -> Denmark | M30: 82525.5254
A31: Germany | B31: 79637.14702 | C31: 7.461538462 | D31: 17 | L31: Germany | M31: 79637.14702
A32: Bermuda | B32: 78000 | D32: 1 | L32: Bermuda | M32: 78000
A33: Somalia | B33: 78000 | D33: 1 | L33: Somalia | M33: 78000
A34: Finland | B34: 75389.41554 | C34: 4.5 | D34: 3 | L34: Finland | M34: 75389.41554
A35: Netherlands | B35: 73006.4312 | C35: 9.842105263 | D35: 23 | L35: Netherlands | M35: 73006.4312
A36: Thailand | B36: 73000 | C36: 1 | D36: 2 | L36: Thailand | M36: 73000
A37: USA | B37: 72738.12966 | C37: 10.2920354 | D37: 617 | L37: USA | M37: 72738.12966
A38: New Zealand | B38: 70287.55497 | C38: 11.71428571 | D38: 15 | L38: New Zealand | M38: 70287.55497
A39: Japan | B39: 67564.77404 | C39: 5 | D39: 3 | L39: Japan | M39: =OFFSET(A39,0,drp_Type) -> 67564.77404
A40: UK | B40: 67240.73011 | C40: 10.38288288 | D40: 154 | L40: UK | M40: 67240.73011
A41: Israel | B41: 66840 | C41: 7 | D41: 5 | L41: Israel | M41: 66840
A42: Ireland | B42: 61652.48477 | C42: 12 | D42: 5 | L42: Ireland | M42: 61652.48477
A43: France | B43: 56952.72505 | C43: 5.25 | D43: 6 | L43: France | M43: 56952.72505
A44: Russia | B44: 55905.22222 | C44: 12.25 | D44: 9 | L44: Russia | M44: 55905.22222
A45: Qatar | B45: 53066.66667 | C45: 15.33333333 | D45: 3 | L45: Qatar | M45: 53066.66667
A46: Singapore | B46: 52154.75405 | C46: 7.272727273 | D46: 13 | L46: Singapore | M46: 52154.75405
A47: Kenya | B47: 51497.00599 | C47: 9 | D47: 1 | L47: Kenya | M47: 51497.00599
A48: Austria | B48: 50815.97756 | C48: 20 | D48: 1 | L48: Austria | M48: 50815.97756
A49: self-employed | B49: 50000 | D49: 1 | L49: self-employed | M49: 50000
A50: South Africa | B50: 49555.62499 | C50: 11.86666667 | D50: 19 | L50: South Africa | M50: 49555.62499
A51: Turkey | B51: 48000 | C51: 10 | D51: 2
A52: italy | B52: 47258.85913 | C52: 11.66666667 | D52: 6
A53: Spain | B53: 46235.66011 | C53: 12.44444444 | D53: 10
A54: Panama | B54: 44759.98597 | D54: 2
A55: Brazil | B55: 44287.98421 | C55: 7.272727273 | D55: 17
A56: Croatia | B56: 43489.58654 | C56: 4 | D56: 3
A57: UAE | B57: 43014.90019 | C57: 9.821428571 | D57: 19
A58: Kuwait | B58: 42666.66667 | C58: 9.333333333 | D58: 3
A59: Iceland | B59: 41731 | D59: 1
A60: Belgium | B60: 41707.21358 | C60: 10.5 | D60: 4
A61: Zimbabwe | B61: 36400 | C61: 20 | D61: 1
A62: Czech Republic | B62: 36000 | C62: 9 | D62: 1
A63: Azerbaijan | B63: 36000 | C63: 5 | D63: 1
A64: Saudi Arabia | B64: 35832.12121 | C64: 11.22222222 | D64: 11
A65: Uruguay | B65: 35000 | C65: 10 | D65: 1
A66: Poland | B66: 34210.34538 | C66: 7.5 | D66: 6
A67: Brasil | B67: 33515 | D67: 3
A68: Portugal | B68: 32907.76341 | C68: 9.571428571 | D68: 10
A69: Dubai | B69: 32166.95919 | C69: 6.333333333 | D69: 4
A70: Mexico | B70: 32138.49829 | C70: 7.4 | D70: 10
A71: Greece | B71: 30066.12006 | C71: 14 | D71: 3
A72: Indonesia | B72: 28872.8368 | C72: 7.875 | D72: 8
A73: Costa Rica | B73: 28109.62755 | D73: 1
A74: malaysia | B74: 24996.13322 | C74: 7.714285714 | D74: 7
A75: Libya | B75: 24864 | C75: 8 | D75: 1
A76: Hungary | B76: 24716.34725 | C76: 9 | D76: 5
A77: Argentina | B77: 24000 | C77: 21 | D77: 1
A78: mozambique | B78: 24000 | D78: 1
A79: Sri Lanka | B79: 22921.15479 | C79: 7.9 | D79: 5
A80: arabian Gulf | B80: 21000 | D80: 1
A81: Albania | B81: 20571 | C81: 8 | D81: 1
A82: Paraguay | B82: 20000 | C82: 6 | D82: 1
A83: Hong Kong | B83: 20000 | C83: 1 | D83: 1
A84: Egypt | B84: 19831.43282 | C84: 5 | D84: 1
A85: Slovenia | B85: 19055.99158 | C85: 4 | D85: 1
A86: iran | B86: 18000 | C86: 16.5 | D86: 3
A87: Ghana | B87: 18000 | C87: 12 | D87: 1
A88: Myanmar | B88: 17700 | C88: 10 | D88: 2
A89: Philippines | B89: 17479.29236 | C89: 9 | D89: 11
A90: china | B90: 17046.0901 | C90: 8 | D90: 2
A91: Romania | B91: 16449.97676 | C91: 5.5 | D91: 6
A92: Peru | B92: 15840 | C92: 8 | D92: 1
A93: Kuwait | B93: 15600 | C93: 13 | D93: 1
A94: Republica Dominicana | B94: 15404.36457 | C94: 3 | D94: 1
A95: Lithuania | B95: 15000 | C95: 2 | D95: 1
A96: Bulgaria | B96: 14400 | C96: 15 | D96: 1
A97: Morocco | B97: 13745.70447 | C97: 8 | D97: 1
A98: India | B98: 13529.43089 | C98: 6.46918239 | D98: 565
A99: Montenegro | B99: 13500 | C99: 13 | D99: 1
A100: Nigeria | B100: 13494.89625 | C100: 5.666666667 | D100: 3
A101: Slovakia | B101: 13000 | C101: 6 | D101: 1
A102: Zambia | B102: 13000 | C102: 3.5 | D102: 2
A103: Colombia | B103: 12362 | C103: 9.333333333 | D103: 5
A104: MYS | B104: 12000 | C104: 0 | D104: 1
A105: Estonia | B105: 12000 | D105: 1
A106: Asia | B106: 12000 | C106: 3 | D106: 1
A107: Pakistan | B107: 11873.55259 | C107: 6.88 | D107: 29
A108: Ukraine | B108: 11650 | C108: 5 | D108: 4
A109: Tunisia | B109: 11000 | C109: 8 | D109: 1
A110: Bangladesh | B110: 10299.00865 | C110: 12 | D110: 2
A111: Vietnam | B111: 10000 | C111: 6 | D111: 2
A112: Bolivia | B112: 9600 | C112: 2 | D112: 1
A113: Mauritius | B113: 9376.251388 | C113: 7 | D113: 1
A114: Baltic | B114: 8400 | C114: 0.3 | D114: 1
A115: Mongolia | B115: 7261.72466 | C115: 2 | D115: 1
A116: Dominican Republic | B116: 6629 | D116: 1
A117: Guyana | B117: 6000 | C117: 20 | D117: 1
A118: Armenia | B118: 6000 | C118: 5 | D118: 1
A119: Republic of Georgia | B119: 5250 | D119: 1
A120: Aruba | B120: 5000 | C120: 13 | D120: 1
A121: Bhutan | B121: 4800 | C121: 2 | D121: 1
A122: Latin America | B122: 4400 | C122: 5 | D122: 1
A123: Cambodia | B123: 3000 | C123: 2 | D123: 1
A124: Ethiopia | B124: 2953.846154 | C124: 3 | D124: 1

Sheet Support (hidden)
J1: Chart Titles
B2: Drop Down Continent | C2: 7 | E2: Drop Down Job Type | F2: 11 | J2: Most Active Continent: | K2: =OFFSET(Calculations!B2,MATCH(MAX(Calculations!C3:C8),Calculations!C3:C8,0),0) -> Asia | L2: =MAX(Calculations!C3:C8)& " Completed" -> 721 Completed
B3: Continent | C3: =INDEX(Calculations!B3:B9,Support!C2,0) -> All | D3: =IF(drp_Continent_Result="All","All Continents",drp_Continent_Result) -> All Continents | E3: Job | F3: =INDEX(Calculations!B12:B22,Support!F2,0) -> All | G3: =IF(drp_job_result="All","All Jobs",drp_job_result) -> All Jobs | J3: =D3 &" / "&G3&": "&"Daily Excel Hours" -> All Continents / All Jobs: Daily Excel Hours
B4: Drop Down Type | C4: 1 | J4: =D3&": Top "&drp_top_ten&" "&drp_Type_Result -> All Continents: Top 10 Average Salary
B5: Type | C5: =INDEX(Support!C23:C25,drp_Type,0) -> Average Salary | J5: ="Salary Distribution for"&" "&D3&" / "&G3 -> Salary Distribution for All Continents / All Jobs
B6: # Rows | C6: =COUNTA(Sheet4!B4:B12) -> 9
J7: Help Status | K7: -1
B8: Main chart Data | J8: =IF(Help_Status=0,"Hide Help","Show Help") -> Show Help
C9: =drp_Type_Result -> Average Salary | D9: =D3&": "&C9 -> All Continents: Average Salary | E9: Average
B10: Accountant | C10: =OFFSET(Sheet4!A4,0,drp_Type) -> 54196.44058 | D10: =IF(C10=MAX($C$10:$C$15),C10,NA()) ->  | E10: =AVERAGE(C10:C19) -> 54935.5602 | F10: 0
B11: Analyst | C11: =OFFSET(Sheet4!A5,0,drp_Type) -> 46295.76942 | D11: =IF(C11=MAX($C$10:$C$15),C11,NA()) ->  | E11: =E10 -> 54935.5602 | F11: =COUNTA($B$10:$B$19) -> 10
B12: Consultant | C12: =OFFSET(Sheet4!A6,0,drp_Type) -> 62950.73322 | E12: 54935.5602 | F12: 10
B13: Controller | C13: =OFFSET(Sheet4!A7,0,drp_Type) -> 65103.92903 | E13: 54935.5602 | F13: 10
B14: CXO or Top Mgmt. | C14: =OFFSET(Sheet4!A8,0,drp_Type) -> 97265.87562 | D14: 97265.87562 | E14: 54935.5602 | F14: 10
B15: Engineer | C15: =OFFSET(Sheet4!A9,0,drp_Type) -> 51715.15142 | E15: 54935.5602 | F15: 10
B16: Manager | C16: =OFFSET(Sheet4!A10,0,drp_Type) -> 46488.24071 | E16: 54935.5602 | F16: 10
B17: Misc. | C17: =OFFSET(Sheet4!A11,0,drp_Type) -> 45952.33422 | E17: 54935.5602 | F17: 10
B18: Reporting | C18: =OFFSET(Sheet4!A12,0,drp_Type) -> 19574.15853 | E18: 54935.5602 | F18: 10
B19: Specialist | C19: =OFFSET(Sheet4!A13,0,drp_Type) -> 59812.96927 | E19: 54935.5602 | F19: 10
B22: Drop Down for Amount Data
B23: 1 | C23: Average Salary
B24: 2 | C24: Average Yrs Exp
B25: 3 | C25: =Calculations!C2 -> # Responses
B26: 4
B27: 5
B28: 6
B29: 7
B30: 8
B31: 9
B32: 10
B33: 11
B34: 12
B35: 13
B36: 14
B37: 15

Sheet Hours (hidden)
A1: Continent | B1: (All)
A2: Job Type | B2: (All)
A4: Row Labels | B4: Count of How many hours of a day you work on Excel
A5: 1 or 2 hours a day | B5: 174
A6: 2 to 3 hours per day | B6: 451
A7: 4 to 6 hours a day | B7: 775
A8: All the 8 hours baby, all the 8! | B8: 476
A9: Excel ?!? What Excel? | B9: 7
A12: 1 or 2 hours a day | B12: =IFERROR(GETPIVOTDATA("How many hours of a day you work on Excel",A4,"How many hours of a day you work on Excel","1 or 2 hours a day"),0) -> 174
A13: 2 to 3 hours per day | B13: =IFERROR(GETPIVOTDATA("How many hours of a day you work on Excel",$A$4,"How many hours of a day you work on Excel","2 to 3 hours per day"),0) -> 451
A14: 4 to 6 hours a day | B14: =IFERROR(GETPIVOTDATA("How many hours of a day you work on Excel",$A$4,"How many hours of a day you work on Excel","4 to 6 hours a day"),0) -> 775
A15: All the 8 hours baby, all the 8! | B15: =IFERROR(GETPIVOTDATA("How many hours of a day you work on Excel",$A$4,"How many hours of a day you work on Excel","All the 8 hours baby, all the 8!"),0) -> 476
A16: Excel ?!? What Excel? | B16: =IFERROR(GETPIVOTDATA("How many hours of a day you work on Excel",$A$4,"How many hours of a day you work on Excel","Excel ?!? What Excel?"),0) -> 7
